{"text_format":"1","workbook":"xlsx","n_sheets":12,"sheets":["Indicateurs","Gén","V_dat","V_géog","V_lang","V_pér","V_éd pub","V_om","Cess","Migr","N_gén ","N_typo"],"not_rendered":{"charts":0,"images":0,"macros":0,"external_links":0,"defined_names":3,"comments":0,"pivot_tables":0},"unopened":[],"bounds":{"document_bytes":16777216,"sheet_cells":100000,"rows_first":2000,"rows_last":500,"rows_between":2000,"halvings":0,"cell_chars":16384,"cell_head_chars":4096},"cells_cut":0,"cells_raw":0,"read":"whole","date_system":"1900"}

{"sheet":"Indicateurs","index":0,"n_rows":50,"n_cols":3,"rows_kept":50,"cut":false,"hidden":false,"merged":[]}
["Indicateurs","Onglet","Source"]
["Volumétries générales ","Gén","Entrées dépôt légal"]
["Nombre de nouveaux titres et titres vivants par thématique","Gén","Entrées dépôt légal et Bibliographie Publications en série"]
["Nombre de titres vivants par date de parution","V_dat","Entrées dépôt légal"]
["Nombre de titres vivants par pays","V_géog","Entrées dépôt légal"]
["Nombre de titres vivants par pays - zoom France","V_géog","Entrées dépôt légal"]
["Nombre de titres vivants par pays et thématique","V_géog","Entrées dépôt légal"]
["Nombre de titres vivants par région France et thématique","V_géog","Entrées dépôt légal"]
["Nombre de titres vivants par langue","V_lang","Entrées dépôt légal"]
["Nombre de titres vivants par langue et thématique","V_lang","Entrées dépôt légal"]
["Nombre de titres vivants par périodicité","V_pér","Entrées dépôt légal"]
["Nombre de titres vivants par périodicité et thématique","V_pér","Entrées dépôt légal"]
["Nombre de titres vivants édition publique","V_éd pub","Entrées dépôt légal"]
["Nombre de titres vivants édition publique par périodicité","V_éd pub","Entrées dépôt légal"]
["Nombre de titres vivants édition publique par thématique","V_éd pub","Entrées dépôt légal"]
["Nombre de titres vivants outre-mer et thématique","V_om","Entrées dépôt légal"]
["Nombre de titres vivants outre-mer par langue","V_om","Entrées dépôt légal"]
["Nombre de titres vivants outre-mer et édition publique","V_om","Entrées dépôt légal"]
["Nombre de titres vivants outre-mer et périodicité","V_om","Entrées dépôt légal"]
["Nombre de cessations de parution ","Cess","Entrées dépôt légal"]
["Nombre de cessations de parution par âge de la publication","Cess","Entrées dépôt légal"]
["Nombre de cessations de parution par pays ","Cess","Entrées dépôt légal"]
["Nombre de cessations de parution par langue ","Cess","Entrées dépôt légal"]
["Nombre de cessations de parution par périodicité ","Cess","Entrées dépôt légal"]
["Nombre de cessations de parution par édition publique ","Cess","Entrées dépôt légal"]
["Nombre de cessations de parution par thématique ","Cess","Entrées dépôt légal"]
["Nombre de cessations de parution par âge des publications et thématique","Cess","Entrées dépôt légal"]
["Nombre de périodiques 2005-2015 par âge et statuts","Cess","Entrées dépôt légal"]
["Périodiques 2005-2015 par âge et statuts","Cess","Entrées dépôt légal"]
["Nombre de migrations de support par type de migration","Migr","Entrées dépôt légal"]
["Nombre de migrations par pays et région","Migr","Entrées dépôt légal"]
["Nombre de migrations par langue","Migr","Entrées dépôt légal"]
["Nombre de migrations par édition publique","Migr","Entrées dépôt légal"]
["Nombre de migrations par périodicité","Migr","Entrées dépôt légal"]
["Nombre de migrations par thématique","Migr","Entrées dépôt légal"]
["Nombre de nouveaux titres par pays ","N_gén","Bibliographie Publications en série"]
["Nombre de nouveaux titres par département ","N_gén","Bibliographie Publications en série"]
["Nombre de nouveaux titres par langue ","N_gén","Bibliographie Publications en série"]
["Nombre de nouveaux titres par périodicité ","N_gén","Bibliographie Publications en série"]
["Nombre de nouveaux titres par public ","N_gén","Bibliographie Publications en série"]
["Nombre de nouveaux titres par édition publique ","N_typo","Bibliographie Publications en série"]
["Nombre de nouveaux titres par forme d'édition","N_typo","Bibliographie Publications en série"]
["Nombre de nouveaux titres par type de périodique ","N_typo","Bibliographie Publications en série"]
["Nombre de nouveaux titres de magazines par thématique ","N_typo","Bibliographie Publications en série"]
["Nombre de nouveaux titres de presse professionnelle par thématique ","N_typo","Bibliographie Publications en série"]
["Nombre de nouveaux titres de presse académique par thématique ","N_typo","Bibliographie Publications en série"]
["Nombre de nouveaux titres de presse d'expression politique par thématique ","N_typo","Bibliographie Publications en série"]
["Nombre de nouveaux titres de presse syndicale par thématique ","N_typo","Bibliographie Publications en série"]
["Nombre de nouveaux titres de presse confessionnelle par thématique ","N_typo","Bibliographie Publications en série"]
["Nombre de nouveaux titres de presse associative par thématique ","N_typo","Bibliographie Publications en série"]

{"sheet":"Gén","index":1,"n_rows":105,"n_cols":13,"rows_kept":105,"cut":false,"hidden":false,"merged":[]}
["Volumétries générales",null,null,null,null,"Nombre de nouveaux titres par thématique",null,null,null,null,"Nombre de titres vivants par thématique"]
["Volumétrie",2016,2017,2018,null,"Indices","Intitulés",2016,2017,2018,2016,2017,2018]
["Titre vivants",36687,35772,34240,null,"000","Généralités, collections encyclopédiques",0,0,0,97,92,88]
["Dépôts (dépôt légal éditeur et importateur)",250232,237180,219766,null,"001","Culture générale",9,19,13,73,81,90]
["Nouveaux titres",1984,1952,2073,null,"004","Informatique",8,10,9,134,119,110]
["Changements de titres, fusions, scissions, absorptions",1014,773,679,null,"010","Bibliographie, catalogues",1,0,3,18,17,18]
["Cessations,  migrations",3148,3231,3713,null,"020","Sciences de l'information, lecture",7,2,1,85,76,68]
["dont migrations de support",305,327,282,null,"060","Instituts de recherche, archives, musées",2,9,21,131,131,139]
["Source : Entrées dépôt légal - logiciel de bulletinage",null,null,null,null,"070","Édition, médias, librairie",4,9,8,325,311,308]
[null,null,null,null,null,"071","Magazines généraux",75,88,65,470,502,489]
[null,null,null,null,null,"072","Publications féminines, publications masculines",27,23,28,205,202,206]
[null,null,null,null,null,"073","Presse et collections documentaires pour enfants et adolescents",52,57,49,322,331,327]
[null,null,null,null,null,"074","Presse nationale et locale d’information",76,42,28,415,400,388]
[null,null,null,null,null,"075","Presse parallèle, fanzines",16,13,24,79,81,98]
[null,null,null,null,null,"076","Journaux internes d’entreprise ",62,91,60,663,605,540]
[null,null,null,null,null,"077","Journaux d’annonces",5,11,5,106,101,94]
[null,null,null,null,null,"090","Bibliophilie",0,0,0,7,6,6]
[null,null,null,null,null,"100","Philosophie",6,4,11,99,97,101]
[null,null,null,null,null,"130","Ésotérisme et sciences occultes",3,8,8,42,46,48]
[null,null,null,null,null,"150","Psychologie et psychanalyse",8,13,13,130,129,132]
[null,null,null,null,null,"200","Religion",2,4,3,103,98,94]
[null,null,null,null,null,"280","Églises chrétiennes",105,86,80,1653,1677,1660]
[null,null,null,null,null,"294","Hindouisme, bouddhisme",0,1,0,11,11,11]
[null,null,null,null,null,"296","Judaïsme",0,0,2,24,19,19]
[null,null,null,null,null,"297","Islam",1,2,1,11,11,11]
[null,null,null,null,null,"299","Autres religions",0,2,1,22,23,23]
[null,null,null,null,null,"300","Sciences sociales, sociologie",28,16,20,300,290,285]
[null,null,null,null,null,"320","Sciences politiques et gouvernement",16,14,48,280,254,261]
[null,null,null,null,null,"323","Droits civils et politiques, citoyenneté, minorités",13,9,28,132,122,138]
[null,null,null,null,null,"324","Partis et mouvements politiques",14,11,10,212,186,157]
[null,null,null,null,null,"327","Politique internationale",2,15,4,73,81,73]
[null,null,null,null,null,"330","Économie (généralités)",50,59,17,356,382,324]
[null,null,null,null,null,"331","Économie du travail, syndicats",64,60,86,1289,1237,1191]
[null,null,null,null,null,"332","Économie financière",39,34,19,311,304,279]
[null,null,null,null,null,"333","Économie du foncier et de l'énergie",45,66,33,473,485,450]
[null,null,null,null,null,"338","Économie de la production et de la consommation",80,90,99,604,582,589]
[null,null,null,null,null,"340","Droit",36,44,34,665,658,632]
[null,null,null,null,null,"350","Administration publique",13,10,13,202,187,171]
[null,null,null,null,null,"352","Administration territoriale",321,351,276,2319,2220,1688]
[null,null,null,null,null,"355","Armée, défense",14,32,11,242,259,245]
[null,null,null,null,null,"362","Problèmes et services sociaux",150,238,253,1449,1516,1583]
[null,null,null,null,null,"363","Protection de l’environnement",50,58,79,877,822,805]
[null,null,null,null,null,"366","Associations, cercles et clubs divers",29,54,33,563,567,546]
[null,null,null,null,null,"368","Assurances, sécurité sociale, retraites",48,42,41,464,437,430]
[null,null,null,null,null,"370","Éducation, enseignement",8,15,19,239,214,191]
[null,null,null,null,null,"371","Organisation scolaire, pédagogie, parents d’élèves",15,28,8,194,196,178]
[null,null,null,null,null,"373","Enseignement primaire, enseignement secondaire général et technique, journaux scolaires",28,18,48,244,243,236]
[null,null,null,null,null,"374","Formation professionnelle et continue",8,6,7,61,50,49]
[null,null,null,null,null,"378","Enseignement supérieur",15,25,28,275,256,256]
[null,null,null,null,null,"380","Commerce",24,21,31,261,250,255]
[null,null,null,null,null,"383","Moyens de communication",5,11,5,64,61,53]
[null,null,null,null,null,"385","Transports",47,48,53,437,425,399]
[null,null,null,null,null,"390","Ethnologie, anthropologie, folklore",2,2,6,40,38,36]
[null,null,null,null,null,"400","Linguistique",7,4,6,79,72,77]
[null,null,null,null,null,"500","Sciences (généralités)",15,11,12,110,110,111]
[null,null,null,null,null,"510","Mathématiques",2,0,2,27,26,28]
[null,null,null,null,null,"520","Astronomie",2,1,3,32,28,30]
[null,null,null,null,null,"530","Physique",0,0,2,25,22,20]
[null,null,null,null,null,"540","Chimie, minéralogie",1,0,0,25,24,24]
[null,null,null,null,null,"550","Sciences de la terre",4,2,4,70,69,65]
[null,null,null,null,null,"560","Paléontologie",0,1,0,7,8,7]
[null,null,null,null,null,"570","Sciences de la vie",0,2,8,49,48,51]
[null,null,null,null,null,"580","Botanique",5,8,0,72,78,77]
[null,null,null,null,null,"590","Zoologie",4,4,3,144,140,134]
[null,null,null,null,null,"600","Sciences appliquées, technologie",5,3,5,50,49,47]
[null,null,null,null,null,"610","Médecine, santé",132,114,107,1380,1323,1269]
[null,null,null,null,null,"620","Sciences de l'ingénieur",39,33,43,353,332,337]
[null,null,null,null,null,"630","Agriculture, élevage",113,101,101,1196,1169,1132]
[null,null,null,null,null,"640","Économie domestique/vie pratique, hôtellerie",76,90,54,531,536,530]
[null,null,null,null,null,"650","Gestion et organisation des entreprises, publicité",50,35,49,411,382,365]
[null,null,null,null,null,"660","Génie chimique et technologies connexes",8,1,5,51,45,45]
[null,null,null,null,null,"670","Industries et métiers divers",13,8,13,280,250,231]
[null,null,null,null,null,"690","Bâtiment",9,19,8,239,227,198]
[null,null,null,null,null,"700","Arts (généralités)",59,52,56,515,511,497]
[null,null,null,null,null,"710","Urbanisme, aménagement du territoire",16,24,23,198,188,180]
[null,null,null,null,null,"720","Architecture",13,11,16,150,145,144]
[null,null,null,null,null,"730","Arts plastiques, sculpture",3,5,4,39,40,38]
[null,null,null,null,null,"740","Dessin, arts décoratifs, artisanat d’art, bandes dessinées (histoire et critique)",33,41,56,298,281,296]
[null,null,null,null,null,"750","Peinture, arts graphiques",4,5,12,78,76,83]
[null,null,null,null,null,"770","Photographie",8,18,12,113,114,113]
[null,null,null,null,null,"778","Érotisme, pornographie",4,8,2,22,17,18]
[null,null,null,null,null,"780","Musique",15,15,10,212,202,188]
[null,null,null,null,null,"790","Spectacles (généralités), loisirs",18,25,30,184,186,191]
[null,null,null,null,null,"791","Audiovisuel",18,28,23,204,208,208]
[null,null,null,null,null,"792","Représentations scéniques",7,3,4,77,69,65]
[null,null,null,null,null,"793","Jeux et divertissements d'intérieur",83,109,104,558,599,634]
[null,null,null,null,null,"796","Sports, activités de plein air",106,105,80,1049,1032,970]
[null,null,null,null,null,"800","Littérature générale, histoire et critique littéraires, revues littéraires",52,48,40,686,674,673]
[null,null,null,null,null,"801","Poésie",10,9,11,107,107,110]
[null,null,null,null,null,"802","Théâtre",0,0,0,5,5,5]
[null,null,null,null,null,"803","Roman et fiction romanesque",0,3,0,2,5,5]
[null,null,null,null,null,"804","Essais littéraires et écrits divers",2,0,4,12,12,16]
[null,null,null,null,null,"805","Bandes dessinées",43,33,14,170,154,122]
[null,null,null,null,null,"809","Littérature pour la jeunesse",1,6,2,24,26,23]
[null,null,null,null,null,"900","Histoire et géographie (généralités) ",12,19,11,211,214,211]
[null,null,null,null,null,"910","Géographie, voyages, tourisme",38,37,44,335,321,324]
[null,null,null,null,null,"920","Biographies",0,0,0,9,9,6]
[null,null,null,null,null,"929","Généalogie, Histoire ancienne, archéologie",2,7,5,149,149,149]
[null,null,null,null,null,"930","Histoire ancienne, archéologie, préhistoire",9,4,8,175,170,165]
[null,null,null,null,null,"940","Histoire médiévale, moderne et contemporaine",7,14,10,166,170,170]
[null,null,null,null,null,"944","Histoire de France, histoire locale",71,69,55,1127,1137,1147]
[null,null,null,null,null,"Indéterminé",null,null,null,null,6830,6525,6143]
[null,null,null,null,null,"Total",null,{"$f":"SUM(H3:H102)","v":2752},{"$f":"SUM(I3:I102)","v":3006},{"$f":"SUM(J3:J102)","v":2803},36687,35772,34240]
[null,null,null,null,null,"Source : Bibliographie nationale - Publications en série"]
[null,null,null,null,null,"Inclut les changements de titre"]

{"sheet":"V_dat","index":2,"n_rows":216,"n_cols":9,"rows_kept":216,"cut":false,"hidden":false,"merged":[]}
["Nombre de titres vivants par date de début de parution*"]
[null,"Année de réception"]
["Date de parution",2011,2012,2013,2014,2015,2016,2017,2018]
[1665,1,1,1,1,1,1,1,1]
[1744,1]
[1780,null,null,1,1,1,1,1,1]
[1788,1,1,1,1,1,1,1,1]
[1790,1,2,2,2,2,1]
[1791,1,1,1,1,1,1,1,1]
[1793,1,1,1,1,1,1,1]
[1800,40,38,37,36,32,12,12,3]
[1805,2,2,1,1,1,1,1]
[1806,1]
[1807,null,2,2,2,2,2,2,2]
[1811,1,1,1,1,1,1,1,1]
[1816,1,1,1,1,1,1,1,1]
[1817,1,2,2,2,2,2,2,1]
[1818,null,1,1,1,1,1,1,1]
[1820,1,1,1,1,1,1,1,1]
[1822,2,2,2,2,2,2,2,2]
[1824,1,1,1,1,1,1,1]
[1827,1]
[1828,2,3,2,2,2,2,2,1]
[1830,58,58,57,57,45,16,2,2]
[1831,3,3,2,2,2,1,1,1]
[1832,1,1,1,1,1,1,1,1]
[1833,1,2,2,2,1,1,1,1]
[1834,5,5,5,5,5,5,5,5]
[1836,3,3,2,3,3,2,2,2]
[1837,1,1,1,1,1,1,1,1]
[1838,6,8,8,8,8,4,4,4]
[1839,3,4,4,4,4,1,1,1]
[1840,29,27,27,27,19,5,1,1]
[1841,3,4,4,4,4,4,4,4]
[1842,2,2,1,1,1]
[1843,5,6,6,6,6,6,6,6]
[1844,3,3,3,3,2,2,2,2]
[1845,3,2,2,2,2,2,2,2]
[1846,2,1,2,2,2,2,2,2]
[1847,2,2,2,2,2,2,2,2]
[1848,1,1,1,1,1,1,1,1]
[1849,1,2,2,2,2,2,2,2]
[1850,86,87,88,84,72,11,9,1]
[1851,3,3,3,3,3,1,1,1]
[1852,1,1,1,1,1]
[1853,10,10,9,9,8,6,2,2]
[1854,6,6,6,6,6,2,2,2]
[1855,4,4,4,4,4,2,1,1]
[1856,10,9,9,9,8,6,1,1]
[1857,4,4,4,4,4,2,1,1]
[1858,3,3,3,3,3,4,4,1]
[1859,5,5,5,5,5,5,5,5]
[1860,43,44,44,45,39,19,17,3]
[1861,7,7,7,7,7,3,3,3]
[1862,5,6,6,6,5,1,1]
[1863,5,5,5,5,5,2,2,3]
[1864,6,5,5,5,5,2,2,2]
[1865,2,1,1,1,1,1]
[1866,3,3,3,3,3,3,3,3]
[1867,4,4,3,3,3,3,3,3]
[1868,2,2,2,2,2,2,2,2]
[1869,4,5,5,5,5,4,4,4]
[1870,7,7,6,6,6,3,3,3]
[1871,4,4,5,5,5,4,4,3]
[1872,10,9,8,8,8,8,8,8]
[1873,3,4,4,4,3,3,3,3]
[1874,6,6,6,6,6,6,6,6]
[1875,5,7,6,6,6,6,6,4]
[1876,10,10,10,10,10,10,9,9]
[1877,6,6,6,6,6,6,6,6]
[1878,6,6,6,6,6,6,5,5]
[1879,7,7,7,7,7,6,6,6]
[1880,5,5,5,5,5,3,3,3]
[1881,2,6,5,5,5,4,4,4]
[1882,5,5,4,3,3,3,4,3]
[1883,2,3,3,3,3,3,3,3]
[1884,3,3,3,3,3,4,4,4]
[1885,8,8,7,8,8,8,8,8]
[1886,5,2,2,2,2,2,2,2]
[1887,6,7,7,7,7,7,7,7]
[1888,7,7,8,8,8,8,8,8]
[1889,5,4,4,5,5,5,5,5]
[1890,8,9,9,8,8,8,7,7]
[1891,8,8,8,8,8,8,8,8]
[1892,15,15,15,15,15,15,15,15]
[1893,40,40,40,40,40,40,38,38]
[1894,41,41,41,40,40,37,34,34]
[1895,8,7,7,7,7,7,7,7]
[1896,15,18,18,17,17,17,17,16]
[1897,8,7,7,7,5,5,6,6]
[1898,10,10,9,9,8,9,9,9]
[1899,14,12,12,12,12,12,12,12]
[1900,2535,2459,2385,2334,2197,2070,1988,1871]
[1901,16,18,18,18,17,17,16,16]
[1902,7,7,6,5,6,6,6,6]
[1903,17,19,19,19,19,18,18,17]
[1904,11,11,11,10,10,10,11,11]
[1905,9,9,9,9,9,9,9,9]
[1906,4,3,3,3,3,3,3,3]
[1907,5,6,6,6,6,4,4,4]
[1908,11,11,11,13,13,12,11,12]
[1909,9,9,9,9,6,6,6,5]
[1910,11,13,13,13,14,13,13,13]
[1911,10,10,10,10,11,11,11,11]
[1912,9,8,8,8,8,8,9,9]
[1913,9,9,9,9,9,9,9,8]
[1914,6,6,6,7,7,7,7,7]
[1915,3,3,3,3,3,4,3,3]
[1916,3,3,2,2,2,2,2,1]
[1917,2,2,2,2,2,2,2,2]
[1918,3,3,4,4,4,4,4,4]
[1919,15,21,22,22,21,18,17,17]
[1920,23,24,22,22,20,17,17,15]
[1921,20,19,21,20,19,19,19,18]
[1922,13,13,14,13,13,13,12,12]
[1923,15,15,16,16,18,18,18,18]
[1924,9,10,11,11,11,10,10,9]
[1925,21,19,18,18,18,18,18,18]
[1926,22,22,22,23,23,23,23,23]
[1927,17,18,16,15,15,15,16,15]
[1928,18,18,18,17,15,15,15,14]
[1929,14,14,14,13,12,12,12,12]
[1930,25,23,22,22,26,24,20,23]
[1931,13,14,14,14,12,12,12,11]
[1932,11,10,10,10,10,10,10,10]
[1933,18,19,18,18,19,17,18,19]
[1934,13,15,14,13,14,14,15,15]
[1935,13,15,15,15,14,13,11,11]
[1936,32,29,28,26,26,26,24,23]
[1937,16,15,14,14,13,12,11,11]
[1938,15,14,14,15,15,15,14,14]
[1939,11,11,11,10,10,10,11,10]
[1940,15,16,16,17,15,15,13,11]
[1941,5,4,4,4,4,3,3,3]
[1942,12,11,9,8,7,6,6,6]
[1943,6,6,6,6,6,6,5,5]
[1944,81,82,82,82,79,74,73,72]
[1945,73,73,68,66,67,65,64,61]
[1946,63,64,63,64,62,60,56,54]
[1947,61,57,57,57,54,54,54,54]
[1948,49,53,52,51,50,46,44,41]
[1949,44,44,43,42,44,39,37,35]
[1950,78,82,77,75,75,68,63,59]
[1951,49,47,45,43,43,40,38,36]
[1952,46,44,43,42,39,38,38,37]
[1953,51,54,54,53,52,47,46,45]
[1954,41,41,42,42,43,40,39,39]
[1955,47,50,48,47,44,41,40,39]
[1956,49,47,46,44,42,41,39,38]
[1957,47,46,44,43,42,41,39,38]
[1958,50,48,49,50,49,48,47,46]
[1959,66,69,67,67,66,63,60,59]
[1960,139,128,125,124,119,117,114,107]
[1961,64,63,60,59,56,54,53,53]
[1962,59,60,59,58,53,53,52,52]
[1963,61,59,57,56,54,49,49,48]
[1964,115,112,107,102,95,94,89,85]
[1965,139,140,135,132,124,120,116,110]
[1966,131,134,130,123,121,116,114,113]
[1967,135,131,117,109,102,99,99,97]
[1968,151,150,149,144,141,130,130,121]
[1969,143,136,132,126,113,106,103,102]
[1970,268,261,256,249,239,217,206,186]
[1971,195,185,176,161,157,146,141,136]
[1972,154,152,155,152,144,139,137,133]
[1973,134,134,124,122,110,104,99,95]
[1974,171,164,163,148,137,123,118,113]
[1975,204,198,186,180,168,157,142,141]
[1976,214,202,201,192,181,169,163,153]
[1977,196,192,186,180,173,160,157,148]
[1978,231,225,211,198,190,185,171,164]
[1979,224,219,212,205,193,182,174,169]
[1980,720,672,648,608,566,507,459,423]
[1981,217,212,201,192,181,171,165,158]
[1982,294,286,279,269,235,212,201,188]
[1983,262,258,244,237,221,208,197,184]
[1984,259,253,246,238,230,221,209,196]
[1985,289,275,262,249,230,219,215,198]
[1986,342,326,312,296,264,235,225,211]
[1987,319,313,302,296,286,274,251,238]
[1988,332,320,308,293,275,269,246,226]
[1989,382,380,364,347,331,316,302,289]
[1990,1944,1839,1731,1620,1492,1380,1281,1152]
[1991,442,432,402,382,350,332,311,288]
[1992,622,619,595,573,538,509,472,443]
[1993,594,592,559,536,488,462,441,403]
[1994,698,688,571,540,508,468,443,392]
[1995,613,611,583,561,523,480,447,409]
[1996,670,674,637,605,570,518,483,444]
[1997,769,775,725,684,623,584,543,507]
[1998,768,741,695,658,612,572,528,488]
[1999,923,902,834,789,709,660,600,536]
[2000,3310,3172,3038,2903,2666,2524,2356,2300]
[2001,1019,943,871,816,771,699,646,578]
[2002,1220,1157,1065,993,868,795,723,632]
[2003,1327,1289,1180,1086,981,880,798,676]
[2004,1394,1310,1184,1089,985,882,763,668]
[2005,1577,1496,1340,1249,1114,984,860,751]
[2006,1641,1539,1383,1240,1115,995,885,774]
[2007,1732,1610,1447,1329,1181,1050,947,829]
[2008,1915,1788,1678,1514,1320,1181,1040,892]
[2009,2057,1945,1770,1602,1400,1231,1078,940]
[2010,2132,2104,2075,1996,1838,1741,1769,1743]
[2011,1855,1898,1820,1639,1436,1270,1126,984]
[2012,394,1546,1898,1838,1680,1520,1340,1192]
[2013,null,15,1379,1649,1562,1412,1245,1092]
[2014,null,null,12,1084,1645,1545,1393,1237]
[2015,null,null,null,1,1180,1749,1767,1416]
[2016,null,null,null,null,2,1176,1688,1656]
[2017,null,null,null,null,null,15,1148,1584]
[2018,null,null,null,null,null,null,2,1084]
[2019,null,null,null,null,null,null,null,1]
["indéterminé",692,96,98,123,74,108,102,57]
["Total",41502,40718,40161,39354,37918,36687,{"$f":"SUM(H4:H213)","v":35772},{"$f":"SUM(I4:I213)","v":34240}]
[]
["*les dates approximatives ont été arrondies : par exemple 201. = 2010 ; 19.. = 1900"]

{"sheet":"V_géog","index":3,"n_rows":201,"n_cols":60,"rows_kept":201,"cut":false,"hidden":false,"merged":[[77,0,77,1],[73,0,73,1],[72,0,72,1],[76,0,76,1],[67,0,67,1],[68,0,68,1],[70,0,70,1],[172,1,172,15],[187,1,187,15],[202,1,202,23],[78,0,78,1],[79,0,79,1],[157,1,157,15]]}
["Nombre de titres vivants par pays"]
["Pays",null,2016,2017,2018]
["France métropolitaine                                                                       ",null,34319,33338,32368]
["France d'Outre-Mer",null,1679,1702,1116]
["Autres pays","Afrique du Sud",1,1,1]
[null,"Algérie",1,1,1]
[null,"Allemagne",50,47,49]
[null,"Arabie saoudite",2,2,2]
[null,"Autriche",2,2,2]
[null,"Belgique",88,89,93]
[null,"Bénin",2,2,2]
[null,"Brésil",2,2,2]
[null,"Canada",6,4,4]
[null,"Chili",1,1,1]
[null,"Chine",1,2,2]
[null,"Comores",1,1,1]
[null,"Congo",2,3,3]
[null,"Croatie",null,2,2]
[null,"Danemark",1,1,1]
[null,"Égypte",8,7,7]
[null,"Emirats arabes unis",1,1,1]
[null,"Espagne",41,57,76]
[null,"Etats-Unis",51,49,49]
[null,"Éthiopie",1,1,1]
[null,"Géorgie",6,4,4]
[null,"Grèce",1,1,1]
[null,"Haïti",1,1]
[null,"Hong Kong",1,1,1]
[null,"Inde",2,2,2]
[null,"Indonésie",1,1,1]
[null,"Iran",2,1,1]
[null,"Irlande",1,3,3]
[null,"Israël",5,5,5]
[null,"Italie",53,56,59]
[null,"Japon",3,4,4]
[null,"Liban",5,6,6]
[null,"Luxembourg",3,3,3]
[null,"Maroc",1,1,1]
[null,"Maurice",1,2,2]
[null,"Mexique",1,1,1]
[null,"Monaco",10,10,10]
[null,"multiple",114,107,97]
[null,"non renseigné",1,1,1]
[null,"Pays-Bas",57,57,53]
[null,"Pologne",1,2,2]
[null,"Portugal",1,1,1]
[null,"République tchèque",null,1,1]
[null,"Roumanie",2,1,1]
[null,"Royaume-Uni",82,108,116]
[null,"Russie",6,6,6]
[null,"Sénégal",1,3,3]
[null,"Singapour",1,1,1]
[null,"Suisse",52,58,60]
[null,"Syrie",1,1,1]
[null,"Thaïlande",1,1,1]
[null,"Tunisie",1,1,1]
[null,"Turquie",5,4,4]
[null,"Vatican",1,1,1]
[null,"Venezuela",1,1,1]
[null,"Viet Nam",null,null,1]
[null,"Yougoslavie",2]
["Total",null,36687,35772,34240]
["Source : Entrées dépôt légal - logiciel de bulletinage"]
[]
["Nombre de titres vivants par pays - zoom France"]
[]
["Région",null,2016,2017,2018]
["Auvergne - Rhône Alpes",null,3353,3237,3102]
["Bourgogne - Franche-Comté",null,1404,1370,1295]
["Bretagne",null,1134,1102,1095]
["Centre - Val-de-Loire",null,1026,997,957]
["Corse",null,93,86,68]
["Grand-Est",null,2440,2361,2279]
["Hauts-de-France",null,1705,1685,1633]
["Ile-de-France",null,14753,14489,14251]
["Normandie",null,1080,1054,1019]
["Nouvelle-Aquitaine",null,2680,2577,2466]
["Occitanie",null,2111,2065,1972]
["Pays de la Loire",null,1146,1114,1096]
["Provence-Alpes-Côte d'Azur",null,1545,1496,1437]
["Autre",null,347,411,429]
["Total",null,34817,34044,33099]
["Outre-mer"]
["Guadeloupe",null,382,389,231]
["Guyane française",null,160,162,83]
["Martinique",null,220,225,156]
["Mayotte",null,59,58,43]
["Nouvelle-Calédonie",null,355,356,282]
["Polynésie française",null,24,25,15]
["Réunion",null,444,449,286]
["Saint-Barthélemy",null,6,6,3]
["Saint-Martin (partie française)",null,17,20,15]
["Saint-Pierre-et-Miquelon",null,7,7]
["Wallis et Futuna (îles)",null,5,5,2]
["Total",null,1679,1702,1116]
[]
[]
[]
[]
[]
[]
[]
[]
["Source : Entrées dépôt légal - logiciel de bulletinage"]
["*non renseigné, étranger, Outre-mer (scorie)"]
[]
["Nombre de titres vivants par pays et thématique"]
[2018,"France métropolitaine","Outre Mer","Autres pays",null,null,null,null,null,null,null,null,null,null,null,null,null,null,null,null,null,null,null,null,null,null,null,null,null,null,null,null,null,null,null,null,null,null,null,null,null,null,null,null,null,null,null,null,null,null,null,null,null,null,null,null,null,null,"multiple","Total général"]
["Grandes classes","France métropolitaine","Outre Mer","Belgique","Royaume-Uni","Pays-Bas","Italie","Suisse","Etats-Unis","Allemagne","Espagne","Monaco","Égypte","Canada","Géorgie","Russie","Israël","Liban","Turquie","Japon","Luxembourg","Arabie saoudite","Autriche","Bénin","Brésil","Congo","Inde","Iran","Roumanie","Afrique du Sud","Algérie","Chili","Chine","Comores","Danemark","Emirats arabes unis","Ethiopie","Grèce","Haïti","Hong Kong","Indonésie","Irlande","Maroc","Maurice","Mexique","Non renseigné","Pologne","Portugal","Sénégal","Croatie","Singapour","Syrie","Thaïlande","Tunisie","Vatican","Venezuela","Vietnam","République tchèque"]
["0XX",2724,207,2,8,2,2,4,2,1,4,5,null,null,null,null,1,null,null,1,2,null,null,null,1,null,null,null,null,null,null,null,1,null,null,null,null,null,null,1,null,null,null,null,null,null,1,null,null,null,null,null,null,null,null,null,null,null,null,2969]
["1XX",273,2,1,2,null,null,1,null,null,1,null,null,null,null,null,1,null,null,null,null,null,null,null,null,null,null,null,null,null,null,null,null,null,null,null,null,null,null,null,null,null,null,null,null,null,null,null,null,null,null,null,null,null,null,null,null,null,null,281]
["2XX",1782,16,5,null,null,1,2,4,null,null,null,null,null,null,null,1,null,null,null,null,null,null,null,null,null,null,null,null,null,null,null,null,null,null,null,null,null,null,null,null,null,null,null,null,null,null,null,null,null,null,null,null,null,1,null,null,1,5,1818]
["3XX",10911,483,25,3,3,1,10,null,null,11,null,1,null,null,null,null,null,null,null,1,null,1,null,null,null,null,null,null,1,null,null,null,1,null,1,null,null,null,null,null,1,null,null,null,null,null,null,1,null,null,null,null,null,null,null,null,null,45,11500]
["4XX",65,0,3,null,null,1,1,null,1,null,null,null,null,null,null,null,null,null,null,null,null,null,null,1,null,null,null,1,null,null,1,null,null,1,null,null,null,null,null,null,null,null,null,1,null,null,null,null,null,null,null,null,null,null,1,null,null,null,77]
["5XX",524,10,2,1,null,null,null,1,null,1,null,null,null,null,null,1,null,null,null,null,null,null,null,null,1,null,null,null,null,null,null,null,null,null,null,null,null,null,null,null,null,null,null,null,null,null,null,null,null,null,null,null,null,null,null,null,null,6,547]
["6XX",3925,132,7,5,33,12,10,null,7,8,null,null,null,2,null,null,null,null,null,null,null,null,null,null,null,1,null,null,null,null,null,1,null,null,null,null,null,null,null,null,null,null,1,null,null,null,null,null,null,null,null,null,null,null,null,null,null,10,4154]
["7XX",3431,102,12,13,1,8,15,null,4,29,2,null,null,2,null,null,1,null,null,null,null,1,null,null,null,null,null,null,null,null,null,null,null,null,null,null,null,null,null,null,null,null,1,null,null,null,null,null,null,null,null,null,null,null,null,null,null,3,3625]
["8XX",914,19,7,1,null,null,2,3,null,1,1,null,null,null,null,null,null,null,null,null,2,null,null,null,1,null,null,null,null,null,null,null,null,null,null,null,null,null,null,null,1,null,null,null,null,null,null,null,null,null,null,null,null,null,null,null,null,2,954]
["9XX",2107,38,3,2,null,3,6,null,2,2,null,2,null,null,null,null,null,1,null,null,null,null,null,null,null,null,null,null,null,null,null,null,null,null,null,null,null,null,null,null,null,null,null,null,null,1,null,null,null,null,null,1,null,null,null,1,null,3,2172]
["Non renseigné",5712,107,26,81,14,31,9,39,34,19,2,4,4,null,6,1,5,3,3,null,null,null,2,null,1,1,1,null,null,1,null,null,null,null,null,1,1,null,null,1,1,1,null,null,1,null,1,2,2,1,1,null,1,null,null,null,null,23,6143]
["Total général",32368,1116,93,116,53,59,60,49,49,76,10,7,4,4,6,5,6,4,4,3,2,2,2,2,3,2,1,1,1,1,1,2,1,1,1,1,1,0,1,1,3,1,2,1,1,2,1,3,2,1,1,1,1,1,1,1,1,97,34240]
[]
[]
[]
[2017,"France métropolitaine","Outre Mer","Autres pays",null,null,null,null,null,null,null,null,null,null,null,null,null,null,null,null,null,null,null,null,null,null,null,null,null,null,null,null,null,null,null,null,null,null,null,null,null,null,null,null,null,null,null,null,null,null,null,null,null,null,null,null,null,"multiple","Total général"]
["Grandes classes","France métropolitaine","Outre Mer","Belgique","Royaume-Uni","Pays-Bas","Italie","Suisse","Etats-Unis","Allemagne","Espagne","Monaco","Égypte","Canada","Géorgie","Russie","Israël","Liban","Turquie","Japon","Luxembourg","Arabie saoudite","Autriche","Bénin","Brésil","Congo","Inde","Iran","Roumanie","Afrique du Sud","Algérie","Chili","Chine","Comores","Danemark","Emirats arabes unis","Ethiopie","Grèce","Haïti","Hong Kong","Indonésie","Irlande","Maroc","Maurice","Mexique","Non renseigné","Pologne","Portugal","Sénégal","Croatie","Singapour","Syrie","Thaïlande","Tunisie","Vatican","Venezuela","République tchèque"]
["0XX",2733,281,2,8,2,2,4,2,1,4,5,null,null,null,null,1,null,null,1,2,null,null,null,1,null,null,null,null,null,null,null,1,null,null,null,null,null,null,1,null,null,null,null,null,null,1,null,null,null,null,null,null,null,null,null,null,3,3055]
["1XX",265,2,1,1,null,null,1,null,null,1,null,null,null,null,null,1,null,null,null,null,null,null,null,null,null,null,null,null,null,null,null,null,null,null,null,null,null,null,null,null,null,null,null,null,null,null,null,null,null,null,null,null,null,null,null,null,null,272]
["2XX",1796,23,5,null,null,1,2,4,null,null,null,null,null,null,null,1,null,null,null,null,null,null,null,null,null,null,null,null,null,null,null,null,null,null,null,null,null,null,null,null,null,null,null,null,null,null,null,null,null,null,null,null,null,1,null,1,5,1839]
["3XX",11457,764,25,2,3,null,10,null,null,4,null,1,null,null,null,null,null,null,null,1,null,1,null,null,null,null,null,null,1,null,null,null,1,null,1,null,null,null,null,null,1,null,null,null,null,null,null,1,null,null,null,null,null,null,null,null,49,12322]
["4XX",60,null,3,null,null,1,1,null,1,null,null,null,null,null,null,null,null,null,null,null,null,null,null,1,null,null,null,1,null,null,1,null,null,1,null,null,null,null,null,null,null,null,null,1,null,null,null,null,null,null,null,null,null,null,1,null,null,72]
["5XX",521,19,2,1,null,null,null,1,null,1,null,null,null,null,null,1,null,null,null,null,null,null,null,null,1,null,null,null,null,null,null,null,null,null,null,null,null,null,null,null,null,null,null,null,null,null,null,null,null,null,null,null,null,null,null,null,6,553]
["6XX",4005,212,8,4,37,10,8,null,7,7,null,null,null,2,null,null,null,null,null,null,null,null,null,null,null,1,null,null,null,null,null,1,null,null,null,null,null,null,null,null,null,null,1,null,null,null,null,null,null,null,null,null,null,null,null,null,10,4313]
["7XX",3438,152,12,11,1,7,15,null,3,18,2,null,null,2,null,null,1,null,null,null,null,1,null,null,null,null,null,null,null,null,null,null,null,null,null,null,null,null,null,null,null,null,null,null,null,null,null,null,null,null,null,null,null,null,null,null,5,3668]
["8XX",935,28,4,1,null,1,2,3,null,1,1,null,null,null,null,null,null,null,null,null,2,null,null,null,1,null,null,null,null,null,null,null,null,null,null,null,null,null,null,null,1,null,1,null,null,null,null,null,null,null,null,null,null,null,null,null,2,983]
["9XX",2090,54,3,1,null,3,6,null,2,2,null,2,null,null,null,null,null,1,null,null,null,null,null,null,null,null,null,null,null,null,null,null,null,null,null,null,null,null,null,null,null,null,null,null,null,1,null,null,null,null,null,1,null,null,null,null,4,2170]
["Non renseigné",6038,167,24,79,14,31,9,39,33,19,2,4,4,null,6,1,5,3,3,null,null,null,2,null,1,1,1,null,null,1,null,null,null,null,null,null,1,1,null,1,1,1,null,null,1,null,1,2,2,1,1,null,1,null,null,null,23,6524]
["Total général",33338,1702,89,108,57,56,58,49,47,57,10,7,4,4,6,5,6,4,4,3,2,2,2,2,3,2,1,1,1,1,1,2,1,1,1,null,1,1,1,1,3,1,2,1,1,2,1,3,2,1,1,1,1,1,1,1,107,35772]
[]
[]
[]
[2016,"France métropolitaine","Outre Mer","Autres pays",null,null,null,null,null,null,null,null,null,null,null,null,null,null,null,null,null,null,null,null,null,null,null,null,null,null,null,null,null,null,null,null,null,null,null,null,null,null,null,null,null,null,null,null,null,null,null,null,null,null,null,null,null,"multiple","Total général"]
["Grandes classes","France métropolitaine","Outre Mer","Belgique","Royaume-Uni","Pays-Bas","Italie","Suisse","Etats-Unis","Allemagne","Espagne","Monaco","Égypte","Canada","Géorgie","Russie","Israël","Liban","Turquie","Japon","Luxembourg","Arabie saoudite","Autriche","Bénin","Brésil","Congo","Inde","Iran","Roumanie","Yougoslavie","Afrique du Sud","Algérie","Chili","Chine","Comores","Danemark","Emirats arabes unis","Ethiopie","Grèce","Haïti","Hong Kong","Indonésie","Irlande","Maroc","Maurice","Mexique","Non renseigné","Pologne","Portugal","Sénégal","Singapour","Syrie","Thaïlande","Tunisie","Vatican","Venezuela"]
["0XX",2807,281,2,6,2,2,4,2,3,4,5,null,null,1,null,1,null,null,1,2,null,null,null,1,null,null,null,null,null,null,null,null,null,null,null,null,null,null,null,1,null,null,null,null,null,null,1,null,null,null,null,null,null,null,null,null,4,3130]
["1XX",266,2,1,null,null,null,1,null,null,null,null,null,null,null,null,1,null,null,null,null,null,null,null,null,null,null,null,null,null,null,null,null,null,null,null,null,null,null,null,null,null,null,null,null,null,null,null,null,null,null,null,null,null,null,null,null,null,271]
["2XX",1783,21,5,null,null,null,2,4,null,null,null,null,null,null,null,1,null,1,null,null,null,null,null,null,null,null,null,null,null,null,null,null,null,null,null,null,null,null,null,null,null,null,null,null,null,null,null,null,null,null,null,null,null,1,null,null,6,1824]
["3XX",11772,756,22,1,3,null,10,null,null,null,null,1,1,null,null,null,null,null,null,1,null,1,null,null,null,null,null,null,null,1,null,null,null,1,null,1,null,null,null,null,null,null,null,null,null,null,null,null,1,null,null,null,null,null,null,null,54,12626]
["4XX",67,0,3,null,null,1,1,null,1,null,null,null,null,null,null,null,null,null,null,null,null,null,null,1,null,null,null,1,null,null,null,1,null,null,1,null,null,null,null,null,null,null,null,null,1,null,null,null,null,null,null,null,null,null,1,null,null,79]
["5XX",530,19,2,2,null,null,null,1,null,null,null,null,null,null,null,1,null,null,null,null,null,null,null,null,null,null,null,null,null,null,null,null,null,null,null,null,null,null,null,null,null,null,null,null,null,null,null,null,null,null,null,null,null,null,null,null,6,561]
["6XX",4195,208,7,4,37,10,2,null,7,6,null,null,null,3,null,null,null,null,null,null,null,null,null,null,null,1,null,null,null,null,null,null,1,null,null,null,null,null,null,null,null,null,null,null,null,null,null,null,null,null,null,null,null,null,null,null,10,4491]
["7XX",3483,144,12,9,1,7,14,null,4,11,2,null,null,2,null,null,null,null,null,null,null,1,null,null,null,null,null,1,null,null,null,null,null,null,null,null,null,null,null,null,null,null,null,null,null,null,null,null,null,null,null,null,null,null,null,null,6,3697]
["8XX",960,28,4,null,null,1,1,3,null,null,1,null,1,null,null,null,null,null,null,null,2,null,null,null,1,null,null,null,null,null,null,null,null,null,null,null,null,null,null,null,null,null,null,1,null,null,null,null,null,null,null,null,null,null,null,null,3,1006]
["9XX",2093,53,3,1,null,3,6,null,2,1,null,3,null,null,null,null,null,1,null,null,null,null,null,null,null,null,1,null,null,null,null,null,null,null,null,null,null,null,null,null,null,null,null,null,null,null,null,null,null,null,null,1,null,null,null,null,4,2172]
["Non renseigné",6363,167,27,59,14,29,11,41,33,19,2,4,4,null,6,1,5,3,2,null,null,null,2,null,1,1,1,null,2,null,1,null,null,null,null,null,1,1,1,null,1,1,1,null,null,1,null,1,null,1,1,null,1,null,null,null,21,6830]
["Total général",34319,1679,88,82,57,53,52,51,50,41,10,8,6,6,6,5,5,5,3,3,2,2,2,2,2,2,2,2,2,1,1,null,1,1,1,1,1,1,1,1,1,1,1,1,1,1,1,1,1,1,1,1,1,1,1,null,114,36687]
[]
["Nombre de titres vivants par région France et thématique"]
[2018]
["Grandes classes","Grand Est","Nouvelle Aquitaine","Auvergne - Rhône Alpes","Normandie","Bourgogne - Franche-Comté","Bretagne","Centre - Val-de-Loire","Corse","Ile-de-France","Occitanie","Hauts-de-France","Pays de la Loire","Provence-Alpes-Côte d'Azur","Outre-mer","Autres","Total général"]
["0XX",150,203,280,72,104,100,70,16,1111,216,171,79,156,211,5,2944]
["1XX",10,17,22,5,10,4,5,null,158,24,5,4,14,2,null,280]
["2XX",202,134,254,80,102,96,65,1,396,131,203,84,50,15,null,1813]
["3XX",824,801,1155,392,486,419,344,22,4283,674,607,466,505,494,4,11476]
["4XX",3,1,6,22,3,3,null,null,27,5,1,null,5,null,null,76]
["5XX",34,46,46,15,19,17,30,2,216,38,11,21,29,10,null,534]
["6XX",273,206,279,108,109,121,97,7,2181,220,156,97,140,135,1,4130]
["7XX",179,333,328,72,114,93,69,2,1757,181,106,74,168,106,1,3583]
["8XX",46,77,86,21,37,33,24,1,385,64,30,40,82,19,null,945]
["9XX",204,218,248,75,131,82,120,8,536,156,142,92,109,40,2,2163]
["Non renseigné",354,430,398,157,180,127,133,9,3201,263,201,139,179,109,18,5898]
["Total général",2279,2466,3102,1019,1295,1095,957,68,14251,1972,1633,1096,1437,1141,31,33842]
[]
[2017]
["Grandes classes","Alsace - Champagne Ardennes - Lorraine","Aquitaine - Limousin - Poitou-Charentes","Auvergne - Rhône Alpes","Normandie","Bourgogne - Franche-Comté","Bretagne","Centre - Val-de-Loire","Corse","Ile-de-France","Midi-Pyrénées - Languedoc-Roussillon","Hauts-de-France","Pays de la Loire","Provence-Alpes-Côte d'Azur","Outre-mer","Autres","Total général"]
["0XX",155,200,289,79,108,91,74,19,1117,219,159,81,153,283,3,3030]
["1XX",10,14,20,5,10,4,5,1,154,22,4,5,15,2,null,271]
["2XX",204,148,251,82,101,91,61,1,409,134,203,77,51,22,null,1835]
["3XX",857,890,1263,414,523,424,363,24,4358,727,665,478,536,775,1,12298]
["4XX",3,1,5,21,3,2,null,null,26,5,1,null,4,0,null,71]
["5XX",34,44,48,14,17,16,26,3,221,38,13,20,27,19,null,540]
["6XX",284,207,291,114,118,126,108,10,2214,227,145,96,133,216,null,4289]
["7XX",183,323,320,62,121,87,71,6,1758,180,110,75,177,155,null,3628]
["8XX",47,74,86,16,37,33,28,1,387,68,31,41,97,29,null,975]
["9XX",201,214,241,78,132,86,113,8,532,162,144,94,100,56,null,2161]
["Non renseigné",383,462,423,169,200,142,148,13,3313,283,210,147,203,171,16,6283]
["Total général",2361,2577,3237,1054,1370,1102,997,86,14489,2065,1685,1114,1496,1728,20,{"$f":"SUM(Q175:Q185)","v":35381}]
[]
[2016]
["Grandes classes","Alsace - Champagne Ardennes - Lorraine","Aquitaine - Limousin - Poitou-Charentes","Auvergne - Rhône Alpes","Normandie","Bourgogne - Franche-Comté","Bretagne","Centre - Val-de-Loire","Corse","Ile-de-France","Midi-Pyrénées - Languedoc-Roussillon","Hauts-de-France","Pays de la Loire","Provence-Alpes-Côte d'Azur","Outre-mer","Autres","Total général"]
["0XX",158,210,293,72,105,97,73,18,1127,226,173,82,157,{"$f":"SUM(M190:N190)","v":239},37,3130]
["1XX",8,14,23,4,13,4,4,1,147,23,6,6,16,{"$f":"SUM(M191:N191)","v":22},null,271]
["2XX",205,154,248,85,100,89,67,1,393,135,186,77,52,129,7,1824]
["3XX",902,945,1300,420,535,441,374,28,4425,730,652,491,566,1057,35,12626]
["4XX",3,4,7,22,3,2,1,null,25,4,1,2,4,6,null,79]
["5XX",33,41,51,12,15,17,25,3,229,41,15,21,28,49,null,561]
["6XX",296,216,308,115,119,129,110,9,2323,244,141,103,131,234,15,4491]
["7XX",182,306,325,67,125,90,79,8,1770,179,120,79,172,251,22,3697]
["8XX",49,78,90,20,37,33,29,1,379,67,32,44,108,152,3,1006]
["9XX",190,222,240,79,136,83,111,9,522,164,155,91,105,196,3,2172]
["Non renseigné",414,490,468,184,216,149,153,15,3413,298,224,150,206,356,225,6830]
["Total général",2440,2680,3353,1080,1404,1134,1026,93,14753,2111,1705,1146,1545,1695,347,36687]

{"sheet":"V_lang","index":4,"n_rows":98,"n_cols":48,"rows_kept":98,"cut":false,"hidden":false,"merged":[[54,3,54,22],[69,3,69,22],[84,3,84,22],[84,23,84,45]]}
["Nombre de titres vivants par langue"]
["Langue",2016,2017,2018]
["allemand                                                                    ",70,63,67]
["anglais                                                                     ",669,645,643]
["arabe                                                                       ",20,18,18]
["arménien                                                                    ",2,3,3]
["basque                                                                      ",12,11,12]
["breton                                                                      ",15,17,17]
["catalan                                                                     ",6,6,5]
["chinois                                                                     ",25,23,22]
["coréen                                                                      ",2,2,2]
["corse                                                                       ",3,3,4]
["créole ou pidgin français                                                   ",2,2,3]
["danois                                                                      ",3,2,2]
["espagnol                                                                    ",75,69,69]
["espéranto                                                                   ",8,8,11]
["estonien",null,1,1]
["finnois                                                                     ",1,1,1]
["français",35392,34524,32993]
["hébreu                                                                      ",2,2,2]
["hongrois                                                                    ",1,1,1]
["ido",1,1,1]
["indéterminé",1,1,1]
["italien                                                                     ",59,58,58]
["japonais                                                                    ",8,7,8]
["latin                                                                       ",3,3,3]
["letton",null,null,1]
["lituanien",null,null,1]
["malgache",1,1,1]
["multilingue                                                                 ",142,139,133]
["néerlandais                                                                 ",17,15,17]
["non renseigné                                                            ",18,23,22]
["norvégien                                                                   ",1,1]
["occitan                                                                     ",32,34,33]
["occitan ancien                                                              ",1,1,1]
["persan                                                                      ",3,2,3]
["polonais                                                                    ",12,11,10]
["portugais                                                                   ",15,12,10]
["roumain                                                                     ",4,3,3]
["russe                                                                       ",28,29,29]
["slovaque                                                                    ",2,3,3]
["slovène                                                                     ",2,2,2]
["suédois                                                                     ",2,2,1]
["tchèque                                                                     ",3,2,2]
["thaï                                                                        ",2,1,1]
["tibétain",null,null,1]
["turc                                                                        ",12,11,11]
["ukrainien",1,3,3]
["vietnamien                                                                  ",7,6,5]
["yiddish                                                                     ",1]
["Total ",36687,35772,34240]
["Source : Entrées dépôt légal - logiciel de bulletinage"]
[]
["Nombre de titres vivants par langue et thématique"]
[2018,"Langues"]
["Grandes classes","français","anglais                                                                     ","multilingue                                                                 ","espagnol                                                                    ","allemand                                                                    ","italien                                                                     ","occitan                                                                     ","russe                                                                       ","chinois                                                                     ","arabe                                                                       ","néerlandais                                                                 ","portugais                                                                   ","breton                                                                      ","turc                                                                        ","polonais                                                                    ","basque                                                                      ","japonais                                                                    ","espéranto                                                                   ","vietnamien                                                                  ","catalan                                                                     ","roumain                                                                     ","coréen                                                                      ","corse                                                                       ","danois                                                                      ","tchèque                                                                     ","latin                                                                       ","persan                                                                      ","slovaque                                                                    ","suédois                                                                     ","slovène                                                                     ","créole ou pidgin français                                                   ","arménien                                                                    ","thaï                                                                        ","occitan ancien                                                              ","ido                                                                         ","hébreu                                                                      ","hongrois                                                                    ","malgache                                                                    ","ukrainien","finnois","estonien","letton","lituanien","tibétain","Indéterminé","Non renseigné                                                            ","Total général"]
["0XX",2845,61,4,4,1,3,9,4,9,2,1,2,3,2,1,3,1,null,1,1,1,2,3,null,null,null,null,1,null,null,null,null,null,null,null,null,null,1,null,null,null,null,null,1,null,3,2969]
["1XX",273,3,1,null,1,null,null,null,null,null,null,null,null,null,null,null,null,null,null,null,null,null,null,null,null,2,null,null,null,null,null,null,null,null,null,null,null,null,null,null,null,null,null,null,null,1,281]
["2XX",1782,8,1,5,5,4,null,1,2,1,1,1,1,null,null,null,null,null,1,1,null,null,null,1,null,null,1,null,null,null,1,1,null,null,null,null,null,null,null,null,null,null,null,null,null,null,1818]
["3XX",11240,174,5,10,9,5,5,8,3,2,5,3,1,2,3,1,null,2,null,1,2,null,null,1,1,null,2,1,1,2,null,1,1,null,null,null,1,null,2,1,1,1,1,null,null,2,11500]
["4XX",71,1,null,null,null,null,null,null,null,null,null,null,null,null,null,null,null,2,null,1,null,null,null,null,null,null,null,null,null,null,null,null,null,null,1,null,null,null,null,null,null,null,null,null,null,1,77]
["5XX",486,52,4,1,1,null,null,1,1,null,null,null,null,null,null,null,null,null,null,null,null,null,null,null,null,null,null,null,null,null,null,null,null,null,null,null,null,null,null,null,null,null,null,null,null,1,547]
["6XX",3971,123,2,23,9,9,null,1,1,null,4,2,null,1,null,3,3,null,null,null,null,null,null,null,null,null,null,null,null,null,null,null,null,null,null,null,null,null,null,null,null,null,null,null,null,2,4154]
["7XX",3521,76,1,4,7,4,1,null,3,null,null,1,null,null,1,1,null,null,null,null,null,null,null,null,1,null,null,null,null,null,1,null,null,1,null,null,null,null,null,null,null,null,null,null,null,2,3625]
["8XX",914,10,5,null,1,null,5,2,1,1,null,null,3,null,1,1,null,3,null,null,null,null,1,null,null,null,null,null,null,null,1,null,null,null,null,1,null,null,null,null,null,null,null,null,null,4,954]
["9XX",2123,21,3,3,8,1,5,1,null,null,1,null,2,null,1,null,1,null,null,null,null,null,null,null,null,null,null,null,null,null,null,null,null,null,null,1,null,null,null,null,null,null,null,null,null,1,2172]
["Non renseigné",5767,114,107,19,25,32,8,11,2,12,5,1,7,6,3,3,3,4,3,1,null,null,null,null,null,1,null,1,null,null,null,1,null,null,null,null,null,null,1,null,null,null,null,null,1,5,6143]
["Total général",32993,643,133,69,67,58,33,29,22,18,17,10,17,11,10,12,8,11,5,5,3,2,4,2,2,3,3,3,1,2,3,3,1,1,1,2,1,1,3,1,1,1,1,1,1,22,34240]
[]
[2017,"Langues"]
["Grandes classes","français","anglais                                                                     ","multilingue                                                                 ","espagnol                                                                    ","allemand                                                                    ","italien                                                                     ","occitan                                                                     ","russe                                                                       ","chinois                                                                     ","arabe                                                                       ","néerlandais                                                                 ","portugais                                                                   ","breton                                                                      ","turc                                                                        ","polonais                                                                    ","basque                                                                      ","japonais                                                                    ","espéranto                                                                   ","vietnamien                                                                  ","catalan                                                                     ","roumain                                                                     ","coréen                                                                      ","corse                                                                       ","danois                                                                      ","tchèque                                                                     ","latin                                                                       ","persan                                                                      ","slovaque                                                                    ","suédois                                                                     ","slovène                                                                     ","créole ou pidgin français                                                   ","arménien                                                                    ","thaï                                                                        ","occitan ancien                                                              ","ido                                                                         ","norvégien                                                                   ","finnois                                                                     ","hébreu                                                                      ","hongrois                                                                    ","malgache                                                                    ","ukrainien","estonien","Indéterminé","Non renseigné                                                            ","Total général"]
["0XX",2917,72,3,4,1,4,10,4,10,2,1,3,3,2,2,3,1,null,1,1,1,2,2,null,null,null,null,1,1,null,null,null,null,null,null,1,null,null,null,1,null,null,null,2,3055]
["1XX",265,2,1,null,1,null,null,null,null,null,null,null,null,null,null,null,null,null,null,null,null,null,null,null,null,2,null,null,null,null,null,null,null,null,null,null,null,null,null,null,null,null,null,1,272]
["2XX",1805,8,1,4,5,4,null,1,2,1,1,1,1,null,null,null,null,null,2,1,null,null,null,1,null,null,null,null,null,null,null,1,null,null,null,null,null,null,null,null,null,null,null,null,1839]
["3XX",12073,166,5,11,8,4,5,8,3,2,5,4,1,2,3,1,null,1,null,1,2,null,null,1,1,null,2,1,1,2,null,1,1,null,null,null,1,null,1,null,2,1,null,2,12322]
["4XX",68,1,null,null,null,null,null,null,null,null,null,null,null,null,null,null,null,null,null,1,null,null,null,null,null,null,null,null,null,null,null,null,null,null,1,null,null,null,null,null,null,null,null,1,72]
["5XX",488,56,5,null,1,null,null,1,1,null,null,null,null,null,null,null,null,null,null,null,null,null,null,null,null,null,null,null,null,null,null,null,null,null,null,null,null,null,null,null,null,null,null,1,553]
["6XX",4134,120,2,23,9,9,null,1,1,null,3,2,null,1,null,3,2,null,null,null,null,null,null,null,null,null,null,null,null,null,null,null,null,null,null,null,null,null,null,null,null,null,null,3,4313]
["7XX",3564,79,1,4,6,4,1,null,3,null,null,1,null,null,1,null,null,null,null,null,null,null,null,null,1,null,null,null,null,null,null,null,null,null,null,null,null,null,null,null,null,null,null,3,3668]
["8XX",942,10,5,1,1,null,5,2,1,1,null,null,3,null,1,1,null,3,null,null,null,null,1,null,null,null,null,null,null,null,2,null,null,null,null,null,null,1,null,null,null,null,null,3,983]
["9XX",2127,16,4,3,6,1,5,1,null,null,null,null,2,null,1,null,1,null,null,1,null,null,null,null,null,null,null,null,null,null,null,null,null,null,null,null,null,1,null,null,null,null,null,1,2170]
["Non renseigné",6141,115,112,19,25,32,8,11,2,12,5,1,7,6,3,3,3,4,3,1,null,null,null,null,null,1,null,1,null,null,null,1,null,1,null,null,null,null,null,null,1,null,1,6,6525]
["Total général",34524,645,139,69,63,58,34,29,23,18,15,12,17,11,11,11,7,8,6,6,3,2,3,2,2,3,2,3,2,2,2,3,1,1,1,1,1,2,1,1,3,1,1,23,35772]
[]
[2016,"Langues"]
["Grandes classes","français","anglais                                                                     ","multilingue                                                                 ","espagnol                                                                    ","allemand                                                                    ","italien                                                                     ","occitan                                                                     ","russe                                                                       ","chinois                                                                     ","arabe                                                                       ","néerlandais                                                                 ","portugais                                                                   ","breton                                                                      ","turc                                                                        ","polonais                                                                    ","basque                                                                      ","japonais                                                                    ","espéranto                                                                   ","vietnamien                                                                  ","catalan                                                                     ","roumain                                                                     ","coréen                                                                      ","corse                                                                       ","danois                                                                      ","tchèque                                                                     ","latin                                                                       ","persan                                                                      ","slovaque                                                                    ","suédois                                                                     ","slovène                                                                     ","créole ou pidgin français                                                   ","arménien                                                                    ","thaï                                                                        ","occitan ancien                                                              ","ido                                                                         ","égyptien                                                                    ","norvégien                                                                   ","finnois                                                                     ","hébreu                                                                      ","yiddish                                                                     ","hongrois                                                                    ","malgache                                                                    ","ukrainien","Indéterminé","Non renseigné                                                            ","Total général"]
["0XX",2987,69,3,2,1,6,9,4,11,3,2,5,3,3,3,3,2,null,1,1,2,2,2,null,1,null,null,null,1,null,null,null,1,null,null,null,1,null,null,1,null,1,null,null,null,3130]
["1XX",266,2,null,null,1,null,null,null,null,null,null,null,null,null,null,null,null,null,null,null,null,null,null,null,null,2,null,null,null,null,null,null,null,null,null,null,null,null,null,null,null,null,null,null,null,271]
["2XX",1791,7,2,4,5,4,null,1,2,1,1,null,1,null,null,null,null,null,2,1,null,null,null,1,null,null,null,null,null,null,null,null,null,null,null,null,null,null,null,null,null,null,null,null,1,1824]
["3XX",12360,177,5,15,10,5,5,7,3,3,3,5,1,2,4,1,null,1,1,1,2,null,null,1,1,null,3,1,1,2,null,1,1,null,null,null,null,1,null,null,1,null,1,null,1,12626]
["4XX",74,1,null,null,null,null,1,null,null,null,null,null,null,null,null,null,null,null,null,1,null,null,null,null,null,null,null,null,null,null,null,null,null,null,1,null,null,null,null,null,null,null,null,null,1,79]
["5XX",494,56,7,null,1,null,null,1,1,null,null,null,null,null,null,null,null,null,null,null,null,null,null,null,null,null,null,null,null,null,null,null,null,null,null,null,null,null,null,null,null,null,null,null,1,561]
["6XX",4303,128,2,24,10,8,null,1,2,null,3,2,null,1,null,3,2,null,null,null,null,null,null,null,null,null,null,null,null,null,null,null,null,null,null,null,null,null,null,null,null,null,null,null,2,4491]
["7XX",3580,84,1,7,10,3,1,null,3,null,2,1,null,null,1,null,null,null,null,null,null,null,null,1,1,null,null,null,null,null,null,null,null,null,null,null,null,null,null,null,null,null,null,null,2,3697]
["8XX",967,10,4,1,1,null,4,1,1,1,null,null,2,null,1,1,1,3,null,null,null,null,1,null,null,null,null,null,null,null,2,null,null,null,null,1,null,null,1,null,null,null,null,null,3,1006]
["9XX",2128,16,5,3,6,1,4,2,null,null,1,null,2,null,null,null,1,null,null,1,null,null,null,null,null,null,null,null,null,null,null,null,null,null,null,null,null,null,1,null,null,null,null,null,1,2172]
["Non renseigné",6442,119,113,19,25,32,8,11,2,12,5,2,6,6,3,4,2,4,3,1,null,null,null,null,null,1,null,1,null,null,null,1,null,1,null,null,null,null,null,null,null,null,null,1,6,6829]
["Total général",35392,669,142,75,70,59,32,28,25,20,17,15,15,12,12,12,8,8,7,6,4,2,3,3,3,3,3,2,2,2,2,2,2,1,1,1,1,1,2,1,1,1,1,1,18,36687]

{"sheet":"V_pér","index":5,"n_rows":595,"n_cols":22,"rows_kept":595,"cut":false,"hidden":false,"merged":[[23,3,23,4],[23,5,23,21],[480,3,480,4],[480,5,480,21],[137,3,137,4],[137,5,137,21],[252,3,252,4],[252,5,252,21],[366,3,366,4],[366,5,366,21]]}
["Nombre de titres vivants par périodicité"]
["Périodicité",2016,2017,2018]
["Quotidien",227,219,211]
["5 jours par semaine"]
["3 fois par semaine",7,6,5]
["Semi-hebdomadaire",21,20,16]
["Hebdomadaire",994,986,940]
["3 fois par mois",18,18,5]
["Bimensuel, ttes les 2 semaines",367,343,321]
["Mensuel",3491,3418,3078]
["Septembre à juin",3]
["Bimestriel",3796,3830,3545]
["Trimestriel",7424,7108,6856]
["3 fois par an",2655,2697,2507]
["Semestriel",5763,5550,5445]
["Annuel",10079,9853,9658]
["Biennal",863,787,765]
["Triennal",601,570,540]
["Irrégulier, Autres périodes",378,367,348]
["Total",36687,35772,32240]
["Source : Entrées dépôt légal - logiciel de bulletinage"]
[]
["Nombre de titres vivants par périodicité et thématique"]
[2018,null,null,null,null,"Total"]
["Grandes classes","Indices","Intitulés","01-Triennal","02-Biennal","03-Annuel","04-Semestriel","05-3 fois par an","06-Trimestriel","07-Bimestriel","08-Septembre à juin","09-Mensuel","10-Bimensuel, ttes les 2 semaines","11-septembre à juin","12-3 fois par mois","13-Hebdomadaire","14-Semi-hebdomadaire","15-3 fois par semaine","16-5 jours par semaine","17-Quotidien","18-Irrégulier, Autres périodes","Total général"]
["0XX","000","Généralités, collections encyclopédiques",2,null,18,9,10,8,18,null,16,null,null,null,4,null,null,null,2,1,88]
[null,"001","Culture générale",1,3,37,14,3,18,4,null,10,null,null,null,null,null,null,null,null,null,90]
[null,"004","Informatique",null,1,21,15,4,30,20,null,12,null,1,null,null,null,null,null,2,4,110]
[null,"010","Bibliographie, catalogues",1,1,9,4,1,null,null,null,1,null,null,null,null,null,null,null,null,1,18]
[null,"020","Sciences de l'information, lecture",2,1,25,17,10,7,5,null,1,null,null,null,null,null,null,null,null,null,68]
[null,"060","Instituts de recherche, archives, musées",11,8,68,26,9,10,2,null,4,null,null,null,null,null,null,null,null,1,139]
[null,"070","Édition, médias, librairie",4,4,61,36,13,32,19,null,35,2,5,1,75,1,null,null,17,3,308]
[null,"071","Magazines généraux",null,5,67,53,23,110,104,null,79,2,7,null,30,null,null,null,1,8,489]
[null,"072","Publications féminines, publications masculines",null,2,17,28,9,57,40,null,42,null,null,null,7,null,null,null,null,4,206]
[null,"073","Presse et collections documentaires pour enfants et adolescents",null,3,49,45,16,105,50,null,40,3,7,null,5,null,null,null,null,4,327]
[null,"074","Presse nationale et locale d’information",1,1,15,13,3,21,27,null,49,6,10,null,188,3,2,null,44,5,388]
[null,"075","Presse parallèle, fanzines",4,4,33,20,11,8,2,null,12,null,2,null,null,null,null,null,null,2,98]
[null,"076","Journaux internes d’entreprise ",1,null,42,130,96,164,58,null,44,null,null,null,1,null,null,null,null,4,540]
[null,"077","Journaux d’annonces",null,null,2,5,6,7,11,null,41,3,10,null,7,1,null,null,1,null,94]
[null,"090","Bibliophilie",null,null,2,1,1,null,1,null,null,null,null,null,null,null,null,null,null,1,6]
["Total 0XX",null,null,27,33,466,416,215,577,361,null,386,16,42,1,317,5,2,null,67,38,2969]
["1XX","100","Philosophie",3,3,35,19,5,31,4,null,1,null,null,null,null,null,null,null,null,null,101]
[null,"130","Ésotérisme et sciences occultes",1,1,12,6,null,18,5,null,3,null,null,null,1,null,null,null,null,1,48]
[null,"150","Psychologie et psychanalyse",4,1,35,35,8,30,14,null,5,null,null,null,null,null,null,null,null,null,132]
["Total 1XX",null,null,8,5,82,60,13,79,23,null,9,null,null,null,1,null,null,null,null,1,281]
["2XX","200","Religion",1,2,17,17,8,30,10,null,9,null,null,null,null,null,null,null,null,null,94]
[null,"280","Églises chrétiennes",9,4,167,128,141,543,235,null,377,4,12,1,31,null,null,null,1,7,1660]
[null,"294","Hindouisme, bouddhisme",1,null,3,2,1,1,1,null,2,null,null,null,null,null,null,null,null,null,11]
[null,"296","Judaïsme",null,1,3,3,1,7,3,null,null,null,null,null,1,null,null,null,null,null,19]
[null,"297","Islam",1,null,5,2,1,1,null,null,null,null,null,null,null,null,null,null,null,1,11]
[null,"299","Autres religions",null,1,5,3,1,3,3,null,5,null,1,null,null,null,null,null,null,1,23]
["Total 2XX",null,null,12,8,200,155,153,585,252,null,393,4,13,1,32,null,null,null,1,9,1818]
["3XX","300","Sciences sociales, sociologie",5,11,113,57,24,41,15,null,12,null,2,null,3,null,null,null,null,2,285]
[null,"320","Sciences politiques et gouvernement",5,6,86,52,14,47,18,null,17,1,2,null,7,null,null,null,1,5,261]
[null,"323","Droits civils et politiques, citoyenneté, minorités",1,6,49,21,12,19,15,null,7,null,null,null,2,null,1,null,null,5,138]
[null,"324","Partis et mouvements politiques",1,null,18,25,15,34,31,null,21,1,2,null,7,null,null,null,null,2,157]
[null,"327","Politique internationale",null,1,16,13,7,16,10,null,5,1,2,null,null,null,null,null,null,2,73]
[null,"330","Économie (généralités)",15,5,145,42,18,35,29,null,20,1,3,1,2,null,1,null,null,7,324]
[null,"331","Économie du travail, syndicats",21,7,148,137,111,427,172,null,104,1,7,1,6,null,null,null,null,49,1191]
[null,"332","Économie financière",2,1,91,43,25,47,11,null,36,null,4,null,14,null,null,null,3,2,279]
[null,"333","Économie du foncier et de l'énergie",3,7,161,93,52,64,37,null,24,null,2,null,1,null,null,null,1,5,450]
[null,"338","Économie de la production et de la consommation",7,13,234,60,39,88,70,null,44,1,7,null,16,null,1,null,null,9,589]
[null,"340","Droit",12,13,171,97,41,121,41,null,95,null,9,null,19,1,null,null,3,9,632]
[null,"350","Administration publique",2,7,93,15,9,20,9,null,14,null,null,null,1,null,null,null,null,1,171]
[null,"352","Administration territoriale",49,41,494,396,173,284,135,null,98,2,2,null,2,null,null,null,null,12,1688]
[null,"355","Armée, défense",1,8,74,50,22,43,21,null,8,2,1,null,5,null,null,null,null,10,245]
[null,"362","Problèmes et services sociaux",9,23,520,316,188,375,86,null,53,1,2,null,2,null,null,null,null,8,1583]
[null,"363","Protection de l’environnement",15,29,360,200,57,94,33,null,13,null,null,null,1,null,null,null,null,3,805]
[null,"366","Associations, cercles et clubs divers",8,11,139,146,78,111,26,null,20,1,1,null,1,null,null,null,null,4,546]
[null,"368","Assurances, sécurité sociale, retraites",2,3,123,116,53,90,23,null,11,null,null,null,1,null,null,null,null,8,430]
[null,"370","Éducation, enseignement",10,3,88,32,14,23,7,null,11,1,1,null,1,null,null,null,null,null,191]
[null,"371","Organisation scolaire, pédagogie, parents d’élèves",1,4,104,28,10,11,11,null,8,null,null,null,null,null,null,null,null,1,178]
[null,"373","Enseignement primaire, enseignement secondaire général et technique, journaux scolaires",6,3,120,41,29,12,16,null,7,null,null,null,null,null,null,null,null,2,236]
[null,"374","Formation professionnelle et continue",null,null,25,9,3,6,4,null,1,null,1,null,null,null,null,null,null,null,49]
[null,"378","Enseignement supérieur",8,20,121,27,28,18,14,null,16,1,null,null,1,null,null,null,null,2,256]
[null,"380","Commerce",null,3,96,27,14,46,32,null,32,1,null,null,2,null,null,null,null,2,255]
[null,"383","Moyens de communication",null,2,18,6,13,6,6,null,2,null,null,null,null,null,null,null,null,null,53]
[null,"385","Transports",8,5,125,86,25,62,38,null,25,5,10,null,8,null,null,null,null,2,399]
[null,"390","Ethnologie, anthropologie, folklore",null,2,11,5,4,11,3,null,null,null,null,null,null,null,null,null,null,null,36]
["Total 3XX",null,null,191,234,3743,2140,1078,2151,913,null,704,20,58,2,102,1,3,null,8,152,{"$f":"SUM(D80:U80)","v":11500}]
["4XX","400","Linguistique",6,1,41,14,1,6,4,null,3,null,1,null,null,null,null,null,null,null,77]
["Total 4XX",null,null,6,1,41,14,1,6,4,null,3,null,1,null,null,null,null,null,null,null,77]
["5XX","500","Sciences (généralités)",3,2,32,21,4,29,13,null,7,null,null,null,null,null,null,null,null,null,111]
[null,"510","Mathématiques",null,null,11,3,2,8,1,null,3,null,null,null,null,null,null,null,null,null,28]
[null,"520","Astronomie",1,null,9,5,3,8,2,null,1,null,null,null,1,null,null,null,null,null,30]
[null,"530","Physique",1,1,5,3,null,2,2,null,6,null,null,null,null,null,null,null,null,null,20]
[null,"540","Chimie, minéralogie",1,1,9,5,1,2,2,null,2,null,null,null,1,null,null,null,null,null,24]
[null,"550","Sciences de la terre",5,2,35,7,2,8,1,null,4,null,null,null,null,null,null,null,null,1,65]
[null,"560","Paléontologie",1,null,3,null,null,3,null,null,null,null,null,null,null,null,null,null,null,null,7]
[null,"570","Sciences de la vie",2,2,19,7,3,9,5,null,2,null,null,null,null,null,null,null,null,2,51]
[null,"580","Botanique",3,6,33,15,5,10,1,null,3,null,null,null,null,null,null,null,null,1,77]
[null,"590","Zoologie",8,3,48,29,11,23,9,null,1,null,1,null,null,null,null,null,null,1,134]
["Total 5XX",null,null,25,17,204,95,31,102,36,null,29,null,1,null,2,null,null,null,null,5,547]
["6XX","600","Sciences appliquées, technologie",null,2,12,6,5,11,6,null,5,null,null,null,null,null,null,null,null,null,47]
[null,"610","Médecine, santé",11,41,324,207,107,294,163,null,96,null,6,null,3,null,null,null,1,16,1269]
[null,"620","Sciences de l'ingénieur",6,12,88,59,21,52,46,null,32,2,1,null,3,null,null,null,null,15,337]
[null,"630","Agriculture, élevage",21,21,435,165,93,197,69,null,88,null,4,null,31,null,null,null,null,8,1132]
[null,"640","Économie domestique/vie pratique, hôtellerie",6,8,109,75,19,168,90,null,44,null,2,null,7,null,null,null,null,2,530]
[null,"650","Gestion et organisation des entreprises, publicité",4,8,115,61,21,75,28,null,44,1,6,null,null,null,null,null,null,2,365]
[null,"660","Génie chimique et technologies connexes",null,1,15,12,3,8,4,null,2,null,null,null,null,null,null,null,null,null,45]
[null,"670","Industries et métiers divers",2,9,50,35,10,41,42,null,37,null,null,null,4,null,null,null,null,1,231]
[null,"690","Bâtiment",4,10,60,28,17,34,30,null,10,null,null,null,5,null,null,null,null,null,198]
["Total 6XX",null,null,54,112,1208,648,296,880,478,null,358,3,19,null,53,null,null,null,1,44,{"$f":"SUM(V94:V102)","v":4154}]
["7XX","700","Arts (généralités)",8,26,181,101,26,48,69,null,33,null,2,null,1,null,null,null,null,2,497]
[null,"710","Urbanisme, aménagement du territoire",5,7,78,41,11,20,6,null,6,null,2,null,null,null,null,null,null,4,180]
[null,"720","Architecture",4,22,59,21,1,19,13,null,4,null,null,null,null,null,null,null,null,1,144]
[null,"730","Arts plastiques, sculpture",1,3,18,6,1,3,2,null,2,null,null,null,null,null,null,null,null,2,38]
[null,"740","Dessin, arts décoratifs, artisanat d’art, bandes dessinées (histoire et critique)",1,17,59,44,13,97,53,null,7,null,2,null,2,null,null,null,null,1,296]
[null,"750","Peinture, arts graphiques",2,8,30,12,4,17,7,null,null,1,null,null,null,null,null,null,null,2,83]
[null,"770","Photographie",1,6,43,30,5,12,13,null,3,null,null,null,null,null,null,null,null,null,113]
[null,"778","Érotisme, pornographie",null,null,5,1,1,5,5,null,1,null,null,null,null,null,null,null,null,null,18]
[null,"780","Musique",7,7,54,33,7,42,22,null,12,null,null,null,null,null,null,null,1,3,188]
[null,"790","Spectacles (généralités), loisirs",2,3,34,15,8,36,41,null,30,3,6,null,11,null,null,null,1,1,191]
[null,"791","Audiovisuel",1,8,79,25,7,24,28,null,21,1,2,null,10,null,null,null,2,null,208]
[null,"792","Représentations scéniques",2,5,19,15,4,7,9,null,2,null,1,null,null,null,null,null,null,1,65]
[null,"793","Jeux et divertissements d'intérieur",2,2,63,35,24,182,267,null,37,7,6,null,8,null,null,null,null,1,634]
[null,"796","Sports, activités de plein air",16,14,294,115,57,195,155,null,84,4,8,null,15,null,null,null,7,6,970]
["Total 7XX",null,null,52,128,1016,494,169,707,690,null,242,16,29,null,47,null,null,null,11,24,3625]
["8XX","800","Littérature générale, histoire et critique littéraires, revues littéraires",24,33,335,146,33,63,13,null,15,null,1,null,null,null,null,null,1,9,673]
[null,"801","Poésie",1,7,60,16,12,8,1,null,4,null,null,null,null,null,null,null,null,1,110]
[null,"802","Théâtre",null,null,3,2,null,null,null,null,null,null,null,null,null,null,null,null,null,null,5]
[null,"803","Roman et fiction romanesque",null,null,5,null,null,null,null,null,null,null,null,null,null,null,null,null,null,null,5]
[null,"804","Essais littéraires et écrits divers",null,null,6,5,null,1,2,null,2,null,null,null,null,null,null,null,null,null,16]
[null,"805","Bandes dessinées",5,4,47,22,5,11,11,null,16,null,null,null,null,null,null,null,null,1,122]
[null,"809","Littérature pour la jeunesse",null,null,7,4,null,6,2,null,3,null,null,null,1,null,null,null,null,null,23]
["Total 8XX",null,null,30,44,463,195,50,89,29,null,40,null,1,null,1,null,null,null,1,11,954]
["9XX","900","Histoire et géographie (généralités) ",10,11,76,32,9,54,13,null,2,null,null,null,null,null,null,null,null,4,211]
[null,"910","Géographie, voyages, tourisme",4,6,137,47,10,78,23,null,14,1,2,null,null,null,null,null,null,2,324]
[null,"920","Biographies",null,3,2,null,null,1,null,null,null,null,null,null,null,null,null,null,null,null,6]
[null,"929","GénéalogieHistoire ancienne, archéologie",5,2,28,30,18,60,1,null,3,null,null,null,null,null,null,null,null,2,149]
[null,"930","Histoire ancienne, archéologie, préhistoire",15,12,87,36,2,9,3,null,1,null,null,null,null,null,null,null,null,null,165]
[null,"940","Histoire médiévale, moderne et contemporaine",3,9,59,43,10,33,7,null,2,null,1,null,1,null,null,null,null,2,170]
[null,"944","Histoire de France, histoire locale",41,60,637,230,44,100,18,null,10,null,null,null,null,null,null,null,null,7,1147]
["Total 9XX",null,null,78,103,1026,418,93,335,65,null,32,1,3,null,1,null,null,null,null,17,2172]
["Non renseigné",null,null,57,80,1209,810,408,1345,694,null,882,18,76,1,384,10,null,null,122,47,6143]
["Total général"]
[]
[2017,null,null,null,null,"Total"]
["Grandes classes","Indices","Intitulés","01-Triennal","02-Biennal","03-Annuel","04-Semestriel","05-3 fois par an","06-Trimestriel","07-Bimestriel","08-Septembre à juin","09-Mensuel","10-Bimensuel, ttes les 2 semaines","11-septembre à juin","12-3 fois par mois","13-Hebdomadaire","14-Semi-hebdomadaire","15-3 fois par semaine","16-5 jours par semaine","17-Quotidien","18-Irrégulier, Autres périodes","Total général"]
["0XX","000","Généralités, collections encyclopédiques",2,null,20,9,9,9,18,null,17,null,null,null,5,null,null,null,2,1,92]
[null,"001","Culture générale",1,2,35,15,5,12,3,null,8,null,null,null,null,null,null,null,null,null,81]
[null,"004","Informatique",null,1,26,14,5,30,23,null,13,null,1,null,null,null,null,null,2,4,119]
[null,"010","Bibliographie, catalogues",2,1,8,3,1,null,null,null,1,null,null,null,null,null,null,null,null,1,17]
[null,"020","Sciences de l'information, lecture",1,2,24,18,9,13,5,null,4,null,null,null,null,null,null,null,null,null,76]
[null,"060","Instituts de recherche, archives, musées",12,9,53,29,9,10,3,null,5,null,null,null,null,null,null,null,null,1,131]
[null,"070","Édition, médias, librairie",4,4,56,31,16,35,23,null,39,1,6,1,73,1,null,null,17,4,311]
[null,"071","Magazines généraux",null,5,69,56,26,100,108,null,83,4,9,null,31,null,1,null,2,8,502]
[null,"072","Publications féminines, publications masculines",null,2,16,24,11,53,40,null,45,null,null,null,7,null,null,null,null,4,202]
[null,"073","Presse et collections documentaires pour enfants et adolescents",null,1,46,39,18,104,66,null,40,3,6,null,4,null,null,null,null,4,331]
[null,"074","Presse nationale et locale d’information",1,null,18,9,5,20,36,null,56,3,8,null,194,3,2,null,41,4,400]
[null,"075","Presse parallèle, fanzines",3,5,30,15,6,6,4,null,10,null,1,null,null,null,null,null,null,1,81]
[null,"076","Journaux internes d’entreprise ",1,null,43,148,120,173,61,null,53,null,null,null,1,null,null,null,null,5,605]
[null,"077","Journaux d’annonces",null,null,2,4,6,10,12,null,44,3,11,null,7,1,null,null,1,null,101]
[null,"090","Bibliophilie",null,null,1,2,1,null,1,null,null,null,null,null,null,null,null,null,null,1,6]
["Total 0XX",null,null,27,32,447,416,247,575,403,null,418,14,42,1,322,5,3,null,65,38,3055]
["1XX","100","Philosophie",4,4,33,19,4,27,5,null,1,null,null,null,null,null,null,null,null,null,97]
[null,"130","Ésotérisme et sciences occultes",1,null,12,4,1,20,3,null,3,null,null,null,1,null,null,null,null,1,46]
[null,"150","Psychologie et psychanalyse",5,1,36,33,10,27,12,null,5,null,null,null,null,null,null,null,null,null,129]
["Total 1XX",null,null,10,5,81,56,15,74,20,null,9,null,null,null,1,null,null,null,null,1,272]
["2XX","200","Religion",2,2,19,18,10,28,10,null,9,null,null,null,null,null,null,null,null,null,98]
[null,"280","Églises chrétiennes",10,4,158,126,135,551,245,null,391,3,16,2,29,null,null,null,1,6,1677]
[null,"294","Hindouisme, bouddhisme",1,null,3,2,1,1,1,null,2,null,null,null,null,null,null,null,null,null,11]
[null,"296","Judaïsme",1,null,4,2,1,6,3,null,null,null,1,null,1,null,null,null,null,null,19]
[null,"297","Islam",null,null,4,3,1,2,null,null,null,null,null,null,null,null,null,null,null,1,11]
[null,"299","Autres religions",null,1,5,3,1,4,3,null,4,null,1,null,null,null,null,null,null,1,23]
["Total 2XX",null,null,14,7,193,154,149,592,262,null,406,3,18,2,30,null,null,null,1,8,1839]
["3XX","300","Sciences sociales, sociologie",5,14,98,70,24,43,18,null,13,null,2,null,1,null,null,null,null,2,290]
[null,"320","Sciences politiques et gouvernement",6,8,76,44,18,48,17,null,19,2,1,null,6,null,null,null,1,8,254]
[null,"323","Droits civils et politiques, citoyenneté, minorités",1,6,38,18,11,19,14,null,7,null,null,null,2,null,1,null,null,5,122]
[null,"324","Partis et mouvements politiques",2,null,26,27,20,38,33,null,25,1,3,null,8,null,null,null,null,3,186]
[null,"327","Politique internationale",null,1,14,17,6,21,9,null,6,2,2,null,null,null,null,null,null,3,81]
[null,"330","Économie (généralités)",13,6,182,43,18,42,33,null,26,null,4,1,5,null,1,null,null,8,382]
[null,"331","Économie du travail, syndicats",22,7,151,143,117,423,185,null,115,null,8,1,7,null,null,null,null,58,1237]
[null,"332","Économie financière",1,3,93,46,29,57,15,null,36,null,5,null,14,null,null,null,3,2,304]
[null,"333","Économie du foncier et de l'énergie",2,10,169,90,57,75,37,null,33,null,2,null,3,null,null,null,2,5,485]
[null,"338","Économie de la production et de la consommation",7,15,219,57,38,93,68,null,50,1,8,null,16,null,1,null,null,9,582]
[null,"340","Droit",14,14,176,97,48,126,42,null,101,null,9,null,19,1,null,null,3,8,658]
[null,"350","Administration publique",4,8,95,18,8,28,8,null,14,null,2,null,1,null,null,null,null,1,187]
[null,"352","Administration territoriale",49,44,695,431,197,345,178,null,228,15,4,7,11,1,null,null,1,14,2220]
[null,"355","Armée, défense",1,8,79,53,22,47,21,null,11,2,1,null,4,null,null,null,null,10,259]
[null,"362","Problèmes et services sociaux",14,28,399,339,195,389,92,null,50,null,2,null,1,null,null,null,null,7,1516]
[null,"363","Protection de l’environnement",15,27,361,218,53,94,37,null,13,null,null,null,1,null,null,null,null,3,822]
[null,"366","Associations, cercles et clubs divers",9,12,135,137,81,130,30,null,28,null,1,null,1,null,null,null,null,3,567]
[null,"368","Assurances, sécurité sociale, retraites",2,5,132,105,62,87,19,null,15,null,null,null,1,1,null,null,null,8,437]
[null,"370","Éducation, enseignement",11,2,108,31,15,22,9,null,12,1,2,null,1,null,null,null,null,null,214]
[null,"371","Organisation scolaire, pédagogie, parents d’élèves",1,4,111,31,11,15,12,null,9,null,null,null,null,null,null,null,null,2,196]
[null,"373","Enseignement primaire, enseignement secondaire général et technique, journaux scolaires",7,4,127,33,22,20,15,null,12,null,null,null,1,null,null,null,null,2,243]
[null,"374","Formation professionnelle et continue",null,null,21,10,5,9,3,null,1,null,1,null,null,null,null,null,null,null,50]
[null,"378","Enseignement supérieur",9,17,119,28,27,21,14,null,16,1,1,null,1,null,null,null,null,2,256]
[null,"380","Commerce",1,4,97,23,12,39,36,null,31,1,null,null,3,null,null,null,null,3,250]
[null,"383","Moyens de communication",1,1,16,8,4,19,9,null,3,null,null,null,null,null,null,null,null,null,61]
[null,"385","Transports",9,7,121,109,24,68,42,null,26,4,8,null,5,null,null,null,null,2,425]
[null,"390","Ethnologie, anthropologie, folklore",null,2,12,6,4,10,4,null,null,null,null,null,null,null,null,null,null,null,38]
["Total 3XX",null,null,206,257,3870,2232,1128,2328,1000,null,900,30,66,9,112,3,3,null,10,168,12322]
["4XX","400","Linguistique",4,1,42,13,null,5,2,null,4,null,1,null,null,null,null,null,null,null,72]
["Total 4XX",null,null,4,1,42,13,null,5,2,null,4,null,1,null,null,null,null,null,null,null,72]
["5XX","500","Sciences (généralités)",3,3,34,18,6,24,16,null,6,null,null,null,null,null,null,null,null,null,110]
[null,"510","Mathématiques",null,null,11,3,2,7,1,null,2,null,null,null,null,null,null,null,null,null,26]
[null,"520","Astronomie",1,null,8,6,3,6,2,null,1,null,null,null,1,null,null,null,null,null,28]
[null,"530","Physique",2,1,6,4,null,1,2,null,6,null,null,null,null,null,null,null,null,null,22]
[null,"540","Chimie, minéralogie",1,1,8,5,null,3,3,null,2,null,null,null,1,null,null,null,null,null,24]
[null,"550","Sciences de la terre",4,2,36,8,2,8,1,null,7,null,null,null,null,null,null,null,null,1,69]
[null,"560","Paléontologie",1,null,3,1,null,3,null,null,null,null,null,null,null,null,null,null,null,null,8]
[null,"570","Sciences de la vie",2,2,18,5,2,9,5,null,3,null,null,null,null,null,null,null,null,2,48]
[null,"580","Botanique",3,4,34,13,6,12,2,null,3,null,null,null,null,null,null,null,null,1,78]
[null,"590","Zoologie",7,5,53,27,14,20,11,null,1,null,1,null,null,null,null,null,null,1,140]
["Total 5XX",null,null,24,18,211,90,35,93,43,null,31,null,1,null,2,null,null,null,null,5,553]
["6XX","600","Sciences appliquées, technologie",null,2,11,6,6,11,8,null,5,null,null,null,null,null,null,null,null,null,49]
[null,"610","Médecine, santé",10,36,315,229,122,311,172,null,99,1,6,null,3,null,null,null,2,17,1323]
[null,"620","Sciences de l'ingénieur",5,11,77,56,28,53,47,null,35,null,1,null,3,null,null,null,null,16,332]
[null,"630","Agriculture, élevage",20,19,427,185,103,208,75,null,89,null,5,null,31,null,null,null,null,7,1169]
[null,"640","Économie domestique/vie pratique, hôtellerie",6,6,113,72,18,168,96,null,46,null,2,null,7,null,null,null,null,2,536]
[null,"650","Gestion et organisation des entreprises, publicité",6,10,107,64,27,83,30,null,44,2,6,null,null,null,null,null,null,3,382]
[null,"660","Génie chimique et technologies connexes",null,1,14,11,4,8,5,null,2,null,null,null,null,null,null,null,null,null,45]
[null,"670","Industries et métiers divers",3,9,53,41,14,43,46,null,36,null,null,null,4,null,null,null,null,1,250]
[null,"690","Bâtiment",4,11,69,28,21,43,35,null,10,null,null,null,6,null,null,null,null,null,227]
["Total 6XX",null,null,54,105,1186,692,343,928,514,null,366,3,20,null,54,null,null,null,2,46,4313]
["7XX","700","Arts (généralités)",8,24,190,95,23,59,76,null,29,null,2,null,3,null,null,null,null,2,511]
[null,"710","Urbanisme, aménagement du territoire",5,8,83,37,13,20,7,null,8,null,3,null,null,null,null,null,null,4,188]
[null,"720","Architecture",2,22,57,23,2,22,12,null,4,null,null,null,null,null,null,null,null,1,145]
[null,"730","Arts plastiques, sculpture",1,4,17,7,1,5,1,null,2,null,null,null,null,null,null,null,null,2,40]
[null,"740","Dessin, arts décoratifs, artisanat d’art, bandes dessinées (histoire et critique)",1,15,57,41,13,87,55,null,8,1,null,null,2,null,null,null,null,1,281]
[null,"750","Peinture, arts graphiques",3,8,28,8,5,16,4,null,null,1,null,null,null,null,null,null,null,3,76]
[null,"770","Photographie",null,7,43,25,5,14,16,null,3,null,null,null,null,null,null,null,null,1,114]
[null,"778","Érotisme, pornographie",null,null,4,1,1,4,6,null,1,null,null,null,null,null,null,null,null,null,17]
[null,"780","Musique",10,8,60,35,8,38,24,null,15,null,null,null,null,null,null,null,1,3,202]
[null,"790","Spectacles (généralités), loisirs",null,2,36,18,10,31,35,null,33,1,7,null,11,null,null,null,1,1,186]
[null,"791","Audiovisuel",3,7,64,29,5,23,37,null,26,null,1,null,11,null,null,null,2,null,208]
[null,"792","Représentations scéniques",2,7,20,13,5,7,11,null,2,1,null,null,null,null,null,null,null,1,69]
[null,"793","Jeux et divertissements d'intérieur",2,1,59,32,27,163,256,null,38,6,5,null,9,null,null,null,null,1,599]
[null,"796","Sports, activités de plein air",15,15,309,116,61,191,189,null,89,5,7,null,20,null,null,null,9,6,1032]
["Total 7XX",null,null,52,128,1027,480,179,680,729,null,258,15,25,null,56,null,null,null,13,26,3668]
["8XX","800","Littérature générale, histoire et critique littéraires, revues littéraires",27,27,335,139,38,66,18,null,13,null,1,null,null,null,null,null,1,9,674]
[null,"801","Poésie",1,8,56,12,14,10,1,null,4,null,null,null,null,null,null,null,null,1,107]
[null,"802","Théâtre",null,null,4,1,null,null,null,null,null,null,null,null,null,null,null,null,null,null,5]
[null,"803","Roman et fiction romanesque",null,null,5,null,null,null,null,null,null,null,null,null,null,null,null,null,null,null,5]
[null,"804","Essais littéraires et écrits divers",null,null,5,3,null,1,2,null,1,null,null,null,null,null,null,null,null,null,12]
[null,"805","Bandes dessinées",5,6,51,20,6,19,15,null,31,null,null,null,null,null,null,null,null,1,154]
[null,"809","Littérature pour la jeunesse",null,null,7,4,null,7,3,null,4,null,null,null,1,null,null,null,null,null,26]
["Total 8XX",null,null,33,41,463,179,58,103,39,null,53,null,1,null,1,null,null,null,1,11,983]
["9XX","900","Histoire et géographie (généralités) ",10,9,75,40,9,51,14,null,2,null,null,null,null,null,null,null,null,4,214]
[null,"910","Géographie, voyages, tourisme",5,7,130,46,13,72,28,null,15,1,2,null,null,null,null,null,null,2,321]
[null,"920","Biographies",null,4,4,null,null,1,null,null,null,null,null,null,null,null,null,null,null,null,9]
[null,"929","GénéalogieHistoire ancienne, archéologie",5,2,24,31,17,62,2,null,4,null,null,null,null,null,null,null,null,2,149]
[null,"930","Histoire ancienne, archéologie, préhistoire",14,12,90,32,4,11,3,null,4,null,null,null,null,null,null,null,null,null,170]
[null,"940","Histoire médiévale, moderne et contemporaine",4,10,61,41,10,30,8,null,2,null,2,null,null,null,null,null,null,2,170]
[null,"944","Histoire de France, histoire locale",41,60,629,228,51,91,20,null,10,null,1,null,null,null,null,null,null,6,1137]
["Total 9XX",null,null,79,104,1013,418,104,318,75,null,37,1,5,null,null,null,null,null,null,16,2170]
["Non renseigné",null,null,67,89,1320,820,439,1412,743,null,936,16,82,6,408,12,null,null,127,48,6525]
["Total général",null,null,570,787,9853,5550,2697,7108,3830,null,3418,82,261,18,986,20,6,null,219,367,35772]
[]
[]
[2016,null,null,null,null,"Total"]
["Grandes classes","Indices","Intitulés","01-Triennal","02-Biennal","03-Annuel","04-Semestriel","05-3 fois par an","06-Trimestriel","07-Bimestriel","08-Septembre à juin","09-Mensuel","10-Bimensuel, ttes les 2 semaines","11-septembre à juin","12-3 fois par mois","13-Hebdomadaire","14-Semi-hebdomadaire","15-3 fois par semaine","16-5 jours par semaine","17-Quotidien","18-Irrégulier, Autres périodes","Total général"]
["0XX","000","Généralités, collections encyclopédiques",3,null,21,10,9,9,21,null,17,null,null,null,6,null,null,null,null,1,97]
[null,"001","Culture générale",1,2,32,12,4,12,4,null,6,null,null,null,null,null,null,null,null,null,73]
[null,"004","Informatique",null,1,30,18,6,33,24,null,15,null,1,null,null,null,null,null,2,4,134]
[null,"010","Bibliographie, catalogues",2,1,9,3,1,null,null,null,1,null,null,null,null,null,null,null,null,1,18]
[null,"020","Sciences de l'information, lecture",2,1,27,19,9,16,5,null,6,null,null,null,null,null,null,null,null,null,85]
[null,"060","Instituts de recherche, archives, musées",12,10,54,28,9,10,3,null,4,null,null,null,null,null,null,null,null,1,131]
[null,"070","Édition, médias, librairie",4,5,56,34,16,39,20,null,40,1,6,1,79,2,null,null,17,5,325]
[null,"071","Magazines généraux",1,4,70,55,25,94,86,null,81,2,11,null,30,null,1,null,2,8,470]
[null,"072","Publications féminines, publications masculines",null,2,17,24,12,54,37,null,47,null,1,null,7,null,null,null,null,4,205]
[null,"073","Presse et collections documentaires pour enfants et adolescents",null,2,51,36,15,105,61,null,38,3,6,null,3,null,null,null,null,2,322]
[null,"074","Presse nationale et locale d’information",1,1,17,11,5,27,32,null,59,2,9,null,192,1,3,null,46,9,415]
[null,"075","Presse parallèle, fanzines",3,5,24,13,7,11,4,null,9,null,1,null,null,null,null,null,null,2,79]
[null,"076","Journaux internes d’entreprise ",1,1,57,146,118,188,83,null,60,1,1,null,1,null,null,null,null,6,663]
[null,"077","Journaux d’annonces",null,null,8,4,4,13,11,null,41,1,12,null,7,1,null,null,1,3,106]
[null,"090","Bibliophilie",null,1,null,2,1,1,1,null,null,null,null,null,null,null,null,null,null,1,7]
["Total 0XX",null,null,30,36,473,415,241,612,392,0,424,10,48,1,325,4,4,0,68,47,3130]
["1XX","100","Philosophie",3,4,32,21,5,28,5,null,1,null,null,null,null,null,null,null,null,null,99]
[null,"130","Ésotérisme et sciences occultes",1,null,14,3,1,16,3,null,3,null,null,null,null,null,null,null,null,1,42]
[null,"150","Psychologie et psychanalyse",5,1,39,33,7,26,13,null,6,null,null,null,null,null,null,null,null,null,130]
["Total 1XX",null,null,9,5,85,57,13,70,21,0,10,0,0,0,0,0,0,0,0,1,271]
["2XX","200","Religion",2,3,21,20,11,28,9,null,9,null,null,null,null,null,null,null,null,null,103]
[null,"280","Églises chrétiennes",11,3,146,114,113,573,225,null,412,3,17,2,27,null,null,null,1,6,1653]
[null,"294","Hindouisme, bouddhisme",1,null,4,2,null,1,1,null,2,null,null,null,null,null,null,null,null,null,11]
[null,"296","Judaïsme",1,1,5,3,1,6,4,null,1,null,1,null,1,null,null,null,null,null,24]
[null,"297","Islam",null,null,3,3,1,2,null,null,1,null,null,null,null,null,null,null,null,1,11]
[null,"299","Autres religions",null,1,4,4,1,3,3,null,4,null,1,null,null,null,null,null,null,1,22]
["Total 2XX",null,null,15,8,183,146,127,613,242,0,429,3,19,2,28,0,0,0,1,8,1824]
["3XX","300","Sciences sociales, sociologie",5,15,105,72,22,43,20,null,13,null,2,null,1,null,null,null,null,2,300]
[null,"320","Sciences politiques et gouvernement",7,11,86,53,21,44,16,null,22,2,1,null,6,null,null,null,3,8,280]
[null,"323","Droits civils et politiques, citoyenneté, minorités",1,7,43,17,14,19,15,null,6,null,null,null,3,null,null,null,null,7,132]
[null,"324","Partis et mouvements politiques",2,2,35,29,19,49,34,null,27,null,4,null,8,null,null,null,null,3,212]
[null,"327","Politique internationale",null,1,14,13,6,14,10,null,9,1,2,null,null,null,null,null,null,3,73]
[null,"330","Économie (généralités)",10,7,156,44,13,49,33,null,28,null,4,1,4,null,1,null,null,6,356]
[null,"331","Économie du travail, syndicats",17,7,159,143,125,440,194,null,120,null,13,1,7,null,null,null,null,63,1289]
[null,"332","Économie financière",2,5,91,50,28,53,17,null,40,null,5,null,15,null,null,null,3,2,311]
[null,"333","Économie du foncier et de l'énergie",2,13,152,98,59,77,32,null,29,null,2,null,3,null,null,null,2,4,473]
[null,"338","Économie de la production et de la consommation",6,16,217,62,47,106,61,null,51,1,9,null,15,null,1,null,null,12,604]
[null,"340","Droit",16,14,175,107,43,127,42,null,98,2,11,null,17,1,null,null,3,9,665]
[null,"350","Administration publique",6,8,96,20,7,36,11,null,14,null,2,null,1,null,null,null,null,1,202]
[null,"352","Administration territoriale",58,64,745,496,182,352,166,null,203,17,3,7,10,1,null,null,null,15,2319]
[null,"355","Armée, défense",1,8,74,57,23,44,19,null,10,1,1,null,2,null,null,null,null,2,242]
[null,"362","Problèmes et services sociaux",19,30,366,334,182,381,79,null,47,null,3,null,1,null,null,null,null,7,1449]
[null,"363","Protection de l’environnement",15,27,372,241,60,104,35,null,18,null,null,1,1,null,null,null,null,3,877]
[null,"366","Associations, cercles et clubs divers",8,12,133,124,86,137,28,null,30,null,1,null,null,null,null,null,null,4,563]
[null,"368","Assurances, sécurité sociale, retraites",3,7,130,120,58,99,19,null,15,null,null,null,1,1,null,null,null,11,464]
[null,"370","Éducation, enseignement",14,3,118,35,13,29,10,null,12,1,2,null,2,null,null,null,null,null,239]
[null,"371","Organisation scolaire, pédagogie, parents d’élèves",1,3,108,33,12,15,11,null,8,null,null,null,null,null,null,null,null,3,194]
[null,"373","Enseignement primaire, enseignement secondaire général et technique, journaux scolaires",5,4,128,35,20,22,14,null,13,null,null,null,1,null,null,null,null,2,244]
[null,"374","Formation professionnelle et continue",null,1,26,12,9,8,3,null,1,null,1,null,null,null,null,null,null,null,61]
[null,"378","Enseignement supérieur",11,17,131,32,25,24,16,null,15,1,1,null,1,null,null,null,null,1,275]
[null,"380","Commerce",2,7,106,16,14,38,37,null,32,2,1,null,3,null,null,null,null,3,261]
[null,"383","Moyens de communication",1,1,17,9,6,17,9,null,4,null,null,null,null,null,null,null,null,null,64]
[null,"385","Transports",9,8,128,104,24,80,37,null,27,4,10,null,5,null,null,null,null,1,437]
[null,"390","Ethnologie, anthropologie, folklore",1,2,12,7,4,9,5,null,null,null,null,null,null,null,null,null,null,null,40]
["Total 3XX",null,null,222,300,3923,2363,1122,2416,973,0,892,32,78,10,107,3,2,0,11,172,12626]
["4XX","400","Linguistique",3,1,46,14,2,7,2,null,3,null,1,null,null,null,null,null,null,null,79]
["Total 4XX",null,null,3,1,46,14,2,7,2,0,3,0,1,0,0,0,0,0,0,0,79]
["5XX","500","Sciences (généralités)",4,4,31,16,7,27,15,null,6,null,null,null,null,null,null,null,null,null,110]
[null,"510","Mathématiques",null,null,10,4,2,8,1,null,2,null,null,null,null,null,null,null,null,null,27]
[null,"520","Astronomie",1,null,11,6,3,6,2,null,3,null,null,null,null,null,null,null,null,null,32]
[null,"530","Physique",2,2,6,4,null,3,2,null,6,null,null,null,null,null,null,null,null,null,25]
[null,"540","Chimie, minéralogie",1,1,7,7,null,3,3,null,2,null,null,null,1,null,null,null,null,null,25]
[null,"550","Sciences de la terre",4,4,35,7,3,8,1,null,7,null,null,null,null,null,null,null,null,1,70]
[null,"560","Paléontologie",1,null,2,1,null,3,null,null,null,null,null,null,null,null,null,null,null,null,7]
[null,"570","Sciences de la vie",2,1,19,6,2,9,5,null,4,null,null,null,null,null,null,null,null,1,49]
[null,"580","Botanique",4,2,32,12,4,13,2,null,3,null,null,null,null,null,null,null,null,null,72]
[null,"590","Zoologie",7,6,57,25,13,21,11,null,1,null,1,null,1,null,null,null,null,1,144]
["Total 5XX",null,null,26,20,210,88,34,101,42,0,34,0,1,0,2,0,0,0,0,3,561]
["6XX","600","Sciences appliquées, technologie",null,3,12,7,4,11,8,null,5,null,null,null,null,null,null,null,null,null,50]
[null,"610","Médecine, santé",8,39,345,232,119,337,174,2,93,1,7,null,3,null,null,null,2,18,1380]
[null,"620","Sciences de l'ingénieur",5,14,86,63,31,55,48,null,33,null,1,null,3,null,null,null,null,14,353]
[null,"630","Agriculture, élevage",19,17,412,201,97,225,83,null,96,1,5,null,36,null,null,null,null,4,1196]
[null,"640","Économie domestique/vie pratique, hôtellerie",2,5,116,75,16,160,98,null,49,null,2,null,7,null,null,null,null,1,531]
[null,"650","Gestion et organisation des entreprises, publicité",7,11,108,71,32,90,34,null,47,1,7,null,null,null,null,null,null,3,411]
[null,"660","Génie chimique et technologies connexes",null,1,17,12,3,10,6,null,2,null,null,null,null,null,null,null,null,null,51]
[null,"670","Industries et métiers divers",4,13,62,42,17,50,48,null,38,1,null,null,4,null,null,null,null,1,280]
[null,"690","Bâtiment",5,13,63,31,29,46,35,null,11,null,null,null,6,null,null,null,null,null,239]
["Total 6XX",null,null,50,116,1221,734,348,984,534,2,374,4,22,0,59,0,0,0,2,41,4491]
["7XX","700","Arts (généralités)",7,27,189,94,21,61,77,null,30,1,2,null,3,null,null,null,null,3,515]
[null,"710","Urbanisme, aménagement du territoire",5,9,88,43,11,19,9,null,7,null,2,null,null,null,null,null,null,5,198]
[null,"720","Architecture",3,25,56,26,3,21,11,null,4,null,null,null,null,null,null,null,null,1,150]
[null,"730","Arts plastiques, sculpture",1,4,19,5,1,4,1,null,2,null,null,null,null,null,null,null,null,2,39]
[null,"740","Dessin, arts décoratifs, artisanat d’art, bandes dessinées (histoire et critique)",2,14,66,47,17,79,61,null,8,null,null,null,1,null,null,null,null,3,298]
[null,"750","Peinture, arts graphiques",3,9,34,7,4,14,4,null,null,null,null,null,null,null,null,null,null,3,78]
[null,"770","Photographie",1,6,45,19,5,17,15,null,4,null,null,null,null,null,null,null,null,1,113]
[null,"778","Érotisme, pornographie",null,null,7,4,1,5,4,null,1,null,null,null,null,null,null,null,null,null,22]
[null,"780","Musique",10,10,56,34,12,47,25,null,15,null,null,null,null,null,null,null,1,2,212]
[null,"790","Spectacles (généralités), loisirs",null,2,37,19,9,28,36,null,31,1,7,null,11,null,null,null,2,1,184]
[null,"791","Audiovisuel",3,9,64,25,4,24,33,null,29,null,1,null,9,null,null,null,3,null,204]
[null,"792","Représentations scéniques",3,9,19,17,4,10,12,null,1,1,null,null,null,null,null,null,null,1,77]
[null,"793","Jeux et divertissements d'intérieur",3,1,55,30,27,143,247,null,37,3,3,null,8,null,null,null,null,1,558]
[null,"796","Sports, activités de plein air",15,15,313,126,58,196,183,null,94,4,9,null,20,null,null,null,10,6,1049]
["Total 7XX",null,null,56,140,1048,496,177,668,718,0,263,10,24,0,52,0,0,0,16,29,3697]
["8XX","800","Littérature générale, histoire et critique littéraires, revues littéraires",33,31,336,136,40,69,16,null,14,null,1,null,null,null,null,null,1,9,686]
[null,"801","Poésie",1,8,54,12,12,14,1,null,4,null,null,null,null,null,null,null,null,1,107]
[null,"802","Théâtre",null,null,4,1,null,null,null,null,null,null,null,null,null,null,null,null,null,null,5]
[null,"803","Roman et fiction romanesque",null,null,2,null,null,null,null,null,null,null,null,null,null,null,null,null,null,null,2]
[null,"804","Essais littéraires et écrits divers",null,null,5,3,null,1,2,null,1,null,null,null,null,null,null,null,null,null,12]
[null,"805","Bandes dessinées",3,7,58,21,6,27,12,null,33,1,null,null,null,null,null,null,null,2,170]
[null,"809","Littérature pour la jeunesse",null,null,6,3,null,8,4,null,3,null,null,null,null,null,null,null,null,null,24]
["Total 8XX",null,null,37,46,465,176,58,119,35,0,55,1,1,0,0,0,0,0,1,12,1006]
["9XX","900","Histoire et géographie (généralités) ",12,8,72,46,3,50,13,null,2,null,null,null,null,null,null,null,null,5,211]
[null,"910","Géographie, voyages, tourisme",5,5,137,48,11,79,28,null,16,1,2,null,1,null,null,null,null,2,335]
[null,"920","Biographies",null,4,4,null,null,1,null,null,null,null,null,null,null,null,null,null,null,null,9]
[null,"929","GénéalogieHistoire ancienne, archéologie",6,1,25,28,18,63,3,null,4,null,null,null,null,null,null,null,null,1,149]
[null,"930","Histoire ancienne, archéologie, préhistoire",12,12,93,34,6,11,3,null,4,null,null,null,null,null,null,null,null,null,175]
[null,"940","Histoire médiévale, moderne et contemporaine",5,10,59,39,9,32,7,null,3,null,1,null,null,null,null,null,null,1,166]
[null,"944","Histoire de France, histoire locale",43,57,609,235,49,97,21,null,9,1,1,null,null,null,null,null,null,5,1127]
["Total 9XX",null,null,83,97,999,430,96,333,75,null,38,2,4,null,1,0,0,0,0,14,2172]
["Non renseigné",null,null,70,94,1426,844,437,1501,762,1,969,20,87,5,420,14,1,null,128,51,6830]
["Total général",null,null,601,863,10079,5763,2655,7424,3796,3,3491,82,285,18,994,21,7,null,227,378,36687]
[]
[2015,null,null,null,null,"Total"]
["Grandes classes","Indices","Intitulés","01-Triennal","02-Biennal","03-Annuel","04-Semestriel","05-3 fois par an","06-Trimestriel","07-Bimestriel","08-Septembre à juin","09-Mensuel","10-Bimensuel, ttes les 2 semaines","11-septembre à juin","12-3 fois par mois","13-Hebdomadaire","14-Semi-hebdomadaire","15-3 fois par semaine","16-5 jours par semaine","17-Quotidien","18-Irrégulier, Autres périodes","Total général"]
["0XX","000","Généralités, collections encyclopédiques",3,null,21,11,8,11,20,null,21,0,null,null,6,null,null,null,null,2,103]
[null,"001","Culture générale",1,3,30,13,4,13,6,null,5,0,null,null,null,null,null,null,null,null,75]
[null,"004","Informatique",null,1,31,16,8,35,23,null,18,0,null,1,null,null,null,null,2,4,139]
[null,"010","Bibliographie, catalogues",2,1,9,3,1,null,null,null,1,0,null,null,null,null,null,null,null,1,18]
[null,"020","Sciences de l'information, lecture",1,1,30,19,10,15,6,null,7,0,null,null,null,null,null,null,null,null,89]
[null,"060","Instituts de recherche, archives, musées",13,9,56,30,10,11,3,null,4,0,null,null,null,null,null,null,null,1,137]
[null,"070","Édition, médias, librairie",2,4,57,36,18,41,26,null,41,8,null,null,86,2,null,null,19,4,344]
[null,"071","Magazines généraux",1,4,71,51,24,92,84,null,90,14,null,null,27,null,1,null,2,7,468]
[null,"072","Publications féminines, publications masculines",null,2,16,31,10,47,43,null,48,2,null,null,7,null,null,null,null,2,208]
[null,"073","Presse et collections documentaires pour enfants et adolescents",null,2,47,40,14,112,72,null,46,4,null,null,4,null,null,null,null,3,344]
[null,"074","Presse nationale et locale d’information",1,1,17,15,3,24,34,null,54,13,null,null,168,1,2,1,37,15,386]
[null,"075","Presse parallèle, fanzines",3,4,17,18,6,7,7,null,7,1,null,null,null,null,null,null,null,2,72]
[null,"076","Journaux internes d’entreprise ",null,2,54,183,123,210,71,null,81,1,null,null,1,null,null,null,null,6,732]
[null,"077","Journaux d’annonces",null,null,7,4,4,16,13,null,46,13,null,null,9,1,null,null,1,3,117]
[null,"090","Bibliophilie",null,1,null,2,1,4,null,null,null,0,null,null,null,null,null,null,null,1,9]
["Total 0XX",null,null,27,35,463,472,244,638,408,null,469,56,null,1,308,4,3,1,61,51,3241]
["1XX","100","Philosophie",2,4,29,20,6,27,6,null,3,0,null,null,null,null,null,null,null,null,97]
[null,"130","Ésotérisme et sciences occultes",1,null,15,2,1,17,3,null,3,0,null,null,null,null,null,null,null,1,43]
[null,"150","Psychologie et psychanalyse",5,1,40,33,7,35,16,null,6,0,null,null,null,null,null,null,null,null,143]
["Total 1XX",null,null,8,5,84,55,14,79,25,null,12,0,null,null,null,null,null,null,null,1,283]
["2XX","200","Religion",1,3,22,20,12,27,10,null,9,0,null,null,null,null,null,null,null,1,105]
[null,"280","Églises chrétiennes",7,4,148,114,112,577,224,null,430,27,null,2,29,null,null,null,null,5,1679]
[null,"294","Hindouisme, bouddhisme",1,null,4,2,null,1,2,null,2,0,null,null,null,null,null,null,null,null,12]
[null,"296","Judaïsme",1,1,4,5,2,7,5,null,1,1,null,null,1,null,null,null,null,null,28]
[null,"297","Islam",null,null,3,3,null,2,null,null,2,0,null,null,null,null,null,null,null,1,11]
[null,"299","Autres religions",null,null,3,4,3,4,1,null,4,2,null,null,null,null,null,null,null,1,22]
["Total 2XX",null,null,10,8,184,148,129,618,242,null,448,30,null,2,30,null,null,null,null,8,1857]
["3XX","300","Sciences sociales, sociologie",2,14,103,63,20,43,21,null,13,2,null,null,1,null,null,null,null,2,284]
[null,"320","Sciences politiques et gouvernement",6,9,90,59,19,52,16,null,22,3,null,null,6,null,null,null,3,9,294]
[null,"323","Droits civils et politiques, citoyenneté, minorités",3,5,43,19,14,16,13,null,12,0,null,null,3,null,null,null,null,5,133]
[null,"324","Partis et mouvements politiques",1,2,44,38,18,46,30,null,35,5,null,null,8,null,null,null,null,4,231]
[null,"327","Politique internationale",null,1,19,13,5,13,12,null,10,3,null,null,null,null,null,null,null,2,78]
[null,"330","Économie (généralités)",8,7,163,41,20,50,31,null,46,1,null,null,5,null,null,null,null,5,377]
[null,"331","Économie du travail, syndicats",9,6,199,140,132,465,187,null,161,17,null,1,9,null,null,null,null,73,1399]
[null,"332","Économie financière",2,5,79,54,29,48,16,null,39,3,null,1,16,null,null,null,3,3,298]
[null,"333","Économie du foncier et de l'énergie",2,11,148,103,60,75,35,null,31,3,null,null,3,null,null,null,2,3,476]
[null,"338","Économie de la production et de la consommation",4,17,221,81,55,109,59,null,61,12,null,null,11,null,null,null,null,14,644]
[null,"340","Droit",12,13,175,104,41,132,44,null,116,13,null,null,18,1,1,null,5,14,689]
[null,"350","Administration publique",6,9,103,34,8,52,17,null,28,2,null,null,2,null,null,null,null,2,263]
[null,"352","Administration territoriale",56,61,730,505,182,336,160,null,204,19,null,6,12,2,null,null,null,18,2291]
[null,"355","Armée, défense",1,9,68,61,22,51,17,null,12,3,null,null,2,null,null,null,null,3,249]
[null,"362","Problèmes et services sociaux",17,31,322,337,188,384,78,null,57,3,null,null,1,null,null,null,null,7,1425]
[null,"363","Protection de l’environnement",16,26,383,243,77,114,34,null,20,1,null,null,3,null,null,null,null,4,921]
[null,"366","Associations, cercles et clubs divers",8,12,131,128,87,146,31,null,28,0,null,null,null,null,null,null,null,4,575]
[null,"368","Assurances, sécurité sociale, retraites",3,7,112,137,56,110,20,null,18,0,null,null,1,1,null,null,null,8,473]
[null,"370","Éducation, enseignement",14,4,121,35,11,34,9,null,14,3,null,null,2,null,null,null,null,null,247]
[null,"371","Organisation scolaire, pédagogie, parents d’élèves",1,3,107,32,13,17,11,null,9,0,null,null,null,null,null,null,null,3,196]
[null,"373","Enseignement primaire, enseignement secondaire général et technique, journaux scolaires",5,4,124,33,21,22,13,null,14,0,null,null,1,null,null,null,null,2,239]
[null,"374","Formation professionnelle et continue",null,1,24,12,11,10,4,null,2,1,null,null,null,null,null,null,null,null,65]
[null,"378","Enseignement supérieur",10,15,135,44,27,19,16,null,21,2,null,null,1,null,null,null,null,1,291]
[null,"380","Commerce",4,5,105,16,13,43,34,null,30,3,null,null,3,null,null,null,null,4,260]
[null,"383","Moyens de communication",1,1,16,11,6,31,9,null,6,0,null,null,null,null,null,null,null,null,81]
[null,"385","Transports",7,10,118,106,23,68,38,null,33,10,null,null,6,null,null,null,null,9,428]
[null,"390","Ethnologie, anthropologie, folklore",1,2,13,7,5,9,5,null,null,0,null,null,null,null,null,null,null,null,42]
["Total 3XX",null,null,199,290,3896,2456,1163,2495,960,null,1042,109,null,8,114,4,1,null,13,199,12949]
["4XX","400","Linguistique",1,1,44,12,2,5,3,null,4,1,null,null,null,null,null,null,null,null,73]
["Total 4XX",null,null,1,1,44,12,2,5,3,null,4,1,null,null,null,null,null,null,null,null,73]
["5XX","500","Sciences (généralités)",3,3,25,15,9,28,13,null,7,0,null,null,null,null,null,null,null,null,103]
[null,"510","Mathématiques",1,null,9,4,2,9,2,null,3,0,null,null,null,null,null,null,null,null,30]
[null,"520","Astronomie",null,null,12,5,2,7,2,null,2,0,null,null,null,null,null,null,null,null,30]
[null,"530","Physique",2,2,7,4,null,4,2,null,7,0,null,null,null,null,null,null,null,null,28]
[null,"540","Chimie, minéralogie",null,2,6,9,null,2,3,null,3,0,null,null,1,null,null,null,null,null,26]
[null,"550","Sciences de la terre",4,4,36,7,3,9,2,null,7,0,null,null,null,null,null,null,null,1,73]
[null,"560","Paléontologie",1,null,1,1,null,3,null,null,null,0,null,null,null,null,null,null,null,null,6]
[null,"570","Sciences de la vie",1,2,17,6,4,10,5,null,5,0,null,null,null,null,null,null,null,1,51]
[null,"580","Botanique",3,1,30,15,3,13,1,null,3,0,null,null,null,null,null,null,null,1,70]
[null,"590","Zoologie",6,6,58,25,15,20,13,null,2,1,null,null,1,null,null,null,null,1,148]
["Total 5XX",null,null,21,20,201,91,38,105,43,null,39,1,null,null,2,null,null,null,null,4,565]
["6XX","600","Sciences appliquées, technologie",null,1,16,8,3,14,3,null,9,0,null,null,null,null,null,null,null,1,55]
[null,"610","Médecine, santé",7,35,353,240,111,341,163,null,107,9,null,null,3,null,null,null,2,17,1388]
[null,"620","Sciences de l'ingénieur",8,13,84,70,32,55,42,null,38,1,null,null,3,null,null,null,null,14,360]
[null,"630","Agriculture, élevage",11,16,412,192,104,230,80,null,118,7,null,null,38,1,null,null,null,7,1216]
[null,"640","Économie domestique/vie pratique, hôtellerie",3,3,118,70,18,186,90,null,42,2,null,null,6,null,null,null,null,1,539]
[null,"650","Gestion et organisation des entreprises, publicité",6,14,99,59,38,86,33,null,46,4,null,null,null,null,null,null,null,5,390]
[null,"660","Génie chimique et technologies connexes",1,1,14,13,2,9,8,null,3,0,null,null,null,null,null,null,null,null,51]
[null,"670","Industries et métiers divers",3,12,62,48,18,48,55,null,42,2,null,null,4,null,null,null,null,1,295]
[null,"690","Bâtiment",6,12,68,33,26,54,42,null,16,0,null,1,5,null,null,null,null,null,263]
["Total 6XX",null,null,45,107,1226,733,352,1023,516,null,421,25,null,1,59,1,null,null,2,46,4557]
["7XX","700","Arts (généralités)",6,24,195,88,24,66,83,null,35,3,null,null,3,null,null,null,null,2,529]
[null,"710","Urbanisme, aménagement du territoire",5,10,87,49,10,19,9,null,9,3,null,null,1,null,null,null,null,6,208]
[null,"720","Architecture",2,23,52,30,2,18,11,null,4,0,null,null,null,null,null,null,null,1,143]
[null,"730","Arts plastiques, sculpture",1,5,17,4,1,5,1,null,2,0,null,null,null,null,null,null,null,2,38]
[null,"740","Dessin, arts décoratifs, artisanat d’art, bandes dessinées (histoire et critique)",3,13,61,51,13,97,56,null,14,1,null,null,1,null,null,null,null,2,312]
[null,"750","Peinture, arts graphiques",3,8,36,8,3,16,7,null,null,0,null,null,null,null,null,null,null,3,84]
[null,"770","Photographie",1,4,46,21,6,15,17,null,5,0,null,null,null,null,null,null,null,null,115]
[null,"778","Érotisme, pornographie",null,null,7,3,2,7,13,null,1,0,null,null,null,null,null,null,null,null,33]
[null,"780","Musique",11,9,67,39,13,40,29,null,15,0,null,null,1,null,null,null,1,3,228]
[null,"790","Spectacles (généralités), loisirs",null,2,40,21,9,32,37,null,32,9,null,null,12,null,null,null,2,2,198]
[null,"791","Audiovisuel",4,10,80,25,4,20,39,null,34,1,null,null,9,null,null,null,4,1,231]
[null,"792","Représentations scéniques",3,8,21,16,5,15,10,null,2,0,null,null,null,null,null,null,1,1,82]
[null,"793","Jeux et divertissements d'intérieur",4,2,57,32,32,123,253,null,75,6,null,null,6,null,null,null,1,2,593]
[null,"796","Sports, activités de plein air",15,10,303,117,67,191,181,null,113,12,null,null,21,null,null,null,10,7,1047]
["Total 7XX",null,null,58,128,1069,504,191,664,746,null,341,35,null,null,54,null,null,null,19,32,3841]
["8XX","800","Littérature générale, histoire et critique littéraires, revues littéraires",28,28,335,142,39,64,16,null,12,1,null,null,null,null,null,null,1,10,676]
[null,"801","Poésie",2,5,57,12,12,12,3,null,2,0,null,null,null,null,null,null,null,1,106]
[null,"802","Théâtre",null,null,4,1,null,1,null,null,null,0,null,null,null,null,null,null,null,null,6]
[null,"803","Roman et fiction romanesque",null,null,2,null,null,null,null,null,null,0,null,null,null,null,null,null,null,null,2]
[null,"804","Essais littéraires et écrits divers",null,null,5,2,1,1,2,null,null,0,null,null,null,null,null,null,null,null,11]
[null,"805","Bandes dessinées",2,6,61,22,7,27,19,null,27,2,null,null,null,null,null,null,null,4,177]
[null,"809","Littérature pour la jeunesse",null,null,4,2,null,9,6,null,3,0,null,null,null,null,null,null,null,null,24]
["Total 8XX",null,null,32,39,468,181,59,114,46,null,44,3,null,null,null,null,null,null,1,15,1002]
["9XX","900","Histoire et géographie (généralités) ",9,7,81,46,4,42,12,null,2,0,null,null,null,null,null,null,null,1,204]
[null,"910","Géographie, voyages, tourisme",6,4,136,50,11,65,34,null,17,3,null,null,1,null,null,null,null,1,328]
[null,"920","Biographies",null,4,4,null,null,1,null,null,null,0,null,null,null,null,null,null,null,null,9]
[null,"929","GénéalogieHistoire ancienne, archéologie",5,2,21,27,18,66,4,null,4,0,null,null,null,null,null,null,null,1,148]
[null,"930","Histoire ancienne, archéologie, préhistoire",10,12,94,34,6,8,5,null,4,0,null,null,null,null,null,null,null,null,173]
[null,"940","Histoire médiévale, moderne et contemporaine",5,9,64,39,7,32,8,null,3,1,null,null,null,null,null,null,null,1,169]
[null,"944","Histoire de France, histoire locale",36,55,589,227,49,98,23,null,11,1,null,null,1,null,null,null,null,3,1093]
["Total 9XX",null,null,71,93,989,423,95,312,86,null,41,5,null,null,2,null,null,null,null,7,2124]
["Non renseigné",null,null,76,97,1699,880,472,1539,763,null,1096,124,null,8,454,17,1,null,136,64,7426]
["Total général",null,null,548,823,10323,5955,2759,7592,3838,null,3957,389,null,20,1023,26,5,1,232,427,37918]
[]
[2014,null,null,null,null,"Total"]
["Grandes classes","Indices","Intitulés","01-Triennal","02-Biennal","03-Annuel","04-Semestriel","05-3 fois par an","06-Trimestriel","07-Bimestriel","08-Septembre à juin","09-Mensuel","Bimensuel, ttes les 2 semaines","11-septembre à juin","12-3 fois par mois","13-Hebdomadaire","14-Semi-hebdomadaire","15-3 fois par semaine","16-5 jours par semaine","17-Quotidien","18-Irrégulier, Autres périodes","Total général"]
["0XX","000","Généralités, collections encyclopédiques",4,null,23,11,9,16,19,null,24,2,null,null,7,null,null,null,null,3,118]
[null,"001","Culture générale",1,2,29,11,3,14,9,null,5,0,null,null,null,null,null,null,null,null,74]
[null,"004","Informatique",1,1,29,20,8,40,27,null,17,2,null,null,null,null,null,null,2,5,152]
[null,"010","Bibliographie, catalogues",2,1,10,3,1,null,1,null,1,0,null,null,null,null,null,null,null,1,20]
[null,"020","Sciences de l'information, lecture",1,2,28,21,13,21,4,null,10,0,null,null,null,null,null,null,null,null,100]
[null,"060","Instituts de recherche, archives, musées",11,10,62,26,13,12,4,null,4,0,null,null,null,null,null,null,null,2,144]
[null,"070","Édition, médias, librairie",1,5,62,42,18,47,25,null,42,7,null,null,91,2,null,null,21,4,367]
[null,"071","Magazines généraux",2,4,59,41,19,105,90,null,87,15,null,null,28,null,1,null,1,7,459]
[null,"072","Publications féminines, publications masculines",null,2,12,27,11,45,55,null,46,1,null,null,7,null,null,null,null,3,209]
[null,"073","Presse et collections documentaires pour enfants et adolescents",null,2,37,40,9,112,91,null,40,3,null,null,3,null,null,null,null,4,341]
[null,"074","Presse nationale et locale d’information",1,1,14,12,6,27,33,null,64,9,null,null,167,3,2,1,50,13,403]
[null,"075","Presse parallèle, fanzines",3,4,16,15,7,10,6,null,10,1,null,null,null,null,null,null,null,2,74]
[null,"076","Journaux internes d’entreprise ",1,3,58,153,112,273,82,null,85,5,null,1,1,null,null,null,null,7,781]
[null,"077","Journaux d’annonces",null,null,7,3,2,12,16,null,50,12,null,null,8,1,null,null,1,5,117]
[null,"090","Bibliophilie",null,null,null,3,1,2,2,null,null,0,null,null,null,null,null,null,null,1,9]
["Total 0XX",null,null,28,37,446,428,232,736,464,null,485,57,null,1,312,6,3,1,75,57,3368]
["1XX","100","Philosophie",2,3,30,18,7,26,5,null,3,0,null,null,null,null,null,null,null,null,94]
[null,"130","Ésotérisme et sciences occultes",1,null,16,3,2,18,5,null,4,0,null,null,null,null,null,null,null,1,50]
[null,"150","Psychologie et psychanalyse",5,1,38,35,7,29,19,null,6,0,null,null,null,null,null,null,null,1,141]
["Total 1XX",null,null,8,4,84,56,16,73,29,null,13,0,null,null,null,null,null,null,null,2,285]
["2XX","200","Religion",2,4,19,24,9,30,9,null,9,0,null,null,null,null,null,null,null,2,108]
[null,"280","Églises chrétiennes",7,5,136,95,93,601,256,null,447,27,null,1,25,null,null,null,null,6,1699]
[null,"294","Hindouisme, bouddhisme",1,null,6,2,null,1,1,null,2,0,null,null,null,null,null,null,null,null,13]
[null,"296","Judaïsme",1,null,6,6,1,7,4,null,1,1,null,null,1,null,null,null,null,null,28]
[null,"297","Islam",null,null,4,4,null,2,1,null,1,0,null,null,null,null,null,null,null,1,13]
[null,"299","Autres religions",null,null,3,6,2,5,null,null,2,2,null,null,null,null,null,null,null,1,21]
["Total 2XX",null,null,11,9,174,137,105,646,271,null,462,30,null,1,26,null,null,null,null,10,1882]
["3XX","300","Sciences sociales, sociologie",4,15,99,65,21,46,21,null,14,2,null,null,2,null,null,null,null,3,292]
[null,"320","Sciences politiques et gouvernement",5,9,100,62,10,53,17,null,25,5,null,null,7,null,null,null,3,8,304]
[null,"323","Droits civils et politiques, citoyenneté, minorités",3,4,44,17,9,24,12,null,11,0,null,null,3,null,1,null,null,6,134]
[null,"324","Partis et mouvements politiques",2,2,48,35,14,56,39,null,40,9,null,null,7,null,null,null,null,5,257]
[null,"327","Politique internationale",1,null,21,17,4,18,13,null,9,4,null,null,null,null,null,null,null,2,89]
[null,"330","Économie (généralités)",8,7,159,44,15,60,27,null,47,1,null,null,6,null,null,null,null,6,380]
[null,"331","Économie du travail, syndicats",7,4,198,130,103,504,215,null,162,20,null,2,10,1,null,null,null,85,1441]
[null,"332","Économie financière",2,5,101,46,28,60,20,null,61,4,null,null,17,null,null,null,1,8,353]
[null,"333","Économie du foncier et de l'énergie",2,9,152,95,49,95,33,null,34,2,null,null,3,null,null,null,2,4,480]
[null,"338","Économie de la production et de la consommation",6,21,228,81,54,121,57,null,70,12,null,null,8,null,null,null,null,24,682]
[null,"340","Droit",11,13,187,103,42,143,46,null,119,14,null,null,18,1,null,null,6,18,721]
[null,"350","Administration publique",4,10,105,35,8,54,24,null,29,2,null,null,3,null,null,null,null,5,279]
[null,"352","Administration territoriale",62,71,736,507,158,399,174,null,210,12,null,3,11,2,null,null,null,19,2364]
[null,"355","Armée, défense",2,9,63,55,28,60,21,null,13,2,null,null,2,null,null,null,null,3,258]
[null,"362","Problèmes et services sociaux",19,28,312,314,170,339,147,null,65,6,null,1,2,null,null,null,null,8,1411]
[null,"363","Protection de l’environnement",14,29,382,229,70,142,38,null,18,1,null,null,3,null,null,null,null,8,934]
[null,"366","Associations, cercles et clubs divers",10,13,137,127,91,141,42,null,34,0,null,null,null,null,null,null,null,6,601]
[null,"368","Assurances, sécurité sociale, retraites",5,7,139,132,60,138,20,null,22,0,null,null,1,1,null,null,null,11,536]
[null,"370","Éducation, enseignement",16,5,126,37,14,34,13,null,15,3,null,null,2,null,null,null,null,null,265]
[null,"371","Organisation scolaire, pédagogie, parents d’élèves",3,2,94,35,14,20,16,null,8,0,null,null,null,null,null,null,null,4,196]
[null,"373","Enseignement primaire, enseignement secondaire général et technique, journaux scolaires",4,5,137,26,21,33,14,null,15,0,null,1,1,null,null,null,null,2,259]
[null,"374","Formation professionnelle et continue",null,2,24,10,9,12,4,null,2,1,null,null,null,null,null,null,null,null,64]
[null,"378","Enseignement supérieur",12,15,147,37,26,34,16,null,17,2,null,null,1,null,null,null,null,1,308]
[null,"380","Commerce",5,7,107,18,10,50,35,null,31,4,null,null,3,null,null,null,null,12,282]
[null,"383","Moyens de communication",1,1,14,12,7,35,9,null,8,0,null,null,null,null,null,null,null,1,88]
[null,"385","Transports",7,11,123,98,26,73,44,null,33,6,null,null,7,null,null,null,null,9,437]
[null,"390","Ethnologie, anthropologie, folklore",1,2,13,5,2,11,5,null,null,0,null,null,null,null,null,null,null,null,39]
["Total 3XX",null,null,216,306,3996,2372,1063,2755,1122,null,1112,112,null,7,117,5,1,null,12,258,13454]
["4XX","400","Linguistique",2,null,42,11,null,7,3,null,4,1,null,null,null,null,null,null,null,null,70]
["Total 4XX",null,null,2,null,42,11,null,7,3,null,4,1,null,null,null,null,null,null,null,null,70]
["5XX","500","Sciences (généralités)",4,4,22,17,5,27,13,null,7,1,null,null,null,null,null,null,null,null,100]
[null,"510","Mathématiques",1,null,5,5,1,9,2,null,3,0,null,null,null,null,null,null,null,null,26]
[null,"520","Astronomie",null,null,14,4,2,7,3,null,2,0,null,null,null,null,null,null,null,null,32]
[null,"530","Physique",2,2,5,4,2,2,2,null,7,0,null,null,null,null,null,null,null,null,26]
[null,"540","Chimie, minéralogie",null,2,7,8,1,2,3,null,2,0,null,null,1,null,null,null,null,1,27]
[null,"550","Sciences de la terre",5,4,41,9,3,8,3,null,6,0,null,null,null,null,null,null,null,null,79]
[null,"560","Paléontologie",1,null,2,1,null,3,1,null,null,0,null,null,null,null,null,null,null,null,8]
[null,"570","Sciences de la vie",2,1,19,7,3,11,5,null,5,0,null,null,null,null,null,null,null,1,54]
[null,"580","Botanique",4,1,30,13,4,15,1,null,2,0,null,null,null,null,null,null,null,1,71]
[null,"590","Zoologie",5,8,63,25,14,20,13,null,2,1,null,null,1,null,null,null,null,null,152]
["Total 5XX",null,null,24,22,208,93,35,104,46,null,36,2,null,null,2,null,null,null,null,3,575]
["6XX","600","Sciences appliquées, technologie",null,1,17,6,2,13,6,null,6,0,null,null,null,null,null,null,null,1,52]
[null,"610","Médecine, santé",10,36,354,253,107,384,167,null,106,8,null,null,3,null,null,null,2,21,1451]
[null,"620","Sciences de l'ingénieur",16,10,90,66,31,63,50,null,43,1,null,null,4,null,null,null,null,3,377]
[null,"630","Agriculture, élevage",10,18,410,174,90,250,94,null,118,9,null,null,42,2,null,null,null,11,1228]
[null,"640","Économie domestique/vie pratique, hôtellerie",3,4,99,73,11,176,106,null,41,2,null,null,6,null,null,null,null,1,522]
[null,"650","Gestion et organisation des entreprises, publicité",9,13,111,58,39,94,49,null,46,8,null,null,1,null,null,null,null,7,435]
[null,"660","Génie chimique et technologies connexes",1,1,17,16,4,8,9,null,3,0,null,null,null,null,null,null,null,1,60]
[null,"670","Industries et métiers divers",4,13,68,48,18,61,56,null,46,3,null,null,3,null,null,null,null,5,325]
[null,"690","Bâtiment",6,13,66,34,28,53,47,null,12,0,null,null,6,null,null,null,null,1,266]
["Total 6XX",null,null,59,109,1232,728,330,1102,584,null,421,31,null,null,65,2,null,null,2,51,4716]
["7XX","700","Arts (généralités)",9,22,198,85,21,71,87,null,36,3,null,null,4,null,null,null,null,2,538]
[null,"710","Urbanisme, aménagement du territoire",6,9,96,56,10,33,7,null,9,2,null,null,null,null,null,null,null,6,234]
[null,"720","Architecture",2,22,53,29,5,25,12,null,5,0,null,null,null,null,null,null,null,1,154]
[null,"730","Arts plastiques, sculpture",null,5,21,5,1,4,2,null,2,0,null,null,null,null,null,null,null,2,42]
[null,"740","Dessin, arts décoratifs, artisanat d’art, bandes dessinées (histoire et critique)",3,10,65,46,8,81,62,null,11,1,null,null,2,null,null,null,null,2,291]
[null,"750","Peinture, arts graphiques",3,9,34,13,2,16,6,null,1,0,null,null,null,null,null,null,null,2,86]
[null,"770","Photographie",1,3,49,19,7,18,20,null,4,1,null,null,null,null,null,null,null,1,123]
[null,"778","Érotisme, pornographie",null,null,3,6,1,8,19,null,1,0,null,null,null,null,null,null,null,null,38]
[null,"780","Musique",9,8,75,37,9,54,27,null,20,1,null,null,1,null,null,null,1,4,246]
[null,"790","Spectacles (généralités), loisirs",null,2,40,18,10,41,37,null,34,12,null,null,9,null,null,null,1,4,208]
[null,"791","Audiovisuel",3,11,86,25,7,18,41,null,35,1,null,null,10,null,null,null,4,2,243]
[null,"792","Représentations scéniques",1,7,22,11,6,17,12,null,3,0,null,null,null,null,null,null,null,2,81]
[null,"793","Jeux et divertissements d'intérieur",4,4,62,34,30,114,257,null,87,6,null,1,2,null,null,null,null,3,604]
[null,"796","Sports, activités de plein air",14,7,289,119,62,215,180,null,122,11,null,null,21,null,null,null,10,10,1060]
["Total 7XX",null,null,55,119,1093,503,179,715,769,null,370,38,null,1,49,null,null,null,16,41,3948]
["8XX","800","Littérature générale, histoire et critique littéraires, revues littéraires",27,27,335,138,39,74,19,null,14,0,null,null,null,null,null,null,1,9,683]
[null,"801","Poésie",2,4,55,10,12,13,1,null,3,0,null,null,null,null,null,null,null,1,101]
[null,"802","Théâtre",null,null,4,1,null,1,null,null,null,0,null,null,null,null,null,null,null,null,6]
[null,"803","Roman et fiction romanesque",null,null,2,null,null,null,null,null,null,0,null,null,null,null,null,null,null,null,2]
[null,"804","Essais littéraires et écrits divers",null,null,6,2,1,1,2,null,1,0,null,null,null,null,null,null,null,null,13]
[null,"805","Bandes dessinées",2,4,64,26,5,38,20,null,32,1,null,null,null,null,null,null,null,11,203]
[null,"809","Littérature pour la jeunesse",null,null,5,1,null,9,5,null,2,0,null,null,null,null,null,null,null,null,22]
["Total 8XX",null,null,31,35,471,178,57,136,47,null,52,1,null,null,null,null,null,null,1,21,1030]
["9XX","900","Histoire et géographie (généralités) ",10,10,82,39,8,47,12,null,2,0,null,null,null,null,null,null,null,1,211]
[null,"910","Géographie, voyages, tourisme",7,4,150,40,9,74,45,null,16,2,null,null,null,null,1,null,null,1,349]
[null,"920","Biographies",null,1,6,null,null,1,null,null,null,0,null,null,null,null,null,null,null,null,8]
[null,"929","GénéalogieHistoire ancienne, archéologie",5,4,20,30,19,67,5,null,3,0,null,null,null,null,null,null,null,1,154]
[null,"930","Histoire ancienne, archéologie, préhistoire",10,14,96,34,5,9,5,null,4,0,null,null,null,null,null,null,null,1,178]
[null,"940","Histoire médiévale, moderne et contemporaine",6,8,67,34,8,33,10,null,3,1,null,null,null,null,null,null,null,1,171]
[null,"944","Histoire de France, histoire locale",32,54,576,219,49,113,27,null,14,1,null,null,1,null,null,null,null,4,1090]
["Total 9XX",null,null,70,95,997,396,98,344,104,null,42,4,null,null,1,null,1,null,null,9,2161]
["Non renseigné",null,null,79,100,1809,891,438,1693,829,null,1172,136,null,9,473,21,2,null,139,74,7865]
["Total général",null,null,583,836,10552,5793,2553,8311,4268,null,4169,412,null,19,1045,34,7,1,245,526,39354]
["Source : Entrées dépôt légal - logiciel de bulletinage"]
["Intitulés cadre de classement : http://www.bnf.fr/documents/intermarc_ref_cdc-perios.pdf"]

{"sheet":"V_éd pub","index":6,"n_rows":144,"n_cols":9,"rows_kept":144,"cut":false,"hidden":false,"merged":[]}
["Nombre de titres vivants Edition publique"]
["Edition publique",2016,2017,2018]
["Hors Edition publique",29507,28949,28233]
["Edition publique",7140,6784,5968]
["Non renseigné",40,39,39]
["Total",36687,35772,34240]
["Source : Entrées dépôt légal - logiciel de bulletinage"]
[]
["Nombre de titres vivants Edition publique par périodicité"]
[null,2016,null,2017,null,2018]
["Périodicité","Hors Publication officielle","Publication officielle","Hors Publication officielle","Publication officielle","Hors Publication officielle","Publication officielle"]
["Triennal",474,127,451,118,420,119]
["Biennal",683,179,629,157,613,151]
["Annuel",7229,2838,7147,2693,7239,2406]
["Semestriel",4444,1312,4348,1195,4330,1107]
["3 fois par an",2108,546,2139,557,1982,524]
["Trimestriel",6460,962,6212,895,6103,753]
["Bimestriel",3291,502,3331,497,3105,438]
["Mensuel",3,null,2893,519,2715,357]
["Bimensuel, ttes les 2 semaines",3031,537,296,46,289,31]
["3 fois par mois",256,28,9,9,4,1]
["Hebdomadaire",8,10,953,29,921,15]
["Semi-hebdomadaire",960,28,18,2,15,1]
["3 fois par semaine",18,3,3,2,2,2]
["5 jours par semaine",4,3,0,0,0,0]
["Quotidien",218,8,212,6,207,3]
["Irrégulier, Autres périodes",320,57,308,59,288,60]
["Total",29507,7140,28949,6784,28233,5968]
[]
["Nombre de titres vivants Edition publique par thématique"]
[null,null,null,2016,null,2017,null,2018]
[null,"Indices","Intitulés","Hors Edition publique","Edition publique","Hors Edition publique","Edition publique","Hors Edition publique","Edition publique"]
["0XX","000 ","Généralités, collections encyclopédiques",89,5,85,5,81,5]
[null,"001 ","Culture générale",66,7,74,7,82,8]
[null,"004 ","Informatique",129,5,115,4,106,4]
[null,"010 ","Bibliographie, catalogues",14,4,13,4,14,4]
[null,"020 ","Sciences de l'information, lecture",39,46,38,38,35,33]
[null,"060 ","Instituts de recherche, archives, musées",93,38,93,38,100,39]
[null,"070 ","Édition, médias, librairie",313,12,299,12,296,12]
[null,"071 ","Magazines généraux",450,16,485,13,474,12]
[null,"072 ","Publications féminines, publications masculines",204,1,201,1,205,1]
[null,"073 ","Presse et collections documentaires pour enfants et adolescents",309,13,320,11,316,11]
[null,"074 ","Presse nationale et locale d’information",410,4,397,3,386,2]
[null,"075 ","Presse parallèle, fanzines",79,null,81,null,98]
[null,"076 ","Journaux internes d’entreprise ",447,212,424,177,370,166]
[null,"077 ","Journaux d’annonces",103,3,99,2,93,1]
[null,"090 ","Bibliophilie",7,null,6,null,6]
["Total 0XX",null,null,2752,366,2730,315,2662,298]
["1XX","100 ","Philosophie",92,7,91,6,95,6]
[null,"130 ","Ésotérisme et sciences occultes",42,null,46,null,48]
[null,"150 ","Psychologie et psychanalyse",127,3,126,3,130,2]
["Total 1XX",null,null,261,10,263,9,273,8]
["2XX","200 ","Religion",102,1,97,1,93,1]
[null,"280 ","Églises chrétiennes",1651,null,1674,null,1656,1]
[null,"294 ","Hindouisme, bouddhisme",11,null,11,null,11]
[null,"296 ","Judaïsme",24,null,19,null,19]
[null,"297 ","Islam",11,null,11,null,11]
[null,"299 ","Autres religions",21,null,22,null,22]
["Total 2XX",null,null,1820,1,1834,1,1812,2]
["3XX","300 ","Sciences sociales, sociologie",244,56,237,53,234,51]
[null,"320 ","Sciences politiques et gouvernement",251,28,229,25,214,47]
[null,"323 ","Droits civils et politiques, citoyenneté, minorités",112,16,105,15,118,18]
[null,"324 ","Partis et mouvements politiques",211,1,185,1,157]
[null,"327 ","Politique internationale",68,5,77,4,67,6]
[null,"330 ","Économie (généralités)",204,152,207,175,170,154]
[null,"331 ","Économie du travail, syndicats",1201,88,1153,84,1109,82]
[null,"332 ","Économie financière",270,41,269,35,246,33]
[null,"333 ","Économie du foncier et de l'énergie",305,168,317,168,291,159]
[null,"338 ","Économie de la production et de la consommation",367,235,351,229,361,226]
[null,"340 ","Droit",579,86,580,78,551,80]
[null,"350 ","Administration publique",102,100,104,83,100,71]
[null,"352 ","Administration territoriale",492,1827,423,1797,381,1307]
[null,"355 ","Armée, défense",184,58,196,63,192,53]
[null,"362 ","Problèmes et services sociaux",1298,151,1379,137,1457,126]
[null,"363 ","Protection de l’environnement",460,417,444,378,423,382]
[null,"366 ","Associations, cercles et clubs divers",538,25,539,28,519,27]
[null,"368 ","Assurances, sécurité sociale, retraites",423,41,400,37,398,32]
[null,"370 ","Éducation, enseignement",173,66,156,58,145,46]
[null,"371 ","Organisation scolaire, pédagogie, parents d’élèves",129,65,118,78,108,70]
[null,"373 ","Enseignement primaire, enseignement secondaire général et technique, journaux scolaires",173,71,177,66,183,53]
[null,"374 ","Formation professionnelle et continue",45,16,38,12,37,12]
[null,"378 ","Enseignement supérieur",179,96,169,87,172,84]
[null,"380 ","Commerce",208,53,196,54,209,46]
[null,"383 ","Moyens de communication",52,12,52,9,45,8]
[null,"385 ","Transports",312,125,304,120,304,94]
[null,"390 ","Ethnologie, anthropologie, folklore",37,3,37,1,35,1]
["Total 3XX",null,null,8617,4002,8442,3875,8226,3268]
["4XX","400 ","Linguistique",64,15,58,14,63,14]
["Total 4XX",null,null,64,15,58,14,63,14]
["5XX","500 ","Sciences (généralités)",95,15,93,17,94,17]
[null,"510 ","Mathématiques",18,9,16,10,18,10]
[null,"520 ","Astronomie",26,6,22,6,24,6]
[null,"530 ","Physique",20,5,16,6,16,4]
[null,"540 ","Chimie, minéralogie",25,null,24,null,24]
[null,"550 ","Sciences de la terre",45,25,45,24,43,22]
[null,"560 ","Paléontologie",7,null,8,null,7]
[null,"570 ","Sciences de la vie",42,7,41,7,43,8]
[null,"580 ","Botanique",66,6,71,7,70,7]
[null,"590 ","Zoologie",142,2,137,3,132,2]
["Total 5XX",null,null,486,75,473,null,471,76]
["6XX","600 ","Sciences appliquées, technologie",46,4,45,4,42,5]
[null,"610 ","Médecine, santé",1148,232,1113,210,1080,189]
[null,"620 ","Sciences de l'ingénieur",298,55,279,53,287,50]
[null,"630 ","Agriculture, élevage",839,354,813,353,777,352]
[null,"640 ","Économie domestique/vie pratique, hôtellerie",524,6,529,7,522,8]
[null,"650 ","Gestion et organisation des entreprises, publicité",383,28,358,24,345,20]
[null,"660 ","Génie chimique et technologies connexes",46,5,40,5,40,5]
[null,"670 ","Industries et métiers divers",257,23,232,18,215,16]
[null,"690 ","Bâtiment",227,12,215,12,186,12]
["Total 6XX",null,null,3768,719,3624,686,3494,657]
["7XX","700 ","Arts (généralités)",466,48,468,42,459,37]
[null,"710 ","Urbanisme, aménagement du territoire",139,59,136,52,127,53]
[null,"720 ","Architecture",125,25,120,25,117,27]
[null,"730 ","Arts plastiques, sculpture",34,5,35,5,33,5]
[null,"740 ","Dessin, arts décoratifs, artisanat d’art, bandes dessinées (histoire et critique)",292,5,275,5,289,6]
[null,"750 ","Peinture, arts graphiques",74,4,73,3,80,3]
[null,"770 ","Photographie",110,3,112,2,111,2]
[null,"778 ","Érotisme, pornographie",22,null,17,null,18]
[null,"780 ","Musique",202,10,191,11,177,11]
[null,"790 ","Spectacles (généralités), loisirs",176,8,178,8,184,7]
[null,"791 ","Audiovisuel",188,16,192,16,184,24]
[null,"792 ","Représentations scéniques",69,8,61,8,58,7]
[null,"793 ","Jeux et divertissements d'intérieur",551,7,593,6,628,6]
[null,"796 ","Sports, activités de plein air",1031,18,1016,16,955,15]
["Total 7XX",null,null,3479,216,3467,199,3420,203]
["8XX","800 ","Littérature générale, histoire et critique littéraires, revues littéraires",618,67,615,58,617,55]
[null,"801 ","Poésie",102,5,104,3,107,3]
[null,"802 ","Théâtre",3,2,3,2,4,1]
[null,"803 ","Roman et fiction romanesque",2,null,5,null,5]
[null,"804 ","Essais littéraires et écrits divers",11,1,11,1,15,1]
[null,"805 ","Bandes dessinées",167,3,152,2,120,2]
[null,"809 ","Littérature pour la jeunesse",23,1,25,1,22,1]
["Total 8XX",null,null,926,79,915,67,890,63]
["9XX","900 ","Histoire et géographie (généralités) ",182,29,188,26,185,26]
[null,"910 ","Géographie, voyages, tourisme",293,42,282,39,293,31]
[null,"920 ","Biographies",8,1,8,1,6]
[null,"929 ","GénéalogieHistoire ancienne, archéologie",149,null,149,null,149]
[null,"930 ","Histoire ancienne, archéologie, préhistoire",148,26,145,24,140,24]
[null,"940 ","Histoire médiévale, moderne et contemporaine",153,13,158,12,160,10]
[null,"944 ","Histoire de France, histoire locale",1080,47,1094,43,1106,41]
["Total 9XX",null,null,2013,158,2024,145,2039,132]
[null,"non renseigné",null,5321,1499,5119,1393,4883,1247]
["Total",null,null,29507,7140,28949,6784,28233,5968]
["Source : Entrées dépôt légal - logiciel de bulletinage"]

{"sheet":"V_om","index":7,"n_rows":403,"n_cols":15,"rows_kept":403,"cut":false,"hidden":false,"merged":[]}
["Nombre de titres vivants outre-mer et thématique"]
[2018]
["Grandes classes","Indices","Intitulés","Réunion","Guadeloupe","Nouvelle-Calédonie","Martinique","Guyane française","Mayotte","Polynésie française","Saint-Martin (partie française)","Saint-Pierre-et-Miquelon","Wallis et Futuna (îles)","Saint-Barthélemy"]
["0XX","000","Généralités, collections encyclopédiques",2,null,3,null,null,null,null,null,null,null,null,5]
[null,"001","Culture générale",1,null,null,null,null,null,null,null,null,null,null,1]
[null,"004","Informatique",3,2,1,null,1,null,null,null,null,null,null,7]
[null,"020","Sciences de l'information, lecture",null,null,1,null,null,null,null,null,null,null,null,1]
[null,"060","Instituts de recherche, archives, musées",null,null,null,1,null,null,null,null,null,null,null,1]
[null,"070","Édition, médias, librairie",2,5,2,null,1,3,null,null,null,null,null,13]
[null,"071","Magazines généraux",9,17,12,8,1,3,1,3,null,null,null,54]
[null,"072","Publications féminines, publications masculines",3,3,6,2,2,3,null,1,null,null,null,20]
[null,"073","Presse et collections documentaires pour enfants et adolescents",3,3,3,1,2,null,1,2,null,null,null,15]
[null,"074","Presse nationale et locale d’information",3,9,7,null,2,2,null,2,null,null,2,27]
[null,"075","Presse parallèle, fanzines",1,1,null,null,null,null,null,null,null,null,null,2]
[null,"076","Journaux internes d’entreprise ",20,4,8,4,3,1,null,null,null,null,null,40]
[null,"077","Journaux d’annonces",null,5,8,2,1,3,null,2,null,null,null,21]
["Total 0XX",null,null,47,49,51,18,13,15,2,10,null,null,2,207]
["1XX","130","Ésotérisme et sciences occultes",null,null,1,null,null,null,null,null,null,null,null,1]
[null,"150","Psychologie et psychanalyse",null,1,null,null,null,null,null,null,null,null,null,1]
["Total 1XX",null,null,null,1,1,null,null,null,null,null,null,null,null,2]
["2XX","200","Religion"]
[null,"280","Églises chrétiennes",5,4,1,3,null,null,null,null,null,null,null,13]
[null,"297","Islam",2,null,null,null,null,null,null,null,null,null,null,2]
[null,299,"Autres religions",null,1,null,null,null,null,null,null,null,null,null,1]
["Total 2XX",null,null,7,5,1,3,null,null,null,null,null,null,null,16]
["3XX","300","Sciences sociales, sociologie",null,null,2,4,1,null,null,null,null,1,null,8]
[null,"320","Sciences politiques et gouvernement",3,3,3,4,2,null,null,null,null,null,null,15]
[null,"323","Droits civils et politiques, citoyenneté, minorités",null,1,1,null,1,null,null,null,null,null,null,3]
[null,"324","Partis et mouvements politiques",7,4,5,3,1,null,null,null,null,null,null,20]
[null,"330","Économie (généralités)",8,9,5,4,2,2,null,null,null,1,null,31]
[null,"331","Économie du travail, syndicats",10,6,10,4,4,null,null,null,null,null,null,34]
[null,"332","Économie financière",1,null,1,null,null,null,null,null,null,null,null,2]
[null,"333","Économie du foncier et de l'énergie",10,6,5,5,2,1,null,null,null,null,null,29]
[null,"338","Économie de la production et de la consommation",8,10,19,7,3,3,1,1,null,null,null,52]
[null,"340","Droit",1,1,4,1,null,null,null,null,null,null,1,8]
[null,"350","Administration publique",null,null,2,null,null,null,null,null,null,null,null,2]
[null,"352","Administration territoriale",24,20,14,13,8,3,null,2,null,null,null,84]
[null,"355","Armée, défense",2,null,3,2,null,null,null,null,null,null,null,7]
[null,"362","Problèmes et services sociaux",12,9,13,5,1,null,null,null,null,null,null,40]
[null,"363","Protection de l’environnement",6,2,13,9,6,null,null,null,null,null,null,36]
[null,"366","Associations, cercles et clubs divers",5,2,1,null,1,null,null,1,null,null,null,10]
[null,"368","Assurances, sécurité sociale, retraites",1,4,2,3,1,null,null,null,null,null,null,11]
[null,"370","Éducation, enseignement",4,1,2,null,null,1,null,null,null,null,null,8]
[null,"371","Organisation scolaire, pédagogie, parents d’élèves",3,1,2,7,1,null,null,null,null,null,null,14]
[null,"373","Enseignement primaire, enseignement secondaire général et technique, journaux scolaires",5,12,5,null,1,3,1,null,null,null,null,27]
[null,"374","Formation professionnelle et continue",1,1,null,null,null,null,null,null,null,null,null,2]
[null,"378","Enseignement supérieur",1,1,1,3,null,null,null,null,null,null,null,6]
[null,"380","Commerce",2,2,1,1,null,1,null,null,null,null,null,7]
[null,"383","Moyens de communication",null,2,1,null,1,null,null,null,null,null,null,4]
[null,"385","Transports",6,3,5,2,2,1,null,null,null,null,null,19]
[null,"390","Ethnologie, anthropologie, folklore",2,null,1,1,null,null,null,null,null,null,null,4]
["Total 3XX",null,null,122,100,121,78,38,15,2,4,0,2,1,483]
["5XX","500","Sciences (généralités)",null,1,null,null,null,2,null,null,null,null,null,{"$f":"SUM(D53:N53)","v":3}]
[null,520,"Astronomie"]
[null,"550","Sciences de la terre",null,null,2,null,null,null,null,null,null,null,null,{"$f":"SUM(D55:N55)","v":2}]
[null,"570","Sciences de la vie"]
[null,"580","Botanique",null,1,null,1,null,null,null,null,null,null,null,2]
[null,"590","Zoologie",1,null,1,null,null,null,1,null,null,null,null,3]
["Total 5XX",null,null,1,2,3,1,null,2,1,null,null,null,null,10]
["6XX","600","Sciences appliquées, technologie",3,null,null,null,null,null,null,null,null,null,null,3]
[null,"610","Médecine, santé",14,6,9,4,4,2,null,null,null,null,null,39]
[null,"620","Sciences de l'ingénieur",4,null,null,null,1,1,null,null,null,null,null,6]
[null,"630","Agriculture, élevage",12,7,12,3,2,null,1,null,null,null,null,37]
[null,"640","Économie domestique/vie pratique, hôtellerie",2,4,3,1,2,1,2,null,null,null,null,15]
[null,"650","Gestion et organisation des entreprises, publicité",7,3,null,1,null,null,null,null,null,null,null,11]
[null,"670","Industries et métiers divers",2,null,5,1,null,null,null,null,null,null,null,8]
[null,"690","Bâtiment",3,2,4,2,1,1,null,null,null,null,null,13]
["Total 6XX",null,null,47,22,33,12,10,5,3,null,null,null,null,132]
["7XX","700","Arts (généralités)",3,2,1,2,null,null,null,null,null,null,null,{"$f":"SUM(D69:N69)","v":8}]
[null,"710","Urbanisme, aménagement du territoire",3,1,1,2,1,null,null,null,null,null,null,{"$f":"SUM(D70:N70)","v":8}]
[null,"720","Architecture",2,1,3,null,null,null,null,null,null,null,null,6]
[null,"740","Dessin, arts décoratifs, artisanat d’art, bandes dessinées (histoire et critique)",3,2,2,1,1,null,null,null,null,null,null,9]
[null,"750","Peinture, arts graphiques",null,null,null,null,null,null,1,null,null,null,null,1]
[null,"770","Photographie",null,null,null,null,null,null,null,null,null,null,null,0]
[null,"780","Musique",2,2,2,1,null,null,null,null,null,null,null,7]
[null,"790","Spectacles (généralités), loisirs",4,8,1,null,1,3,1,null,null,null,null,18]
[null,"791","Audiovisuel",5,2,1,2,1,null,null,null,null,null,null,11]
[null,"792","Représentations scéniques",null,null,null,1,null,null,null,null,null,null,null,1]
[null,"793","Jeux et divertissements d'intérieur",2,2,3,null,null,null,null,null,null,null,null,7]
[null,"796","Sports, activités de plein air",3,5,12,4,2,null,null,null,null,null,null,26]
["Total 7XX",null,null,27,25,26,13,6,3,2,null,null,null,null,102]
["8XX","800","Littérature générale, histoire et critique littéraires, revues littéraires",2,null,3,2,3,null,1,null,null,null,null,11]
[null,"801","Poésie"]
[null,"804","Essais littéraires et écrits divers",null,null,1,null,null,null,null,null,null,null,null,1]
[null,"805","Bandes dessinées",null,1,null,4,null,null,null,null,null,null,null,5]
[null,"809","Littérature pour la jeunesse",null,null,2,null,null,null,null,null,null,null,null,2]
["Total 8XX",null,null,2,1,6,6,3,null,1,null,null,null,null,19]
["9XX","900","Histoire et géographie (généralités) ",null,1,1,3,1,null,null,null,null,null,null,6]
[null,"910","Géographie, voyages, tourisme",5,5,7,3,null,null,1,1,null,null,null,22]
[null,"920","Biographies",null,null,null,null,null,null,null,null,null,null,null,0]
[null,"929","GénéalogieHistoire ancienne, archéologie",1,null,null,1,null,null,null,null,null,null,null,2]
[null,"930","Histoire ancienne, archéologie, préhistoire",null,null,null,null,null,null,null,null,null,null,null,0]
[null,"940","Histoire médiévale, moderne et contemporaine",null,1,null,null,null,1,null,null,null,null,null,2]
[null,"944","Histoire de France, histoire locale",2,1,1,1,null,1,null,null,null,null,null,6]
["Total 9XX",null,null,8,8,9,8,1,2,1,1,null,null,null,38]
[null,"Non renseigné",null,25,18,31,17,12,1,3,null,null,null,null,107]
["Total général",null,null,286,231,282,156,83,43,15,15,null,2,3,1116]
[]
[2017]
["Grandes classes","Indices","Intitulés","Réunion","Guadeloupe","Nouvelle-Calédonie","Martinique","Guyane française","Mayotte","Polynésie française","Saint-Martin (partie française)","Saint-Pierre-et-Miquelon","Wallis et Futuna (îles)","Saint-Barthélemy"]
["0XX","000","Généralités, collections encyclopédiques",3,null,3,null,null,null,null,null,null,null,null,6]
[null,"001","Culture générale",1,null,null,null,null,null,1,null,null,null,null,2]
[null,"004","Informatique",3,2,1,null,1,null,null,null,null,null,null,7]
[null,"020","Sciences de l'information, lecture",1,null,2,null,null,2,null,null,null,null,null,5]
[null,"060","Instituts de recherche, archives, musées",null,null,null,2,null,null,null,null,null,null,null,2]
[null,"070","Édition, médias, librairie",2,6,2,null,2,3,1,null,null,null,null,16]
[null,"071","Magazines généraux",11,25,16,13,1,4,2,4,null,null,1,77]
[null,"072","Publications féminines, publications masculines",5,5,7,4,2,2,null,null,null,null,null,25]
[null,"073","Presse et collections documentaires pour enfants et adolescents",4,3,6,2,1,1,1,2,null,null,null,20]
[null,"074","Presse nationale et locale d’information",5,14,10,null,3,4,null,2,null,null,2,40]
[null,"075","Presse parallèle, fanzines",2,null,1,null,null,null,null,null,null,null,null,3]
[null,"076","Journaux internes d’entreprise ",31,5,7,6,4,1,null,null,null,null,null,54]
[null,"077","Journaux d’annonces",1,5,10,2,1,3,null,2,null,null,null,24]
["Total 0XX",null,null,69,65,65,29,15,20,5,10,null,null,3,281]
["1XX","130","Ésotérisme et sciences occultes",null,null,1,null,null,null,null,null,null,null,null,1]
[null,"150","Psychologie et psychanalyse",null,1,null,null,null,null,null,null,null,null,null,1]
["Total 1XX",null,null,null,1,1,null,null,null,null,null,null,null,null,2]
["2XX","200","Religion",1,null,null,null,null,null,null,null,null,null,null,1]
[null,"280","Églises chrétiennes",6,4,2,5,null,null,null,null,null,null,null,17]
[null,"297","Islam",4,null,null,null,null,null,null,null,null,null,null,4]
[null,299,"Autres religions",null,1,null,null,null,null,null,null,null,null,null,1]
["Total 2XX",null,null,11,5,2,5,null,null,null,null,null,null,null,23]
["3XX","300","Sciences sociales, sociologie",null,1,3,4,1,null,null,null,null,1,null,10]
[null,"320","Sciences politiques et gouvernement",4,4,4,4,5,null,null,null,null,null,null,21]
[null,"323","Droits civils et politiques, citoyenneté, minorités",null,2,1,1,1,null,null,null,null,null,null,5]
[null,"324","Partis et mouvements politiques",20,4,5,3,1,null,null,null,null,null,null,33]
[null,"330","Économie (généralités)",8,26,8,8,4,2,null,null,null,2,null,58]
[null,"331","Économie du travail, syndicats",19,12,10,9,4,null,null,null,null,null,null,54]
[null,"332","Économie financière",1,null,1,null,null,null,null,null,null,null,null,2]
[null,"333","Économie du foncier et de l'énergie",14,6,8,6,6,1,null,null,null,null,null,41]
[null,"338","Économie de la production et de la consommation",12,12,22,7,3,3,1,2,1,null,null,63]
[null,"340","Droit",1,2,4,2,null,null,2,null,null,null,1,12]
[null,"350","Administration publique",null,1,3,null,null,null,1,null,null,null,null,5]
[null,"352","Administration territoriale",34,44,19,18,31,7,null,2,5,null,2,162]
[null,"355","Armée, défense",3,null,3,2,3,null,null,null,null,null,null,11]
[null,"362","Problèmes et services sociaux",19,13,17,9,4,null,null,null,null,null,null,62]
[null,"363","Protection de l’environnement",7,3,14,12,6,null,null,1,null,null,null,43]
[null,"366","Associations, cercles et clubs divers",7,5,1,null,1,null,null,1,null,null,null,15]
[null,"368","Assurances, sécurité sociale, retraites",2,4,3,5,3,null,null,null,null,null,null,17]
[null,"370","Éducation, enseignement",6,2,4,null,1,2,1,null,null,null,null,16]
[null,"371","Organisation scolaire, pédagogie, parents d’élèves",6,1,2,7,4,null,null,null,null,null,null,20]
[null,"373","Enseignement primaire, enseignement secondaire général et technique, journaux scolaires",9,24,9,1,7,3,1,null,null,null,null,54]
[null,"374","Formation professionnelle et continue",1,2,null,null,null,null,null,1,null,null,null,4]
[null,"378","Enseignement supérieur",6,2,1,3,null,null,null,null,null,null,null,12]
[null,"380","Commerce",3,4,1,1,1,1,null,null,null,null,null,11]
[null,"383","Moyens de communication",2,3,1,null,1,null,null,null,null,null,null,7]
[null,"385","Transports",5,6,5,1,3,1,null,null,null,null,null,21]
[null,"390","Ethnologie, anthropologie, folklore",3,1,null,1,null,null,null,null,null,null,null,5]
["Total 3XX",null,null,192,184,149,104,90,20,6,7,6,3,3,1376]
["5XX","500","Sciences (généralités)",1,1,null,null,null,2,null,null,null,null,null,4]
[null,520,"Astronomie",null,null,null,1,null,null,null,null,null,null,null,1]
[null,"550","Sciences de la terre",2,1,3,1,1,null,null,null,null,null,null,8]
[null,"570","Sciences de la vie",null,1,null,null,null,null,null,null,null,null,null,1]
[null,"580","Botanique",null,1,null,1,null,null,null,null,null,null,null,2]
[null,"590","Zoologie",1,null,1,null,null,null,1,null,null,null,null,3]
["Total 5XX",null,null,4,4,4,3,1,2,1,null,null,null,null,19]
["6XX","600","Sciences appliquées, technologie",3,null,null,null,1,null,null,null,null,null,null,4]
[null,"610","Médecine, santé",16,9,12,7,4,3,null,1,null,null,null,52]
[null,"620","Sciences de l'ingénieur",4,1,null,1,3,1,null,null,null,null,null,10]
[null,"630","Agriculture, élevage",27,14,16,6,5,2,1,null,null,null,null,71]
[null,"640","Économie domestique/vie pratique, hôtellerie",2,4,6,1,2,1,null,null,null,null,null,16]
[null,"650","Gestion et organisation des entreprises, publicité",9,4,1,2,2,null,null,null,null,null,null,18]
[null,"670","Industries et métiers divers",1,1,6,1,1,null,null,null,null,null,null,10]
[null,"690","Bâtiment",10,8,7,3,1,2,null,null,null,null,null,31]
["Total 6XX",null,null,72,41,48,null,19,9,1,1,null,null,null,212]
["7XX","700","Arts (généralités)",4,4,3,4,null,null,1,null,null,null,null,16]
[null,"710","Urbanisme, aménagement du territoire",5,1,1,3,3,null,null,null,null,null,null,13]
[null,"720","Architecture",2,3,4,null,null,null,null,null,null,null,null,9]
[null,"740","Dessin, arts décoratifs, artisanat d’art, bandes dessinées (histoire et critique)",2,2,2,null,1,1,null,null,null,null,null,8]
[null,"750","Peinture, arts graphiques",null,null,null,null,null,null,1,null,null,null,null,1]
[null,"770","Photographie",1,null,null,null,null,null,null,null,null,null,null,1]
[null,"780","Musique",2,3,1,1,null,null,null,null,null,null,null,7]
[null,"790","Spectacles (généralités), loisirs",4,9,2,null,2,3,1,null,null,null,null,21]
[null,"791","Audiovisuel",5,4,2,2,1,null,null,null,null,null,null,14]
[null,"792","Représentations scéniques",null,1,null,null,null,null,null,null,null,null,null,1]
[null,"793","Jeux et divertissements d'intérieur",6,1,3,1,null,null,null,null,null,null,null,11]
[null,"796","Sports, activités de plein air",11,12,15,9,3,null,null,null,null,null,null,50]
["Total 7XX",null,null,42,40,33,20,10,4,3,null,null,null,null,152]
["8XX","800","Littérature générale, histoire et critique littéraires, revues littéraires",4,null,5,3,5,null,1,null,null,null,null,18]
[null,"801","Poésie",null,1,null,1,null,null,null,null,null,null,null,2]
[null,"804","Essais littéraires et écrits divers",null,null,1,null,null,null,null,null,null,null,null,1]
[null,"805","Bandes dessinées",1,1,null,4,null,null,null,null,null,null,null,6]
[null,"809","Littérature pour la jeunesse",null,null,1,null,null,null,null,null,null,null,null,1]
["Total 8XX",null,null,5,2,7,8,5,null,1,null,null,null,null,28]
["9XX","900","Histoire et géographie (généralités) ",null,2,1,3,2,null,1,null,null,null,null,9]
[null,"910","Géographie, voyages, tourisme",7,8,8,4,1,null,1,1,null,null,null,30]
[null,"920","Biographies",1,null,null,null,null,null,null,null,null,null,null,1]
[null,"929","GénéalogieHistoire ancienne, archéologie",1,1,null,1,null,null,null,null,null,null,null,3]
[null,"930","Histoire ancienne, archéologie, préhistoire",null,null,null,null,null,null,1,1,null,null,null,2]
[null,"940","Histoire médiévale, moderne et contemporaine",null,2,null,null,null,1,null,null,null,null,null,3]
[null,"944","Histoire de France, histoire locale",2,1,1,null,null,1,null,null,null,1,null,6]
["Total 9XX",null,null,11,14,10,8,3,2,3,2,null,1,null,54]
[null,"Non renseigné",null,43,33,37,27,19,1,5,null,1,1,null,167]
["Total général",null,null,449,389,356,225,162,58,25,20,7,5,6,1702]
[]
[2016]
["Grandes classes","Indices","Intitulés","Réunion","Guadeloupe","Nouvelle-Calédonie","Martinique","Guyane française","Mayotte","Polynésie française","Saint-Martin (partie française)","Saint-Pierre-et-Miquelon","Wallis et Futuna (îles)","Saint-Barthélemy"]
["0XX","000","Généralités, collections encyclopédiques",3,null,3,null,null,null,null,null,null,null,null,6]
[null,"001","Culture générale",1,null,null,null,null,null,1,null,null,null,null,2]
[null,"004","Informatique",3,2,1,null,1,null,null,null,null,null,null,7]
[null,"020","Sciences de l'information, lecture",1,null,2,null,null,2,null,null,null,null,null,5]
[null,"060","Instituts de recherche, archives, musées",null,null,null,2,null,null,null,null,null,null,null,2]
[null,"070","Édition, médias, librairie",2,6,2,null,2,3,1,null,null,null,null,16]
[null,"071","Magazines généraux",10,24,16,14,1,4,2,3,null,null,1,75]
[null,"072","Publications féminines, publications masculines",6,5,7,4,2,2,null,null,null,null,null,26]
[null,"073","Presse et collections documentaires pour enfants et adolescents",4,4,6,2,1,1,1,2,null,null,null,21]
[null,"074","Presse nationale et locale d’information",6,14,11,null,3,4,null,1,null,null,2,41]
[null,"075","Presse parallèle, fanzines",2,null,1,null,null,null,null,null,null,null,null,3]
[null,"076","Journaux internes d’entreprise ",31,5,8,5,4,1,null,null,null,null,null,54]
[null,"077","Journaux d’annonces",1,5,10,2,1,3,null,1,null,null,null,23]
["Total 0XX",null,null,70,65,67,29,15,20,5,7,0,0,3,281]
["1XX","130","Ésotérisme et sciences occultes",null,null,1,null,null,null,null,null,null,null,null,1]
[null,"150","Psychologie et psychanalyse",null,1,null,null,null,null,null,null,null,null,null,1]
["Total 1XX",null,null,0,1,1,0,0,0,0,0,0,0,0,2]
["2XX","200","Religion",1,null,null,null,null,null,null,null,null,null,null,1]
[null,"280","Églises chrétiennes",6,4,2,5,null,null,null,null,null,null,null,17]
[null,"297","Islam",3,null,null,null,null,null,null,null,null,null,null,3]
["Total 2XX",null,null,10,4,2,5,0,0,0,0,0,0,0,21]
["3XX","300","Sciences sociales, sociologie",null,1,3,4,1,null,null,null,null,1,null,10]
[null,"320","Sciences politiques et gouvernement",4,4,4,4,5,null,null,null,null,null,null,21]
[null,"323","Droits civils et politiques, citoyenneté, minorités",null,2,1,1,1,null,null,null,null,null,null,5]
[null,"324","Partis et mouvements politiques",19,4,6,3,1,null,null,null,null,null,null,33]
[null,"330","Économie (généralités)",6,25,9,8,4,4,null,null,null,2,null,58]
[null,"331","Économie du travail, syndicats",19,12,12,10,4,null,null,null,null,null,null,57]
[null,"332","Économie financière",1,null,1,null,null,null,null,null,null,null,null,2]
[null,"333","Économie du foncier et de l'énergie",14,6,8,5,6,null,null,null,null,null,null,39]
[null,"338","Économie de la production et de la consommation",12,12,19,7,3,3,1,2,1,null,null,60]
[null,"340","Droit",1,2,4,2,null,null,2,null,null,null,1,12]
[null,"350","Administration publique",null,1,3,null,null,null,1,null,null,null,null,5]
[null,"352","Administration territoriale",34,42,20,18,30,7,null,2,5,null,2,160]
[null,"355","Armée, défense",3,null,3,2,3,null,null,null,null,null,null,11]
[null,"362","Problèmes et services sociaux",19,12,17,9,3,null,null,null,null,null,null,60]
[null,"363","Protection de l’environnement",7,3,14,9,6,null,null,1,null,null,null,40]
[null,"366","Associations, cercles et clubs divers",7,5,1,null,1,null,null,1,null,null,null,15]
[null,"368","Assurances, sécurité sociale, retraites",2,5,3,4,3,null,null,null,null,null,null,17]
[null,"370","Éducation, enseignement",6,2,4,null,1,2,1,null,null,null,null,16]
[null,"371","Organisation scolaire, pédagogie, parents d’élèves",6,1,2,7,4,null,null,null,null,null,null,20]
[null,"373","Enseignement primaire, enseignement secondaire général et technique, journaux scolaires",9,24,9,1,7,3,1,null,null,null,null,54]
[null,"374","Formation professionnelle et continue",1,2,null,null,null,null,null,1,null,null,null,4]
[null,"378","Enseignement supérieur",6,2,1,3,null,null,null,null,null,null,null,12]
[null,"380","Commerce",3,4,1,1,1,1,null,null,null,null,null,11]
[null,"383","Moyens de communication",2,3,1,null,1,null,null,null,null,null,null,7]
[null,"385","Transports",5,6,5,2,3,1,null,null,null,null,null,22]
[null,"390","Ethnologie, anthropologie, folklore",3,1,null,1,null,null,null,null,null,null,null,5]
["Total 3XX",null,null,189,181,151,101,88,21,6,7,6,3,3,756]
["5XX","500","Sciences (généralités)",1,1,null,null,null,2,null,null,null,null,null,4]
[null,520,"Astronomie",null,null,null,1,null,null,null,null,null,null,null,1]
[null,"550","Sciences de la terre",2,1,3,1,1,null,null,null,null,null,null,8]
[null,"570","Sciences de la vie",null,1,null,null,null,null,null,null,null,null,null,1]
[null,"580","Botanique",null,1,null,1,null,null,null,null,null,null,null,2]
[null,"590","Zoologie",1,null,1,null,null,null,1,null,null,null,null,3]
["Total 5XX",null,null,4,4,4,3,1,2,1,0,0,0,0,19]
["6XX","600","Sciences appliquées, technologie",2,null,null,null,1,null,null,null,null,null,null,3]
[null,"610","Médecine, santé",15,9,11,7,4,3,null,1,null,null,null,50]
[null,"620","Sciences de l'ingénieur",4,1,null,1,3,1,null,null,null,null,null,10]
[null,"630","Agriculture, élevage",27,14,15,6,5,2,1,null,null,null,null,70]
[null,"640","Économie domestique/vie pratique, hôtellerie",2,4,6,1,2,1,null,null,null,null,null,16]
[null,"650","Gestion et organisation des entreprises, publicité",9,4,1,2,2,null,null,null,null,null,null,18]
[null,"670","Industries et métiers divers",1,1,6,1,1,null,null,null,null,null,null,10]
[null,"690","Bâtiment",10,8,7,3,1,2,null,null,null,null,null,31]
["Total 6XX",null,null,70,41,46,21,19,9,1,1,0,0,0,208]
["7XX","700","Arts (généralités)",4,4,3,4,null,null,1,null,null,null,null,16]
[null,"710","Urbanisme, aménagement du territoire",5,1,1,3,3,null,null,null,null,null,null,13]
[null,"720","Architecture",2,3,4,null,null,null,null,null,null,null,null,9]
[null,"740","Dessin, arts décoratifs, artisanat d’art, bandes dessinées (histoire et critique)",2,1,1,null,1,1,null,null,null,null,null,6]
[null,"750","Peinture, arts graphiques",null,null,null,null,null,null,1,null,null,null,null,1]
[null,"770","Photographie",1,null,null,null,null,null,null,null,null,null,null,1]
[null,"780","Musique",2,3,1,1,null,null,null,null,null,null,null,7]
[null,"790","Spectacles (généralités), loisirs",4,8,2,null,2,3,null,null,null,null,null,19]
[null,"791","Audiovisuel",5,3,2,1,1,null,null,null,null,null,null,12]
[null,"792","Représentations scéniques",null,1,null,null,null,null,null,null,null,null,null,1]
[null,"793","Jeux et divertissements d'intérieur",6,1,3,1,null,null,null,null,null,null,null,11]
[null,"796","Sports, activités de plein air",11,12,14,8,3,null,null,null,null,null,null,48]
["Total 7XX",null,null,42,37,31,18,10,4,2,0,0,0,0,144]
["8XX","800","Littérature générale, histoire et critique littéraires, revues littéraires",4,null,5,3,5,null,1,null,null,null,null,18]
[null,"801","Poésie",null,1,null,1,null,null,null,null,null,null,null,2]
[null,"804","Essais littéraires et écrits divers",null,null,1,null,null,null,null,null,null,null,null,1]
[null,"805","Bandes dessinées",1,1,null,4,null,null,null,null,null,null,null,6]
[null,"809","Littérature pour la jeunesse",null,null,1,null,null,null,null,null,null,null,null,1]
["Total 8XX",null,null,5,2,7,8,5,0,1,0,0,0,0,28]
["9XX","900","Histoire et géographie (généralités) ",null,2,1,3,2,null,1,null,null,null,null,9]
[null,"910","Géographie, voyages, tourisme",7,8,7,4,1,null,1,1,null,null,null,29]
[null,"920","Biographies",1,null,null,null,null,null,null,null,null,null,null,1]
[null,"929","GénéalogieHistoire ancienne, archéologie",1,1,null,1,null,null,null,null,null,null,null,3]
[null,"930","Histoire ancienne, archéologie, préhistoire",null,null,null,null,null,null,1,1,null,null,null,2]
[null,"940","Histoire médiévale, moderne et contemporaine",null,2,null,null,null,1,null,null,null,null,null,3]
[null,"944","Histoire de France, histoire locale",2,1,1,null,null,1,null,null,null,1,null,6]
["Total 9XX",null,null,11,14,9,8,3,2,3,2,0,1,0,53]
[null,"Non renseigné",null,43,33,37,27,19,1,5,null,1,1,null,167]
["Total général",null,null,444,382,355,220,160,59,24,17,7,5,6,1679]
[2018]
["Langues","Réunion","Guadeloupe","Nouvelle-Calédonie","Martinique","Guyane française","Mayotte","Polynésie française","Saint-Martin (partie française)","Saint-Pierre-et-Miquelon","Wallis et Futuna (îles)","Saint-Barthélemy","Total général"]
["français",282,221,279,156,83,43,15,13,null,3,2,{"$f":"SUM(B293:L293)","v":1097}]
["anglais                                                                     ",3,7,1,null,null,null,null,2,null,null,null,{"$f":"SUM(B294:L294)","v":13}]
["multilingue ",null,null,1,null,null,null,null,null,null,null,null,1]
["créole ou pidgin français                                                   ",1,1,null,null,null,null,null,null,null,null,null,2]
["japonais",null,null,1,null,null,null,null,null,null,null,null,1]
["espagnol ",null,1,null,null,null,null,null,null,null,null,null,1]
["italien",null,1,null,null,null,null,null,null,null,null,null,1]
["Total général",286,231,282,156,83,43,15,15,0,3,2,1116]
[]
[2017]
["Langues","Réunion","Guadeloupe","Nouvelle-Calédonie","Martinique","Guyane française","Mayotte","Polynésie française","Saint-Martin (partie française)","Saint-Pierre-et-Miquelon","Wallis et Futuna (îles)","Saint-Barthélemy","Total général"]
["français",445,380,353,224,160,58,25,18,7,5,5,1680]
["anglais                                                                     ",3,7,1,1,null,null,null,2,null,null,1,15]
["multilingue ",null,null,1,null,1,null,null,null,null,null,null,2]
["créole ou pidgin français                                                   ",1,null,null,null,1,null,null,null,null,null,null,2]
["japonais",null,null,1,null,null,null,null,null,null,null,null,1]
["espagnol ",null,1,null,null,null,null,null,null,null,null,null,1]
["italien",null,1,null,null,null,null,null,null,null,null,null,1]
["Total général",449,389,356,225,162,58,25,20,7,5,6,1702]
[]
[2016]
["Langues","Réunion","Guadeloupe","Nouvelle-Calédonie","Martinique","Guyane française","Mayotte","Polynésie française","Saint-Martin (partie française)","Saint-Pierre-et-Miquelon","Wallis et Futuna (îles)","Saint-Barthélemy","Total général"]
["français",440,373,352,219,158,59,24,16,7,5,5,1658]
["anglais                                                                     ",3,7,1,1,null,null,null,1,null,null,1,14]
["multilingue ",null,null,1,null,1,null,null,null,null,null,null,2]
["créole ou pidgin français                                                   ",1,null,null,null,1,null,null,null,null,null,null,2]
["japonais",null,null,1,null,null,null,null,null,null,null,null,1]
["espagnol ",null,1,null,null,null,null,null,null,null,null,null,1]
["italien",null,1,null,null,null,null,null,null,null,null,null,1]
["Total général",444,382,355,220,160,59,24,17,7,5,6,1679]
["Source : Entrées dépôt légal - logiciel de bulletinage"]
[]
["Nombre de titres vivants outre-mer et Edition publique"]
[2018,"Réunion","Guadeloupe","Nouvelle-Calédonie","Martinique","Guyane française","Mayotte","Polynésie française","Saint-Martin (partie française)","Saint-Pierre-et-Miquelon","Wallis et Futuna (îles)","Saint-Barthélemy","Total général"]
["Hors Edition publique",204,176,196,103,48,32,13,12,null,3,null,787]
["Edition publique",82,55,86,53,35,11,2,3,null,null,2,329]
["Total",286,231,282,156,83,43,15,15,0,3,2,1116]
[]
[2017,"Réunion","Guadeloupe","Nouvelle-Calédonie","Martinique","Guyane française","Mayotte","Polynésie française","Saint-Martin (partie française)","Saint-Pierre-et-Miquelon","Wallis et Futuna (îles)","Saint-Barthélemy","Total général"]
["Hors Edition publique",314,278,252,151,78,40,18,17,null,2,4,1154]
["Edition publique",135,111,104,74,84,18,7,3,7,3,2,548]
["Total",449,389,356,225,162,58,25,20,7,5,6,1702]
[]
[2016,"Réunion","Guadeloupe","Nouvelle-Calédonie","Martinique","Guyane française","Mayotte","Polynésie française","Saint-Martin (partie française)","Saint-Pierre-et-Miquelon","Wallis et Futuna (îles)","Saint-Barthélemy","Total général"]
["Hors Edition publique",310,274,250,147,77,41,17,14,null,2,4,1136]
["Edition publique",134,108,105,73,83,18,7,3,7,3,2,543]
["Total",444,382,355,220,160,59,24,17,7,5,6,1679]
["Source : Entrées dépôt légal - logiciel de bulletinage"]
[]
["Nombre de titres vivants outre-mer et périodicité"]
[2018]
["Périodicité","Réunion","Guadeloupe","Nouvelle-Calédonie","Martinique","Guyane française","Mayotte","Polynésie française","Saint-Martin (partie française)","Saint-Pierre-et-Miquelon","Wallis et Futuna (îles)","Saint-Barthélemy","Total général"]
["01-Triennal",4,1,2,2,1,null,null,null,null,null,null,{"$f":"SUM(B345:L345)","v":10}]
["02-Biennal",1,3,2,3,null,null,2,null,null,null,null,{"$f":"SUM(B346:L346)","v":11}]
["03-Annuel",67,51,86,38,25,14,1,1,null,null,1,284]
["04-Semestriel",42,30,34,20,7,null,3,null,null,null,1,137]
["05-3 fois par an",21,16,19,8,4,5,2,null,null,null,null,75]
["06-Trimestriel",74,40,54,34,17,6,2,3,null,null,null,230]
["07-Bimestriel",32,26,33,22,9,2,1,null,null,null,null,125]
["09-Mensuel",32,35,34,16,15,9,4,8,null,1,null,154]
["10-Bimensuel",2,1,2,2,null,1,null,null,null,null,null,8]
["11-Toutes les 2 semaines",1,1,2,1,null,2,null,null,null,null,null,7]
["12-3 fois par mois",null,null,1,null,null,null,null,null,null,null,null,1]
["13-Hebdomadaire",4,22,8,7,2,3,null,1,null,null,null,47]
["14-Semi-hebdomadaire",null,null,1,null,null,null,null,1,null,null,null,2]
["16-5 jours par semaine"]
["17-Quotidien",5,5,1,2,3,1,null,1,null,2,null,20]
["18-Irrégulier, Autres périodes",1,null,3,1,null,null,null,null,null,null,null,5]
["Total général",286,231,282,156,83,43,15,15,null,3,2,{"$f":"SUM(M345:M360)","v":1116}]
[]
["Source : Entrées dépôt légal - logiciel de bulletinage"]
[2017]
["Périodicité","Réunion","Guadeloupe","Nouvelle-Calédonie","Martinique","Guyane française","Mayotte","Polynésie française","Saint-Martin (partie française)","Saint-Pierre-et-Miquelon","Wallis et Futuna (îles)","Saint-Barthélemy","Total général"]
["01-Triennal",5,1,5,2,3,null,null,null,null,null,null,16]
["02-Biennal",1,7,2,2,null,null,2,null,null,null,null,14]
["03-Annuel",112,96,116,52,60,18,8,1,2,2,2,469]
["04-Semestriel",63,49,40,30,12,null,3,1,2,1,null,201]
["05-3 fois par an",31,23,21,12,6,7,2,null,null,null,null,102]
["06-Trimestriel",113,65,61,48,32,9,3,4,1,1,1,338]
["07-Bimestriel",47,56,43,36,16,3,null,2,null,null,null,203]
["09-Mensuel",62,50,47,26,26,12,5,8,2,null,1,239]
["10-Bimensuel",2,3,2,3,null,1,null,null,null,null,null,11]
["11-Toutes les 2 semaines",2,1,3,1,null,2,null,1,null,1,null,11]
["12-3 fois par mois",null,null,1,null,null,null,null,null,null,null,null,1]
["13-Hebdomadaire",5,33,9,7,4,5,1,1,null,null,null,65]
["14-Semi-hebdomadaire",null,null,2,null,null,null,null,1,null,null,null,3]
["16-5 jours par semaine"]
["17-Quotidien",5,5,1,2,3,1,null,1,null,null,2,20]
["18-Irrégulier, Autres périodes",1,null,3,4,null,null,null,null,null,null,null,8]
["Total général",449,389,356,225,162,58,25,20,7,5,6,1702]
[]
[2016]
["Périodicité","Réunion","Guadeloupe","Nouvelle-Calédonie","Martinique","Guyane française","Mayotte","Polynésie française","Saint-Martin (partie française)","Saint-Pierre-et-Miquelon","Wallis et Futuna (îles)","Saint-Barthélemy","Total général"]
["01-Triennal",5,1,5,null,3,null,null,null,null,null,null,14]
["02-Biennal",1,6,2,2,null,18,2,null,null,null,null,31]
["03-Annuel",109,93,112,50,58,1,8,1,2,2,2,438]
["04-Semestriel",60,50,38,30,12,6,3,1,2,1,null,203]
["05-3 fois par an",31,23,18,13,6,10,1,null,null,null,null,102]
["06-Trimestriel",114,67,72,47,33,3,4,4,1,1,1,347]
["07-Bimestriel",46,52,40,35,15,12,null,2,null,null,null,202]
["09-Mensuel",62,50,47,27,26,1,4,6,2,null,1,226]
["10-Bimensuel",1,2,2,3,null,2,null,null,null,null,null,10]
["11-Toutes les 2 semaines",2,1,3,1,null,null,null,1,null,1,null,9]
["12-3 fois par mois",null,null,1,null,null,null,null,null,null,null,null,1]
["13-Hebdomadaire",7,32,9,6,4,5,1,1,null,null,null,65]
["14-Semi-hebdomadaire",null,null,2,null,null,null,null,null,null,null,null,2]
["15-3 fois par semaine",null,null,null,null,null,null,1,null,null,null,null,1]
["16-5 jours par semaine",null,5,1,2,3,1,null,1,null,null,null,13]
["17-Quotidien",5,null,3,null,null,null,null,null,null,null,2,10]
["18-Irrégulier, Autres périodes",1,null,null,4,null,null,null,null,null,null,null,5]
["Total général",444,382,355,220,160,59,24,17,7,5,6,1679]

{"sheet":"Cess","index":8,"n_rows":255,"n_cols":34,"rows_kept":255,"cut":false,"hidden":false,"merged":[[2,7,2,11]]}
["Nombre de cessations de parution par année",null,null,null,null,null,"Nombre de cessations de parution par âge des publications*",null,null,null,null,null,null,null,null,"Titres morts dans le logiciel de bulletinage depuis 2006 par âge",null,null,null,"Nombre de périodiques par année de naissance et par statut"]
["(attention, cessations constatées en… et non titres morts en…)",null,null,null,null,null,null,null,null,null,null,null,null,null,null,null,null,null,null,null,"Nés en"]
["Cessation constatée en","Nombre",null,null,null,null,null,"Cessation constatée en ",null,null,null,null,null,null,null,"Age de la publication au moment de la cessation","valeur",null,null,null,2005,2006,2007,2008,2009,2010,2011,2012,2013,2014,2015,2016,2017,2018]
[2016,2843,null,null,null,null,"Age de la publication au moment de la cessation",2011,2012,2013,2014,2015,2016,2017,2018,0,4770,null,null,"Titres vivants",750,774,826,891,939,1742,981,1188,1089,1237,1415,1656,1583,1084]
[2017,3231,null,null,null,null,0,392,464,364,384,380,30,28,23,1,4098,null,null,"Titres en cessation",107,110,126,151,136,209,146,154,142,169,421,153,154,23]
[2018,3713,null,null,null,null,1,344,317,278,321,295,145,137,154,2,3366,null,null,"Total nés en... ",{"$f":"SUM(U4:U5)","v":857},{"$f":"SUM(V4:V5)","v":884},952,1042,1075,1951,1127,1342,1231,1406,1836,1809,1737,1107]
["Total",9787,null,null,null,null,2,271,248,227,222,247,197,179,153,3,2997,null,null,"Source : Entrées dépôt légal - logiciel de bulletinage"]
["Source : Entrées dépôt légal - logiciel de bulletinage",null,null,null,null,null,3,219,197,201,196,206,168,205,421,4,2465,null,null,"Périodiques en cessation par année de naissance "]
[null,null,null,null,null,null,4,167,141,158,165,153,163,190,169,5,2319,null,null,null,"Cessés en"]
["Nombre de cessations de parution par pays et par année",null,null,null,null,null,5,143,154,142,125,122,150,182,142,6,2046,null,null,"Nés en","2005","2006","2007","2008","2009","2010","2011","2012","2013","2014","2015",2016,2017,2018]
[null,"Nouvelles régions",2016,2017,2018,null,6,141,131,135,89,132,205,160,154,7,1826,null,null,"2005",148,383,346,364,307,212,154,143,146,100,96,75,48,35]
["France hors Outre-Mer","Grand Est",183,206,218,null,7,108,124,115,117,103,167,194,146,8,1635,null,null,"2006",null,493,462,385,296,207,155,158,137,101,109,63,35,11]
[null,"Nouvelle Aquitaine",235,257,283,null,8,112,127,86,76,98,113,159,209,9,1561,null,null,"2007",null,null,415,379,289,263,161,168,129,107,91,59,32,10]
[null,"Auvergne - Rhône Alpes",257,320,349,null,9,111,122,113,70,86,108,137,136,10,1315,null,null,"2008",null,null,null,468,343,304,221,172,161,132,135,86,65,11]
[null,"Normandie",93,102,117,null,10,105,130,95,58,87,109,110,151,11,1224,null,null,"2009",null,null,null,null,433,404,291,269,213,189,156,97,40,12]
[null,"Bourgogne - Franche-Comté",131,120,161,null,11,66,107,100,45,68,102,105,126,12,1132,null,null,"2010",null,null,null,null,null,452,332,289,291,235,196,131,88,33]
[null,"Bretagne",76,107,103,null,12,42,49,101,56,85,79,123,110,13,944,null,null,"2011",null,null,null,null,null,null,388,346,259,206,129,109,98,11]
[null,"Centre - Val-de-Loire",73,93,94,null,13,40,44,57,30,78,72,109,107,14,902,null,null,"2012",null,null,null,null,null,null,null,421,386,206,175,147,104,23]
[null,"Corse",7,10,16,null,14,42,46,33,46,72,58,85,85,15,860,null,null,"2013",null,null,null,null,null,null,null,null,401,253,240,158,78,28]
[null,"Ile-de-France",1185,1333,1207,null,15,40,50,36,36,53,61,66,102,16,931,null,null,"2014",null,null,null,null,null,null,null,null,null,314,250,157,75,23]
[null,"Occitanie",152,201,235,null,16,53,35,113,28,32,196,53,77,17,745,null,null,"2015",null,null,null,null,null,null,null,null,null,null,278,177,110,28]
[null,"Hauts-de-France",142,165,155,null,17,42,43,34,24,32,44,222,59,18,633,null,null,2016,null,null,null,null,null,null,null,null,null,null,null,199,145,30]
[null,"Pays de la Loire",115,95,105,null,18,55,41,33,27,31,28,55,295,19,510,null,null,2017,null,null,null,null,null,null,null,null,null,null,null,null,171,50]
[null,"Provence-Alpes-Côte d'Azur",162,155,177,null,19,31,50,30,21,38,38,44,48,20,520,null,null,2018,null,null,null,null,null,null,null,null,null,null,null,null,null,30]
[null,"Non renseigné",10,10,3,null,20,56,34,37,22,30,53,44,45,21,486,null,null,"Moyenne des titres qui cessent dans leur première année / nombre de titres parus cette même année sur 14 ans : 23,4%"]
["Total France hors Outre-Mer",null,2821,3174,{"$f":"SUM(E12:E25)","v":3223},null,21,17,38,37,14,35,37,33,35,22,419,null,null,"Source : Entrées dépôt légal - logiciel de bulletinage"]
["France d'Outre-Mer","Guadeloupe",0,2,103,null,22,14,21,48,17,35,24,34,33,23,333]
[null,"Guyane française ",1,null,56,null,23,19,15,11,6,31,20,22,42,24,389,null,null,"Age médian au moment de la cessation"]
[null,"Martinique",1,4,54,null,24,13,13,12,17,26,21,19,44,25,293]
[null,"Mayotte ",1,2,12,null,25,6,18,9,13,13,17,33,31,26,389,null,null,null,2011,2012,2013,2014,2015,2016,2017,2018]
[null,"Nouvelle-Calédonie",0,2,73,null,26,12,14,13,13,20,83,23,28,27,271,null,null,"Age médian ","6 ans","6 ans","6 ans","6 ans","8 ans","8 ans","9 ans","13 ans"]
[null,"Polynésie française",1,null,9,null,27,11,12,21,12,9,16,90,19,28,262,null,null,"Source : Entrées dépôt légal - logiciel de bulletinage"]
[null,"Réunion",1,3,142,null,28,18,10,10,3,9,7,13,105,29,308]
[null,"Saint-Barthélémy",null,null,3,null,29,20,13,9,5,15,8,17,9,30,308]
[null,"Saint-Martin (partie française)",0,null,3,null,30,20,15,12,9,4,15,22,23,30,200]
[null,"Saint-Pierre-et-Miquelon",null,null,7,null,31,10,12,2,7,16,9,8,14,31,181]
[null,"Wallis-et-Futuna",null,1,2,null,32,3,10,8,12,10,9,7,16,32,218]
[null,null,5,{"$f":"SUM(D27:D37)","v":14},{"$f":"SUM(E27:E37)","v":464},null,33,8,9,10,10,16,14,12,17,33,227]
["Autres pays","Allemagne",1,4,null,null,34,7,10,7,6,13,12,6,9,34,124]
[null,"Belgique                                                                     ",2,5,6,null,35,5,5,5,8,6,10,8,14,35,220]
[null,"Cameroun",1,null,null,null,36,3,9,2,5,8,32,4,18,36,107]
[null,"Canada",null,2,null,null,37,4,4,4,3,6,7,38,5,37,115]
[null,"Egypte",1,1,null,null,38,6,9,5,6,7,3,7,35,38,127]
[null,"Espagne",null,3,1,null,39,4,7,6,8,6,5,12,5,39,130]
[null,"Etats-Unis",null,1,1,null,40,4,11,3,5,6,6,6,6,40,109]
[null,"Géorgie",null,1,null,null,41,4,3,1,null,7,11,4,10,41,130]
[null,"Italie",2,2,null,null,42,2,4,4,4,6,8,7,9,42,87]
[null,"Maurice",null,null,1,null,43,null,5,6,5,4,6,7,2,43,82]
[null,"multiple                                                                     ",5,14,12,null,44,2,1,7,2,4,4,4,6,44,85]
[null,"Pays-Bas                                                                     ",1,null,3,null,45,4,null,4,3,3,10,6,6,45,81]
[null,"Roumanie",null,1,null,null,46,5,2,3,2,2,9,4,2,46,96]
[null,"Royaume-Uni",2,4,1,null,47,2,7,3,3,6,4,16,4,47,66]
[null,"Slovénie",null,null,null,null,48,5,1,null,2,1,3,5,14,48,106]
[null,"Suisse                                                                       ",2,4,1,null,49,null,null,null,null,null,null,null,4,49,35]
[null,"Tunisie",null,null,null,null,50,null,null,null,null,null,null,null,7,50,68]
[null,"Turquie",null,1,null,null,51,null,null,null,null,null,null,null,1,51,42]
[null,null,17,{"$f":"SUM(D39:D56)","v":43},26,null,52,null,null,null,null,null,null,null,2,52,42]
[null,null,2843,3231,3713,null,53,null,null,null,null,null,null,null,1,53,39]
[null,null,null,null,null,null,54,1,1,2,1,4,1,null,2,54,30]
[null,null,null,null,null,null,55,1,null,null,1,2,3,null,null,55,22]
[null,null,null,null,null,null,51,2,3,null,1,4,3,4,null,56,27]
[null,null,null,null,null,null,52,2,1,1,1,null,1,4,null,57,36]
[null,null,null,null,null,null,53,null,2,null,null,1,3,1,null,58,72]
[null,null,null,null,null,null,56,1,1,1,1,1,0,1,null,59,37]
[null,null,null,null,null,null,57,1,1,2,1,3,4,4,null,60,23]
[null,null,null,null,null,null,58,null,null,null,1,3,2,4,7,61,25]
[null,null,null,null,null,null,59,null,2,2,null,null,null,3,1,62,32]
[null,null,null,null,null,null,60,null,null,null,1,1,1,1,2,63,39]
[null,null,null,null,null,null,61,3,1,4,1,null,3,null,1,64,19]
[null,null,null,null,null,null,62,1,null,null,2,2,2,1,null,65,26]
[null,null,null,null,null,null,63,1,1,null,null,1,4,1,1,66,39]
[null,null,null,null,null,null,64,1,1,null,null,1,1,2,1,67,48]
["Source : Entrées dépôt légal - logiciel de bulletinage",null,null,null,null,null,65,null,2,null,null,null,2,1,1,68,52]
[null,null,null,null,null,null,66,null,null,1,null,2,5,2,2,69,13]
["Nombre de cessations de parution par langue et par année",null,null,null,null,null,67,1,null,null,null,1,null,4,2,70,28]
["Langue",2016,2017,2018,null,null,68,1,2,1,1,1,2,3,2,71,38]
["allemand                                                                    ",11,10,3,null,null,69,null,null,null,null,1,1,1,1,72,52]
["anglais                                                                     ",67,73,56,null,null,70,null,null,null,null,1,null,null,3,73,20]
["arabe                                                                       ",null,3,null,null,null,71,1,null,null,null,2,2,4,2,74,51]
["basque    ",null,1,null,null,null,72,1,null,null,1,null,1,1,1,75,3]
["catalan",null,null,1,null,null,73,1,null,null,null,null,null,3,2,76,4]
["chinois",3,4,1,null,null,74,null,null,null,null,null,1,null,2,77,6]
["coréen",null,1,null,null,null,75,1,null,1,null,null,null,null,1,78,6]
["corse",1,null,null,null,null,76,null,null,1,null,null,null,null,null,79,2]
["créole ou pidgin français                                                   ",null,null,1,null,null,77,null,null,1,2,null,null,1,null,80,9]
["danois",null,1,null,null,null,78,null,null,null,null,1,null,null,null,81,5]
["égyptien",null,1,null,null,null,79,null,null,null,1,null,1,1,1,82,5]
["espagnol                                                                    ",21,8,5,null,null,80,null,1,1,null,null,null,1,null,83,10]
["français",2717,3096,3628,null,null,81,1,null,1,null,null,null,1,null,84,14]
["italien                                                                     ",4,5,2,null,null,82,1,null,null,null,1,null,2,1,85,3]
["japonais",1,1,1,null,null,83,1,null,null,null,null,1,null,null,86,7]
["multilingue                                                                 ",3,6,5,null,null,84,null,null,1,null,1,null,null,null,87,4]
["néerlandais                       ",4,3,null,null,null,85,1,null,null,null,null,null,null,null,88,4]
["Non renseigné",null,1,2,null,null,86,null,null,null,3,null,null,null,null,89,35]
["norvégien",null,null,1,null,null,87,null,null,2,null,null,null,3,null,90,12]
["occitan                                                                     ",null,1,1,null,null,88,null,null,2,null,null,null,null,null,91,4]
["occitan ancien",null,null,1,null,null,89,null,null,null,1,null,null,null,null,92,2]
["persan",null,1,null,null,null,90,null,null,null,null,null,null,null,1,93,4]
["polonais ",1,2,1,null,null,91,1,null,null,1,1,null,null,1,94,1]
["portugais                                                                   ",4,4,2,null,null,92,null,null,null,null,null,1,null,1,95,5]
["roumain",2,1,null,null,null,93,null,1,1,null,null,null,null,null,96,6]
["russe ",3,3,null,null,null,96,null,null,null,null,null,1,null,1,97,7]
["suédois",null,null,1,null,null,97,null,null,null,null,null,1,null,2,98,1]
["tchèque   ",null,1,null,null,null,98,null,null,null,null,null,null,2,3,99,4]
["thaï",null,1,null,null,null,99,null,1,null,null,null,null,null,null,100,11]
["turc",1,1,null,null,null,100,null,null,null,null,1,null,null,null,101,4]
["vietnamien",null,1,1,null,null,101,null,1,null,null,null,null,null,null,102,5]
["yiddish",null,1,null,null,null,102,null,1,null,null,null,null,1,1,103,7]
["Total",2843,3231,3713,null,null,103,null,null,null,null,null,null,null,null,104,4]
["Source : Entrées dépôt légal - logiciel de bulletinage",null,null,null,null,null,104,1,null,null,null,1,null,null,null,105,28]
[null,null,null,null,null,null,105,3,3,1,null,null,null,null,1,106,76]
["Nombre de cessations de parution par périodicité et par année",null,null,null,null,null,106,9,4,1,null,null,null,null,null,107,87]
["Périodicité",2016,2017,2018,null,null,107,5,9,6,null,3,null,1,null,108,95]
["Triennal",34,80,59,null,null,108,7,8,6,null,3,1,null,null,109,99]
["Biennal",52,118,95,null,null,109,24,7,7,null,7,null,1,null,110,109]
["Annuel",697,1085,1111,null,null,110,31,8,10,1,6,null,null,null,111,98]
["Semestriel",538,583,577,null,null,111,12,30,13,null,1,null,null,null,112,94]
["3 fois par an",237,218,248,null,null,112,null,14,18,null,5,null,null,null,113,110]
["Trimestriel",579,620,710,null,null,113,null,1,5,null,15,null,null,null,114,107]
["Bimestriel",321,250,397,null,null,114,1,null,null,1,18,null,null,null,115,124]
["Mensuel",254,184,372,null,null,115,null,null,null,1,16,null,null,1,116,51]
["Bimensuel",7,6,27,null,null,117,null,null,null,null,null,null,1,null,117,44]
["Toutes les 2 semaines",28,9,21,null,null,122,null,null,null,null,null,1,null,1,118,16]
["3 fois par mois",null,1,11,null,null,123,null,null,null,1,null,null,1,null,119,1]
["Hebdomadaire",47,35,57,null,null,125,null,null,null,1,null,null,null,null,122,1]
["Semi-hebdomadaire",5,2,2,null,null,126,1,null,null,null,null,null,null,null,123,1]
["3 fois par semaine",null,null,null,null,null,130,null,null,1,null,null,null,null,null,125,2]
["Quotidien",4,5,10,null,null,135,null,null,null,null,null,1,null,null,126,3]
["Irrégulier, Autres périodes",40,35,16,null,null,136,null,null,null,null,null,null,null,1,128,1]
["Total",2843,3231,3713,null,null,137,null,null,null,null,null,1,null,null,128,1]
["Source : Entrées dépôt légal - logiciel de bulletinage",null,null,null,null,null,139,null,null,null,null,null,null,1,null,129,2]
[null,null,null,null,null,null,140,null,1,null,null,null,null,null,1,130,1]
["Nombre de cessations de parution par édition publique et par année",null,null,null,null,null,141,null,null,null,null,null,null,1,null,132,1]
["Edition publique",2016,2017,2018,null,null,143,null,null,null,null,null,null,null,2,134,34]
["Hors Edition publique",2192,2458,2467,null,null,147,null,null,null,null,null,null,null,1,136,1]
["Edition publique",646,765,1245,null,null,150,null,null,null,null,1,null,null,null,138,2]
["Non renseigné",5,8,1,null,null,152,null,null,null,null,null,null,1,null,142,1]
["Total",2843,3231,3713,null,null,156,null,null,null,null,null,null,1,null,143,1]
["Source : Entrées dépôt légal - logiciel de bulletinage",null,null,null,null,null,157,null,null,null,null,null,null,1,null,144,1]
[null,null,null,null,null,null,158,null,null,null,null,null,null,null,18,145,4]
["Nombre de cessations de parution par thématique et par année",null,null,null,null,null,160,null,null,null,null,null,null,null,1,148,6]
["Grande classe","Indices","Intitulés",2016,2017,2018,161,null,null,null,null,null,null,2,null,150,7]
["0XX","000","Généralités, collections encyclopédiques",1,6,5,162,null,null,null,null,null,null,1,null,151,3]
[null,"001","Culture générale",11,8,3,163,null,null,null,null,2,null,null,null,153,9]
[null,"004","Informatique",14,19,22,164,null,null,null,null,null,null,2,null,154,16]
[null,"010","Bibliographie, catalogues",1,1,1,167,null,null,null,null,null,null,2,null,155,1]
[null,"020","Sciences de l'information, lecture",9,11,5,168,null,null,null,null,null,null,null,9,156,5]
[null,"060","Instituts de recherche, archives, musées",6,7,12,171,null,null,null,null,1,null,null,null,157,1]
[null,"070","Édition, médias, librairie",21,24,11,174,null,null,1,null,null,null,null,null,158,10]
[null,"071","Magazines généraux",57,63,74,177,1,null,null,null,null,null,1,null,159,4]
[null,"072","Publications féminines, publications masculines",27,20,25,187,null,null,null,null,null,null,7,null,160,11]
[null,"073","Presse et collections documentaires pour enfants et adolescents",55,66,50,194,null,null,null,null,null,null,null,1,161,11]
[null,"074","Presse nationale et locale d’information",22,23,28,195,null,1,null,null,null,null,null,null,162,1]
[null,"075","Presse parallèle, fanzines",10,13,7,201,null,null,null,null,null,null,null,4,163,10]
[null,"076","Journaux internes d’entreprise ",107,111,108,208,null,1,null,null,null,null,null,null,164,21]
[null,"077","Journaux d’annonces",12,6,11,213,null,null,null,null,1,null,null,1,165,51]
[null,"090","Bibliophilie",2,1,null,218,null,null,null,null,null,null,null,6,167,1]
["Total 0XX",null,null,355,379,362,225,null,null,null,null,null,null,null,1,168,2]
["1XX","100","Philosophie",5,6,7,227,null,null,null,null,null,null,1,null,170,5]
[null,"130","Ésotérisme et sciences occultes",4,3,5,"Indéterminé",416,240,187,600,617,91,91,130,171,2]
[null,"150","Psychologie et psychanalyse",20,13,9,"Total",3352,3287,3035,2986,3490,2843,3231,3713,172,2]
["Total 1XX",null,null,29,22,21,"Source : Entrées dépôt légal - logiciel de bulletinage",null,null,null,null,null,null,null,null,173,1]
["2XX","200","Religion",4,7,10,"* les dates de vie approximatives sont arrondies pour le calcul de l'âge, par exemple 201. = 2010 ; 19.. = 1900",null,null,null,null,null,null,null,null,174,3]
[null,"280","Églises chrétiennes",76,56,76,"** l'âge est indéterminé pour un certain de publications dont la cessation enregistrée dans l'application de bulletinage n'était pas reportée dans le catalogue à la date de la requête",null,null,null,null,null,null,null,null,175,20]
[null,"294","Hindouisme, bouddhisme",1,1,1,null,null,null,null,null,null,null,null,null,176,4]
[null,"296","Judaïsme",3,4,2,null,null,null,null,null,null,null,null,null,177,6]
[null,"297","Islam",1,2,2,null,null,null,null,null,null,null,null,null,178,1]
[null,"299","Autres religions",1,1,1,null,null,null,null,null,null,null,null,null,179,1]
["Total 2XX",null,null,86,71,92,null,null,null,null,null,null,null,null,null,180,9]
["3XX","300","Sciences sociales, sociologie",12,24,26,null,null,null,null,null,null,null,null,null,181,5]
[null,310,"Statistique",null,null,1,null,null,null,null,null,null,null,null,null,183,3]
[null,"320","Sciences politiques et gouvernement",27,39,34,null,null,null,null,null,null,null,null,null,184,12]
[null,"323","Droits civils et politiques, citoyenneté, minorités",12,18,14,null,null,null,null,null,null,null,null,null,185,51]
[null,"324","Partis et mouvements politiques",27,36,34,null,null,null,null,null,null,null,null,null,186,1]
[null,"327","Politique internationale",7,6,11,null,null,null,null,null,null,null,null,null,195,2]
[null,"330","Économie (généralités)",49,35,57,null,null,null,null,null,null,null,null,null,208,1]
[null,"331","Économie du travail, syndicats",111,92,87,null,null,null,null,null,null,null,null,null,212,1]
[null,"332","Économie financière",23,33,37,null,null,null,null,null,null,null,null,null,213,6]
[null,"333","Économie du foncier et de l'énergie",38,37,48,null,null,null,null,null,null,null,null,null,214,3]
[null,"338","Économie de la production et de la consommation",100,91,68,null,null,null,null,null,null,null,null,null,215,22]
[null,"340","Droit",37,45,50,null,null,null,null,null,null,null,null,null,220,1]
[null,"350","Administration publique",14,20,28,null,null,null,null,null,null,null,null,null,225,1]
[null,"352","Administration territoriale",207,292,683,null,null,null,null,null,null,null,null,null,"indéterminé",148]
[null,"355","Armée, défense",18,12,18,null,null,null,null,null,null,null,null,null,"Total général",45373]
[null,"362","Problèmes et services sociaux",100,112,147,null,null,null,null,null,null,null,null,null,"Source : Entrées dépôt légal - logiciel de bulletinage"]
[null,"363","Protection de l’environnement",60,95,85]
[null,"366","Associations, cercles et clubs divers",35,35,44]
[null,"368","Assurances, sécurité sociale, retraites",46,58,40]
[null,"370","Éducation, enseignement",13,32,37]
[null,"371","Organisation scolaire, pédagogie, parents d’élèves",16,20,21]
[null,"373","Enseignement primaire, enseignement secondaire général et technique, journaux scolaires",19,18,35]
[null,"374","Formation professionnelle et continue",9,12,7]
[null,"378","Enseignement supérieur",21,35,26]
[null,"380","Commerce",21,27,19]
[null,"383","Moyens de communication",16,10,13]
[null,"385","Transports",30,50,74]
[null,"390","Ethnologie, anthropologie, folklore",2,4,7]
["Total 3XX",null,null,1070,1288,1751]
["4XX","400","Linguistique",1,9,4]
["Total 4XX",null,null,1,9,4]
["5XX","500","Sciences (généralités)",10,11,10]
[null,"510","Mathématiques",2,4]
[null,"520","Astronomie",0,4]
[null,"530","Physique",3,4,3]
[null,"540","Chimie, minéralogie",2,1]
[null,"550","Sciences de la terre",5,3,7]
[null,"560","Paléontologie",0,0,1]
[null,"570","Sciences de la vie",3,2,4]
[null,"580","Botanique",2,4,1]
[null,"590","Zoologie",9,9,10]
["Total 5XX",null,null,36,42,36]
["6XX","600","Sciences appliquées, technologie",8,6,6]
[null,"610","Médecine, santé",109,142,125]
[null,"620","Sciences de l'ingénieur",33,49,27]
[null,"630","Agriculture, élevage",98,93,104]
[null,"640","Économie domestique/vie pratique, hôtellerie",76,73,63]
[null,"650","Gestion et organisation des entreprises, publicité",19,57,48]
[null,"660","Génie chimique et technologies connexes",5,9,3]
[null,"670","Industries et métiers divers",18,34,29]
[null,"690","Bâtiment",30,19,27]
["Total 6XX",null,null,396,482,432]
["7XX","700","Arts (généralités)",55,53,58]
[null,"710","Urbanisme, aménagement du territoire",23,31,27]
[null,"720","Architecture",9,15,14]
[null,"730","Arts plastiques, sculpture",1,1,6]
[null,"740","Dessin, arts décoratifs, artisanat d’art, bandes dessinées (histoire et critique)",46,56,43]
[null,"750","Peinture, arts graphiques",8,6,6]
[null,"770","Photographie",10,16,13]
[null,"778","Érotisme, pornographie",13,14,2]
[null,"780","Musique",29,21,28]
[null,"790","Spectacles (généralités), loisirs",30,23,20]
[null,"791","Audiovisuel",40,23,24]
[null,"792","Représentations scéniques",8,12,7]
[null,"793","Jeux et divertissements d'intérieur",64,54,67]
[null,"796","Sports, activités de plein air",87,105,132]
["Total 7XX",null,null,423,430,447]
["8XX","800","Littérature générale, histoire et critique littéraires, revues littéraires",50,56,49]
[null,"801","Poésie",7,10,5]
[null,802,"Théâtre",null,null,1]
[null,"803","Roman et fiction romanesque",1,0]
[null,"804","Essais littéraires et écrits divers",1,0]
[null,"805","Bandes dessinées",48,46,45]
[null,"809","Littérature pour la jeunesse",1,1,6]
["Total 8XX",null,null,108,113,106]
["9XX","900","Histoire et géographie (généralités) ",10,12,16]
[null,"910","Géographie, voyages, tourisme",22,47,32]
[null,920,"Biographies",null,null,3]
[null,"929","GénéalogieHistoire ancienne, archéologie",4,6,4]
[null,"930","Histoire ancienne, archéologie, préhistoire",6,9,12]
[null,"940","Histoire médiévale, moderne et contemporaine",6,8,9]
[null,"944","Histoire de France, histoire locale",38,44,47]
["Total 9XX",null,null,{"$f":"SUM(D245:D251)","v":86},126,123]
["Non renseigné",null,null,253,269,339]
["Total",null,null,2843,3231,3713]
["Source : Entrées dépôt légal - logiciel de bulletinage"]

{"sheet":"Migr","index":9,"n_rows":191,"n_cols":6,"rows_kept":191,"cut":false,"hidden":false,"merged":[]}
["Nombre de migrations de support par type de migration"]
["Type de migration",2016,2017,2018]
["En ligne",245,266,186]
["Par mail",38,39,49]
["Sur intranet",22,22,47]
["Total",305,327,{"$f":"SUM(D3:D5)","v":282}]
["Source : Entrées dépôt légal - logiciel de bulletinage"]
[]
["Nombre de migrations par pays et région"]
[null,"Nouvelles régions",2016,2017,2018]
["France hors Outre-Mer","Grand Est",6,10,15]
[null,"Nouvelle Aquitaine",20,15,13]
[null,"Auvergne - Rhône Alpes",22,30,33]
[null,"Normandie",9,8,5]
[null,"Bourgogne - Franche-Comté",7,14,9]
[null,"Bretagne",5,7,12]
[null,"Centre - Val-de-Loire",7,7,8]
[null,"Corse",1,0]
[null,"Ile-de-France",168,174,136]
[null,"Occitanie",10,17,10]
[null,"Hauts-de-France",9,18,10]
[null,"Pays-de-la-Loire",26,11,10]
[null,"Provence-Alpes-Côte d'Azur",10,7,16]
[null,"Non renseigné",2,1]
["Total France hors Outre-Mer",null,302,319,277]
["France d'Outre-Mer","Guadeloupe",null,1]
[null,"Guyane française"]
[null,"Martinique",null,1]
[null,"Mayotte",1,2]
[null,"Nouvelle-Calédonie",null,1]
[null,"Polynésie française",1]
[null,"Réunion",null,1]
[null,"Wallis et Futuna (îles)",null,1]
["Total Outre-Mer",null,2,7]
["Autres pays","Egypte",1]
[]
[null,"Royaume-Uni",null,1]
[null,"Belgique",null,null,1]
[null,"multiple",null,null,4]
["Total Autres pays",null,1,1,5]
["Total",null,305,327,282]
["Source : Entrées dépôt légal - logiciel de bulletinage"]
[]
["Nombre de migrations par langue"]
["Langue",2016,2017,2018]
["allemand",1]
["anglais                                                                     ",17,17,8]
["espagnol",4]
["français",278,307,270]
["italien",1]
["japonais",null,null,1]
["multilingue",1,3,2]
["néerlandais",1]
["portugais",1]
["roumain",1]
["non renseigné",null,null,1]
["Total",305,327,282]
["Source : Entrées dépôt légal - logiciel de bulletinage"]
[]
["Nombre de migrations par édition publique"]
["Edition publique",2016,2017,2018]
["Hors Edition publique",191,233,202]
["Edition publique",114,94,80]
["Total",305,327,282]
["Source : Entrées dépôt légal - logiciel de bulletinage"]
[]
["Nombre de migrations par périodicité"]
["Périodicité",2016,2017,2018]
["Triennal",1,3,2]
["Biennal",5,8,7]
["Annuel",86,101,92]
["Semestriel",56,64,37]
["3 fois par an",33,20,32]
["Trimestriel",47,66,71]
["Bimestriel",22,24,18]
["Mensuel",30,34,15]
["Bimensuel",2,null,2]
["Toutes les 2 semaines",2,null,3]
["Hebdomadaire",11,1,3]
["Semi-hebdomadaire",3,1]
["Quotidien",2,3]
["Irrégulier, Autres périodes",5,2]
["Total",305,327,282]
["Source : Entrées dépôt légal - logiciel de bulletinage"]
[]
["Nombre de migrations par thématique"]
["Grande classe","Indices","Intitulés",2016,2017,2018]
["0XX","000","Généralités, collections encyclopédiques"]
[null,"001","Culture générale",null,1]
[null,"004","Informatique",1,5,2]
[null,"010","Bibliographie, catalogues"]
[null,"020","Sciences de l'information, lecture",2,1]
[null,"060","Instituts de recherche, archives, musées",null,2,2]
[null,"070","Édition, médias, librairie",1,3,1]
[null,"071","Magazines généraux",null,4,1]
[null,"072","Publications féminines, publications masculines"]
[null,"073","Presse et collections documentaires pour enfants et adolescents"]
[null,"074","Presse nationale et locale d’information",2,1]
[null,"075","Presse parallèle, fanzines",null,1]
[null,"076","Journaux internes d’entreprise ",14,11,10]
[null,"077","Journaux d'annonces"]
["Total 0XX",null,null,20,29,17]
["1XX","100","Philosophie",null,null,2]
[null,"130","Ésotérisme et sciences occultes"]
[null,"150","Psychologie et psychanalyse",1]
["Total 1XX",null,null,1,null,2]
["2XX","200","Religion",null,null,1]
[null,"280","Églises chrétiennes",8,2,2]
[null,"294","Hindouisme, bouddhisme"]
[null,296,"Judaïsme"]
[null,299,"Autres religions",1]
["Total 2XX",null,null,9,2,3]
["3XX","300","Sciences sociales, sociologie",3,1]
[null,"320","Sciences politiques et gouvernement",1,2,1]
[null,"323","Droits civils et politiques, citoyenneté, minorités",null,null,2]
[null,"324","Partis et mouvements politiques",2,1,3]
[null,"327","Politique internationale",1,1,2]
[null,"330","Économie (généralités)",15,10,4]
[null,"331","Économie du travail, syndicats",8,12,6]
[null,"332","Économie financière",5,8,6]
[null,"333","Économie du foncier et de l'énergie",4,2,4]
[null,"338","Économie de la production et de la consommation",19,5,4]
[null,"340","Droit",4,4,14]
[null,"350","Administration publique",3,4,4]
[null,"352","Administration territoriale",24,14,16]
[null,"355","Armée, défense",null,1,2]
[null,"362","Problèmes et services sociaux",6,13,27]
[null,"363","Protection de l’environnement",6,14,10]
[null,"366","Associations, cercles et clubs divers",2,2,7]
[null,"368","Assurances, sécurité sociale, retraites",11,13,8]
[null,"370","Éducation, enseignement",4,6,3]
[null,"371","Organisation scolaire, pédagogie, parents d’élèves",2,1,2]
[null,"373","Enseignement primaire, enseignement secondaire général et technique, journaux scolaires",null,3,2]
[null,"374","Formation professionnelle et continue",null,1]
[null,"378","Enseignement supérieur",6,7,2]
[null,"380","Commerce",1,3,3]
[null,"385","Transports",5,6,5]
[null,390,"Ethnologie, anthropologie, folklore",null,2]
["Total 3XX",null,null,133,136,137]
["4XX",400,"Linguistique",null,null,2]
["Total 4XX",null,null,null,null,2]
["5XX","500","Sciences (généralités)",null,2]
[null,"510","Mathématiques",1,2]
[null,"520","Astronomie"]
[null,"530","Physique",1,2]
[null,"540","Chimie, minéralogie"]
[null,"550","Sciences de la terre",1,null,1]
[null,560,"Paléontologie",null,null,1]
[null,"570","Sciences de la vie",1,null,1]
[null,580,"Botanique"]
[null,"590","Zoologie",1,3,3]
["Total 5XX",null,null,5,9,6]
["6XX","600","Sciences appliquées, technologie",4]
[null,"610","Médecine, santé",12,21,14]
[null,"620","Sciences de l'ingénieur",9,17,6]
[null,"630","Agriculture, élevage",10,10,14]
[null,"640","Économie domestique/vie pratique, hôtellerie",2,4,2]
[null,"650","Gestion et organisation des entreprises, publicité",3,9,9]
[null,"660","Génie chimique et technologies connexes",1,4,2]
[null,"670","Industries et métiers divers",2,4,4]
[null,"690","Bâtiment",7,2,3]
["Total 6XX",null,null,50,71,54]
["7XX","700","Arts (généralités)",3,3,3]
[null,"710","Urbanisme, aménagement du territoire",4,1,9]
[null,"720","Architecture",null,1]
[null,"730","Arts plastiques, sculpture"]
[null,"740","Dessin, arts décoratifs, artisanat d’art, bandes dessinées (histoire et critique)",null,3]
[null,"750","Peinture, arts graphiques"]
[null,"770","Photographie",1,2,1]
[null,"780","Musique",4,4,3]
[null,"790","Spectacles (généralités), loisirs"]
[null,"791","Audiovisuel",12,2,3]
[null,"792","Représentations scéniques"]
[null,"793","Jeux et divertissements d'intérieur",3]
[null,"796","Sports, activités de plein air",4,7,9]
["Total 7XX",null,null,31,23,28]
["8XX","800","Littérature générale, histoire et critique littéraires, revues littéraires",7,4,4]
[null,"801","Poésie"]
[null,802,"Théâtre",1]
[null,809,"Littérature pour la jeunesse",null,null,1]
["Total 8XX",null,null,8,4,5]
["9XX","900","Histoire et géographie (généralités) ",1,1]
[null,"910","Géographie, voyages, tourisme",null,5]
[null,"929","GénéalogieHistoire ancienne, archéologie",1]
[null,"930","Histoire ancienne, archéologie, préhistoire",null,1,2]
[null,"940","Histoire médiévale, moderne et contemporaine",null,null,1]
[null,"944","Histoire de France, histoire locale",1,1,2]
["Total 9XX",null,null,3,8,5]
["Non renseigné",null,null,45,45,23]
["Total",null,null,305,327,282]
["Source : Entrées dépôt légal - logiciel de bulletinage"]

{"sheet":"N_gén ","index":10,"n_rows":235,"n_cols":27,"rows_kept":235,"cut":false,"hidden":false,"merged":[[219,9,219,11],[219,12,220,12],[202,0,202,1],[213,0,213,1],[219,5,219,7],[175,0,175,1],[23,0,23,1],[34,0,34,1],[164,0,164,1],[219,8,220,8]]}
["Nombre de nouveaux titres par pays et année"]
["Années","Classes","France métropolitaine                                                                      ","France d'Outre-Mer","Italie                                                                       ","Belgique                                                                     ","intergouvernemental                                                          ","Suisse                                                                       ","Allemagne                                                                    ","Royaume-Uni.                                                                 ","Espagne                                                                      ","Canada                                                                       ","Etats-Unis (USA)                                                                      ","Japon                                                                     ","Luxembourg","Roumanie","Pologne","Chine","République du Congo","Irlande","République Tchèque","Maurice","Maroc","Vietnam","Monaco","Total"]
[2016,"0XX",334,8,0,0,0,0,0,0,0,0,1,1,0,0,0,0,0,0,0,null,null,0,null,344]
[null,"1XX",16,0,0,1,0,0,0,0,0,0,0,0,0,0,0,0,0,0,0,null,null,0,null,17]
[null,"2XX",106,1,0,0,0,1,0,0,0,0,0,0,0,0,0,0,0,0,0,null,null,0,null,108]
[null,"3XX",1125,36,0,1,2,0,0,0,0,0,0,0,0,0,0,0,0,0,0,null,null,0,null,1164]
[null,"4XX",4,0,0,3,0,0,0,0,0,0,0,0,0,0,0,0,0,0,0,null,null,0,null,7]
[null,"5XX",32,0,0,0,0,0,0,1,0,0,0,0,0,0,0,0,0,0,0,null,null,0,null,33]
[null,"6XX",440,4,0,1,0,0,0,0,0,0,0,0,0,0,0,0,0,0,0,null,null,0,null,445]
[null,"7XX",375,4,0,2,0,1,0,5,0,0,0,0,0,0,0,0,0,0,0,null,null,0,null,387]
[null,"8XX",104,1,0,1,0,1,0,0,0,0,1,0,0,0,0,0,0,0,0,null,null,0,null,108]
[null,"9XX",129,4,1,0,0,3,0,2,0,0,0,0,0,0,0,0,0,0,0,null,null,0,null,139]
["Total 2016",null,2665,58,1,9,2,6,0,8,0,0,2,1,0,0,0,0,0,0,0,null,null,0,null,2752]
[2017,"0XX",359,11,0,0,0,0,0,3,0,0,0,0,0,0,0,1,0,0,0,null,null,0,null,374]
[null,"1XX",24,0,0,0,0,0,0,0,1,0,0,0,0,0,0,0,0,0,0,null,null,0,null,25]
[null,"2XX",91,2,1,0,0,0,0,0,0,0,0,0,0,0,0,0,0,0,1,null,null,0,null,95]
[null,"3XX",1339,23,0,2,6,1,0,1,4,0,0,0,0,0,0,0,0,1,0,null,null,0,null,1377]
[null,"4XX",4,0,0,0,0,0,0,0,0,0,0,0,0,0,0,0,0,0,0,null,null,0,null,4]
[null,"5XX",27,0,0,0,0,0,0,0,1,0,0,0,0,0,0,0,1,0,0,null,null,0,null,29]
[null,"6XX",388,5,1,1,0,6,1,0,2,0,0,0,0,0,0,0,0,0,0,null,null,0,null,404]
[null,"7XX",422,9,0,1,0,2,0,6,9,0,0,0,0,0,0,0,0,0,0,null,null,0,null,449]
[null,"8XX",96,0,0,0,0,0,0,1,1,0,0,0,0,0,0,0,0,1,0,null,null,0,null,99]
[null,"9XX",145,2,0,0,0,1,0,0,1,0,0,0,0,0,1,0,0,0,0,null,null,0,null,150]
["Total 2017",null,2895,52,2,4,6,10,1,11,19,{"$f":"SUM(L14:L24)","v":0},{"$f":"SUM(M14:M24)","v":0},0,0,0,1,1,1,2,1,null,null,{"$f":"SUM(X14:X23)","v":0},null,{"$f":"SUM(C24:X24)","v":3006}]
[2018,"0XX",295,19,null,null,null,null,null,null,null,null,null,null,null,null,null,null,null,null,null,null,null,null,null,{"$f":"SUM(C25:Y25)","v":314}]
[null,"1XX",30,0,null,null,null,null,null,1,null,null,null,null,null,null,null,null,null,null,null,null,null,null,1,{"$f":"SUM(C26:Y26)","v":32}]
[null,"2XX",86,1,null,null,null,null,null,null,null,null,null,null,null,null,null,null,null,null,null,null,null,null,null,87]
[null,"3XX",1268,28,1,2,1,null,null,1,7,null,null,null,null,null,null,null,null,null,null,null,1,null,null,1309]
[null,"4XX",6,0,null,null,null,null,null,null,null,null,null,null,null,null,null,null,null,null,null,null,null,null,null,6]
[null,"5XX",34,0,null,null,null,null,null,null,null,null,null,null,null,null,null,null,null,null,null,null,null,null,null,34]
[null,"6XX",363,15,2,1,null,2,null,1,1,null,null,null,null,null,null,null,null,null,null,null,null,null,null,385]
[null,"7XX",403,11,1,null,null,1,1,2,12,null,null,null,null,null,null,null,null,null,null,1,null,null,null,432]
[null,"8XX",69,1,null,1,null,null,null,null,null,null,null,null,null,null,null,null,null,null,null,null,null,null,null,71]
[null,"9XX",129,2,null,null,null,null,null,1,null,null,null,null,null,null,null,null,null,null,null,null,null,1,null,133]
["Total 2018",null,2683,77,4,4,1,3,1,6,20,null,null,null,null,null,null,null,null,null,null,1,1,1,1,2803]
["Source : Bibliographie nationale - Publications en série"]
["Libellés cadre de classement : http://www.bnf.fr/documents/intermarc_ref_cdc-perios.pdf"]
[]
["Nombre de nouveaux titres par département"]
["Départements",2016,2017,2018]
["01 - Ain",9,14,7]
["02 - Aisnes",6,11,13]
["03 - Allier",10,12,12]
["04 - Alpes-de-Haute-Provence",6,6,10]
["05 - Hautes-Alpes",4,3,8]
["06 - Alpes-Maritimes",52,50,38]
["07 - Ardèche",10,10,11]
["08 - Ardennes",3,5,7]
["09 - Ariège",5,7,4]
["10 - Aube",9,8,3]
["11 - Aude",7,5,9]
["12 - Aveyron",9,9,11]
["13 - Bouches-du-Rhône",47,41,48]
["14 - Calvados",17,23,23]
["15 - Cantal",9,2,5]
["16 - Charente",12,5,8]
["17 - Charente-Maritime",16,27,18]
["18 - Cher",7,9,10]
["19 - Corrèze",4,13,10]
["20 - Corse-du-Sud & Haute-Corse",7,6,5]
["21 - Côte-d'Or",23,47,38]
["22 - Côtes-d'Armor",10,14,9]
["23 - Creuse",7,5,13]
["24 - Dordogne",12,9,8]
["25 - Doubs",29,24,31]
["26 - Drôme",10,13,15]
["27 - Eure",7,17,13]
["28 - Eure-et-Loir",17,8,10]
["29 - Finistère",24,14,30]
["30 - Gard",15,13,14]
["31 - Haute-Garonne",66,60,49]
["32 - Gers",3,3,8]
["33 - Gironde",47,50,45]
["34 - Hérault",45,31,41]
["35 - Ile-et-Vilaine",33,55,43]
["36 - Indre",11,11,5]
["37 - Indre-et-Loire",16,17,12]
["38 - Isère",31,29,36]
["39 - Jura",12,8,13]
["40 - Landes",12,8,11]
["41 - Loir-et-Cher",14,11,19]
["42 - Loire",15,24,13]
["43 - Haute-Loire",15,11,10]
["44 - Loire-Atlantique",40,41,38]
["45 - Loiret",14,32,16]
["46 - Lot",6,12,8]
["47 - Lot-et-Garonne",7,11,7]
["48 - Lozère",1,7,2]
["49 - Maine-et-Loire",15,28,25]
["50 - Manche",6,12,14]
["51 - Marne",25,21,13]
["52 - Haute-Marne",7,9,4]
["53 - Mayenne",9,3,10]
["54 - Meurthe-et-Moselle",27,30,41]
["55 - Meuse",9,7,9]
["56 - Morbihan",9,19,16]
["57 - Moselle",23,11,36]
["58 - Nièvre",8,9,6]
["59 - Nord",79,106,65]
["60 - Oise",9,11,16]
["61 - Orne",5,9,11]
["62 - Pas-de-Calais",22,21,13]
["63 - Puy-de-Dôme",37,31,31]
["64 - Pyrénées-Atlantiques",14,10,10]
["65 - Hautes-Pyrénées",16,17,10]
["66 - Pyrénées-Orientales",17,8,16]
["67 - Bas-Rhin",41,48,46]
["68 - Haut-Rhin",21,34,28]
["69 - Rhône",69,105,78]
["70 - Haute-Saône",8,10,11]
["71 - Saône-et-Loire",35,9,9]
["72 - Sarthe",13,9,9]
["73 - Savoie",22,16,10]
["74 - Haute-Savoie",16,18,24]
["75 - Paris",569,714,638]
["76 - Seine-Maritime",35,27,39]
["77 - Seine-et-Marne",43,41,43]
["78 - Yvelines",32,26,40]
["79 - Deux-Sèvres",11,18,8]
["80 - Somme",20,21,18]
["81 - Tarn",8,10,6]
["82 - Tarn-et-Garonne",4,8,3]
["83 - Var",16,15,17]
["84 - Vaucluse",13,16,18]
["85 - Vendée",8,13,19]
["86 - Vienne",37,41,45]
["87 - Haute-Vienne",11,15,12]
["88 - Vosges",10,12,9]
["89 - Yonne",9,11,14]
["90 - Territoire-de-Belfort",3,6,9]
["91 - Essonne",23,27,17]
["92 - Hauts-de-Seine",241,295,225]
["93 - Seine-Saint-Denis",70,66,60]
["94 - Val-de-Marne",52,47,40]
["95 - Val-d'Oise",25,17,14]
["97 - Guadeloupe, Martinique, Guyane, Réunion, Saint-Pierre-et-Miquelon, Mayotte",43,36,50]
["98 - Polynésie, Nouvelle-Calédonie, Wallis et Futuna, Saint-Martin, Saint-Barthélémy",18,14,27]
["code postal inconnu ou étranger",98,48,54]
["Total  ",{"$f":"SUM(B41:B138)","v":2752},{"$f":"SUM(C41:C138)","v":3006},2803]
["Source : Bibliographie nationale - Publications en série"]
[]
["Nombre de nouveaux titres par langue et année"]
["Années","Classes","français                                                                    ","multilingue                                                                 ","anglais                                                                     ","langues multiples                                                           ","espagnol                                                      ","allemand                                                                    ","italien                                                                     ","russe                                                                       ","chinois                                                                     ","portugais                                                                   ","occitan                                                       ","néerlandais                                                     ","ukrainien","hébreu","tchèque, slovène, slovaque, croate, estonien, serbe                                                                     ","breton                                                                       ","polonais","ido                                                                   ","malgache                                                             ","créole français","langues baltes (lituanien, letton)","tamoul                                                            ","persan","japonais","Total"]
[2016,"0XX",330,3,7,2,0,0,1,1,0,0,0,0,0,0,0,0,0,0,0,null,null,0,null,0,344]
[null,"1XX",15,1,1,0,0,0,0,0,0,0,0,0,0,0,0,0,0,0,0,null,null,0,null,0,17]
[null,"2XX",104,0,1,1,1,0,1,0,0,0,0,0,0,0,0,0,0,0,0,null,null,0,null,0,108]
[null,"3XX",1115,14,19,10,1,0,1,0,0,1,1,0,1,0,1,0,0,0,0,null,null,0,null,0,1164]
[null,"4XX",5,0,0,2,0,0,0,0,0,0,0,0,0,0,0,0,0,0,0,null,null,0,null,0,7]
[null,"5XX",29,1,2,1,0,0,0,0,0,0,0,0,0,0,0,0,0,0,0,null,null,0,null,0,33]
[null,"6XX",424,6,10,3,1,0,0,0,0,0,0,1,0,0,0,0,0,0,0,null,null,0,null,0,445]
[null,"7XX",358,17,8,1,1,1,1,0,0,0,0,0,0,0,0,0,0,0,0,null,null,0,null,0,387]
[null,"8XX",103,0,0,3,0,0,0,1,0,0,0,0,0,1,0,0,0,0,0,null,null,0,null,0,108]
[null,"9XX",125,4,2,4,0,3,0,1,0,0,0,0,0,0,0,0,0,0,0,null,null,0,null,0,139]
["Total 2016",null,2608,46,50,27,4,4,4,3,0,1,1,1,1,1,1,0,0,0,0,null,null,0,null,0,2752]
[2017,"0XX",344,9,12,3,2,0,0,0,0,0,1,0,0,0,1,2,0,0,0,null,null,0,null,0,{"$f":"SUM(C155:AA155)","v":374}]
[null,"1XX",23,1,0,1,0,0,0,0,0,0,0,0,0,0,0,0,0,0,0,null,null,0,null,0,25]
[null,"2XX",91,2,0,1,0,0,0,0,0,1,0,0,0,0,0,0,0,0,0,null,null,0,null,0,95]
[null,"3XX",1332,17,14,6,0,0,0,3,1,0,0,2,1,0,0,1,0,0,0,null,null,0,null,0,1377]
[null,"4XX",2,1,0,1,0,0,0,0,0,0,0,0,0,0,0,0,0,0,0,null,null,0,null,0,4]
[null,"5XX",26,0,3,0,0,0,0,0,0,0,0,0,0,0,0,0,0,0,0,null,null,0,null,0,29]
[null,"6XX",385,7,7,1,1,2,1,0,0,0,0,0,0,0,0,0,0,0,0,null,null,0,null,0,404]
[null,"7XX",418,22,3,3,0,0,2,0,1,0,0,0,0,0,0,0,0,0,0,null,null,0,null,0,449]
[null,"8XX",92,3,1,3,0,0,0,0,0,0,0,0,0,0,0,0,0,0,0,null,null,0,null,0,99]
[null,"9XX",139,8,1,1,0,0,0,0,0,0,1,0,0,0,0,0,0,0,0,null,null,0,null,0,150]
["Total 2017",null,2852,70,41,20,3,2,3,3,2,1,2,2,1,{"$f":"SUM(P155:P164)","v":0},1,3,{"$f":"SUM(S155:S164)","v":0},{"$f":"SUM(T155:T164)","v":0},{"$f":"SUM(U155:U164)","v":0},null,null,{"$f":"SUM(X155:X164)","v":0},null,{"$f":"SUM(Z155:Z164)","v":0},{"$f":"SUM(C165:Z165)","v":3006}]
[2018,"0XX",295,8,4,4,2,1,0,0,0,0,0,0,0,null,null,null,null,null,null,0,null,null,null,0]
[null,"1XX",29,3,0,0,null,0,0,0,0,0,0,0,null,null,null,null,null,null,null,0,null,null,null,0]
[null,"2XX",85,0,0,0,null,0,0,0,0,0,0,0,null,null,null,null,null,null,null,1,null,null,1,0]
[null,"3XX",1264,10,26,5,null,1,1,0,0,0,0,0,null,null,null,null,null,null,null,0,2,null,null,0]
[null,"4XX",4,1,0,1,null,0,0,0,0,0,0,0,null,null,null,null,null,null,null,0,null,null,null,0]
[null,"5XX",32,0,1,0,1,0,0,0,0,0,0,0,null,null,null,null,null,null,null,0,null,null,null,0]
[null,"6XX",362,6,11,1,null,2,1,0,0,0,0,1,null,null,null,null,null,null,null,0,null,null,null,1]
[null,"7XX",398,22,5,5,null,1,0,0,0,0,0,0,null,null,null,null,null,null,null,1,null,null,null,0]
[null,"8XX",67,1,0,3,null,0,0,0,0,0,0,0,null,null,null,null,null,null,null,0,null,null,null,0]
[null,"9XX",123,3,3,1,null,2,0,0,0,0,0,1,null,null,null,null,null,null,null,0,null,null,null,0]
["Total 2018",null,{"$f":"SUM(C166:C175)","v":2659},{"$f":"SUM(D166:D175)","v":54},50,{"$f":"SUM(F166:F175)","v":20},{"$f":"SUM(G166:G175)","v":3},{"$f":"SUM(H166:H175)","v":7},{"$f":"SUM(I166:I175)","v":2},{"$f":"SUM(J166:J175)","v":0},{"$f":"SUM(K166:K175)","v":0},{"$f":"SUM(L166:L175)","v":0},{"$f":"SUM(M166:M175)","v":0},{"$f":"SUM(N166:N175)","v":2},{"$f":"SUM(O166:O175)","v":0},{"$f":"SUM(P166:P175)","v":0},{"$f":"SUM(Q166:Q175)","v":0},{"$f":"SUM(R166:R175)","v":0},{"$f":"SUM(S166:S175)","v":0},{"$f":"SUM(T166:T175)","v":0},{"$f":"SUM(U166:U175)","v":0},{"$f":"SUM(V166:V175)","v":2},{"$f":"SUM(W166:W175)","v":2},{"$f":"SUM(X166:X175)","v":0},{"$f":"SUM(Y166:Y175)","v":1},{"$f":"SUM(Z166:Z175)","v":1},{"$f":"SUM(C176:Z176)","v":2803}]
["Source : Bibliographie nationale - Publications en série"]
["Libellés cadre de classement : http://www.bnf.fr/documents/intermarc_ref_cdc-perios.pdf"]
[]
["Nombre de nouveaux titres par périodicité et année"]
["Années","Indices","Trimestriel","Annuel","Périodicité inconnue                                                             ","Bimestriel","Mensuel","Semestriel","3 fois par an","Irrégulier","Autres périodicités","Hebdomadaire","Bimensuel","Biennal","Quotidien","Toutes les 2 semaines","Triennal","Semi hebdomad.","3 fois par mois","Total"]
[2016,"0XX",77,21,51,38,47,12,20,7,2,49,8,1,7,1,1,1,1,344]
[null,"1XX",4,5,1,2,0,4,0,0,0,0,1,0,0,0,0,0,0,17]
[null,"2XX",39,4,20,10,18,3,6,0,2,5,1,0,0,0,0,0,0,108]
[null,"3XX",189,350,190,77,73,128,55,44,35,2,8,9,1,1,1,1,0,1164]
[null,"4XX",0,3,1,0,1,2,0,0,0,0,0,0,0,0,0,0,0,7]
[null,"5XX",4,15,5,2,1,3,1,0,0,1,0,0,0,0,1,0,0,33]
[null,"6XX",90,91,82,41,39,39,23,20,12,3,3,1,0,1,0,0,0,445]
[null,"7XX",85,61,55,89,23,29,8,13,3,6,4,9,0,0,2,0,0,387]
[null,"8XX",9,23,16,2,28,13,0,11,0,0,4,2,0,0,0,0,0,108]
[null,"9XX",28,49,18,5,1,16,3,11,1,2,0,5,0,0,0,0,0,139]
["Total 2016",null,525,622,439,266,231,249,116,106,55,68,29,27,8,3,5,2,1,2752]
[2017,"0XX",83,34,63,55,51,22,21,6,0,17,4,1,14,2,0,1,0,{"$f":"SUM(C193:S193)","v":374}]
[null,"1XX",11,2,4,5,0,1,1,0,0,1,0,0,0,0,0,0,0,25]
[null,"2XX",31,9,16,6,12,5,11,0,1,2,1,1,0,0,0,0,0,95]
[null,"3XX",274,380,303,75,69,138,67,17,17,14,9,6,1,2,5,0,0,1377]
[null,"4XX",0,1,0,0,1,1,0,1,0,0,0,0,0,0,0,0,0,4]
[null,"5XX",6,8,9,2,1,1,0,0,2,0,0,0,0,0,0,0,0,29]
[null,"6XX",89,96,86,43,22,31,14,9,7,3,0,2,0,2,0,0,0,404]
[null,"7XX",107,76,77,80,19,37,9,4,10,10,11,7,0,1,1,0,0,449]
[null,"8XX",9,33,18,5,18,7,1,4,1,1,0,2,0,0,0,0,0,99]
[null,"9XX",28,43,32,2,2,22,3,10,2,0,1,5,0,0,0,0,0,150]
["Total 2017",null,638,682,608,273,195,265,127,51,40,48,26,24,15,7,6,1,{"$f":"SUM(S193:S202)","v":0},{"$f":"SUM(C203:U203)","v":3006}]
[2017,"0XX",56,35,87,39,34,15,12,1,6,14,4,null,10,1,null,null,null,{"$f":"SUM(C204:S204)","v":314}]
[null,"1XX",13,1,8,3,2,3,null,2,null,null,null,null,null,null,null,null,null,32]
[null,"2XX",28,13,21,5,10,4,3,null,null,1,1,null,null,null,1,null,null,87]
[null,"3XX",202,424,279,78,55,131,54,19,30,17,8,9,null,null,3,null,null,1309]
[null,"4XX",2,null,2,1,1,null,null,null,null,null,null,null,null,null,null,null,null,6]
[null,"5XX",6,10,11,null,2,2,1,2,null,null,null,null,null,null,null,null,null,34]
[null,"6XX",57,132,94,33,17,24,8,3,6,5,null,6,null,null,null,null,null,385]
[null,"7XX",78,73,93,84,23,38,8,5,5,8,9,6,null,1,1,null,null,432]
[null,"8XX",6,30,19,null,6,9,null,1,null,null,null,null,null,null,null,null,null,71]
[null,"9XX",30,37,36,3,2,19,2,null,null,1,null,2,null,null,1,null,null,{"$f":"SUM(C213:S213)","v":133}]
["Total 2018",null,{"$f":"SUM(C204:C213)","v":478},{"$f":"SUM(D204:D213)","v":755},650,246,152,245,88,33,47,46,22,23,10,2,6,0,0,{"$f":"SUM(C214:S214)","v":2803}]
["Source : Bibliographie nationale - Publications en série"]
["Libellés cadre de classement : http://www.bnf.fr/documents/intermarc_ref_cdc-perios.pdf"]
[]
[]
["Nombre de nouveaux titres par public et année"]
[null,2016,null,null,"Total 2016",2017,null,null,"Total 2017",2018,null,null,"Total 2018"]
["Classes","enfants et adolescents","tout public","public spécialisé",null,"enfants et adolescents","tout public","public spécialisé",null,"enfants et adolescents","tout public","public spécialisé"]
["0XX",46,289,9,344,58,310,6,374,48,259,7,314]
["1XX",0,11,6,17,0,19,6,25,null,25,7,32]
["2XX",1,106,1,108,0,90,5,95,2,80,5,87]
["3XX",0,1056,108,1164,1,1276,100,1377,5,1251,53,1309]
["4XX",0,2,5,7,0,2,2,4,1,5,null,6]
["5XX",0,23,10,33,1,25,3,29,1,30,3,34]
["6XX",0,410,35,445,0,375,29,404,3,359,23,385]
["7XX",12,358,17,387,29,411,9,449,14,401,17,432]
["8XX",3,92,13,108,11,77,11,99,7,58,6,71]
["9XX",0,119,20,139,0,139,11,150,null,127,6,133]
["Total",62,2466,224,2752,100,2724,182,{"$f":"SUM(I222:I231)","v":3006},{"$f":"SUM(J222:J231)","v":81},{"$f":"SUM(K222:K231)","v":2595},127,{"$f":"SUM(M222:M231)","v":2803}]
["Source : Bibliographie nationale - Publications en série"]
["Libellés cadre de classement : http://www.bnf.fr/documents/intermarc_ref_cdc-perios.pdf"]
["Public spécialisé = niveau étude et recherche"]

{"sheet":"N_typo","index":11,"n_rows":456,"n_cols":17,"rows_kept":456,"cut":false,"hidden":false,"merged":[[353,0,353,2],[354,1,355,1],[455,0,455,1],[1,0,2,0],[1,5,1,6],[1,3,1,4],[190,1,190,2],[191,0,191,1],[348,0,349,0]]}
["Nombre de nouveaux titres par édition publique et année"]
["Classes",2016,null,2017,null,2018]
[null,"Hors PO","PO","Hors PO","PO","Hors PO","PO"]
["0XX",318,26,347,27,282,32]
["1XX",17,0,25,0,32]
["2XX",108,0,95,0,86,1]
["3XX",737,427,820,557,813,496]
["4XX",5,2,3,1,6]
["5XX",24,9,24,5,25,9]
["6XX",378,67,322,82,309,76]
["7XX",370,17,430,19,402,30]
["8XX",107,1,97,2,71]
["9XX",127,12,141,9,127,6]
["Total",2191,561,2304,702,{"$f":"SUM(F4:F13)","v":2153},{"$f":"SUM(G4:G13)","v":650}]
["Source : Bibliographie nationale - Publications en série"]
["Libellés cadre de classement : http://www.bnf.fr/documents/intermarc_ref_cdc-perios.pdf"]
[]
["Nombre de nouveaux titres par forme d'édition et année"]
["Années","Classes","bulletin","magazine","autre","revue","journal","publication à reliure mobile (PFM)","Total"]
[2016,"0XX",89,107,72,9,66,1,344]
[null,"1XX",4,6,0,7,0,0,17]
[null,"2XX",3,2,100,3,0,0,108]
[null,"3XX",444,77,577,51,7,8,1164]
[null,"4XX",1,0,1,5,0,0,7]
[null,"5XX",10,3,8,12,0,0,33]
[null,"6XX",217,116,86,23,1,2,445]
[null,"7XX",106,227,22,26,6,0,387]
[null,"8XX",26,44,4,34,0,0,108]
[null,"9XX",73,41,8,15,2,0,139]
[null,"Total 2016",973,623,878,185,82,11,2752]
[2017,"0XX",165,160,9,9,30,1,374]
[null,"1XX",1,17,0,7,0,0,25]
[null,"2XX",83,4,4,4,0,0,95]
[null,"3XX",868,88,366,47,4,4,1377]
[null,"4XX",1,0,0,3,0,0,4]
[null,"5XX",12,11,3,3,0,0,29]
[null,"6XX",171,121,89,18,1,4,404]
[null,"7XX",127,267,28,27,0,0,449]
[null,"8XX",30,37,3,29,0,0,99]
[null,"9XX",80,51,8,11,0,0,150]
[null,"Total 2017",1538,756,510,158,35,9,{"$f":"SUM(I31:I40)","v":3006}]
[2018,"0XX",144,124,16,10,20,null,{"$f":"SUM(C42:H42)","v":314}]
[null,"1XX",8,17,null,7,null,null,32]
[null,"2XX",77,3,1,6,null,null,87]
[null,"3XX",864,80,327,32,2,4,1309]
[null,"4XX",4,2,null,null,null,null,6]
[null,"5XX",19,12,1,2,null,null,34]
[null,"6XX",201,82,88,10,1,3,385]
[null,"7XX",140,237,29,24,2,null,432]
[null,"8XX",33,23,1,14,null,null,71]
[null,"9XX",79,46,2,5,1,null,133]
[null,"Total 2018",{"$f":"SUM(C42:C51)","v":1569},{"$f":"SUM(D42:D51)","v":626},465,110,26,7,{"$f":"SUM(C52:H52)","v":2803}]
["Source : Bibliographie nationale - Publications en série"]
["Libellés cadre de classement : http://www.bnf.fr/documents/intermarc_ref_cdc-perios.pdf"]
["Bulletin : publication périodique fournissant des informations spécialisées à l'intention d'un public déterminé qui utilise un mode non commercial de diffusion"]
["Magazine : publication périodique généralement illustrée, traitant tous types de sujets, hors niveau érudition et recherche, et utilisant un mode commercial de diffusion"]
["Autre : annuaires-répertoires, rapports annuels, rapports d’activité, bilans sociaux, comptes administratifs, guides pratiques, recueils statistiques "]
["Revue : publication périodique composée d'articles de recherche ou d’étude, sélectionnés par un comité éditorial fondant ses choix sur des critères scientifiques, littéraires ou artistiques"]
["Journal : publication périodique quotidienne / hebdomadaire, traitant d'informations liées à l'actualité - le plus souvent générales - au niveau international, national ou local"]
[]
["Nombre de nouveaux titres par type de périodique et année"]
["Années","Classes","presse et revues","rapport d'activité, bilan","répertoire ou annuaire","statistiques","bande dessinée","lois et textes règlementaires","rapport technique","autre","bibliographie","catalogue commercial","actes de congrès","encyclopédie","atlas","norme","Total"]
[2016,"0XX",332,3,1,1,6,0,0,0,0,0,0,1,0,0,344]
[null,"1XX",17,0,0,0,0,0,0,0,0,0,0,0,0,0,17]
[null,"2XX",106,1,1,0,0,0,0,0,0,0,0,0,0,0,108]
[null,"3XX",885,149,41,58,0,25,4,2,0,0,0,0,0,0,1164]
[null,"4XX",6,0,0,1,0,0,0,0,0,0,0,0,0,0,7]
[null,"5XX",28,3,1,0,0,0,0,0,0,0,1,0,0,0,33]
[null,"6XX",367,28,11,26,0,2,6,0,0,0,1,0,0,4,445]
[null,"7XX",371,5,3,1,1,0,0,2,0,4,0,0,0,0,387]
[null,"8XX",66,0,0,0,41,0,0,1,0,0,0,0,0,0,108]
[null,"9XX",131,5,0,0,0,0,0,0,1,1,1,0,0,0,139]
[null,"Total 2016",2309,194,58,87,48,27,10,5,1,5,3,1,{"$f":"SUM(O63:O72)","v":0},4,2752]
[2017,"0XX",358,3,3,1,8,0,0,1,0,0,0,0,0,0,374]
[null,"1XX",25,0,0,0,0,0,0,0,0,0,0,0,0,0,25]
[null,"2XX",91,0,4,0,0,0,0,0,0,0,0,0,0,0,95]
[null,"3XX",1026,179,46,77,0,42,4,1,0,0,1,0,1,0,1377]
[null,"4XX",4,0,0,0,0,0,0,0,0,0,0,0,0,0,4]
[null,"5XX",26,2,0,0,0,0,1,0,0,0,0,0,0,0,29]
[null,"6XX",313,24,21,36,0,0,6,1,1,0,0,0,0,2,404]
[null,"7XX",422,8,11,1,6,0,0,1,0,0,0,0,0,0,449]
[null,"8XX",65,1,0,0,33,0,0,0,0,0,0,0,0,0,99]
[null,"9XX",142,3,1,4,0,0,0,0,0,0,0,0,0,0,150]
[null,"Total 2017",2472,220,86,119,47,42,11,3,1,0,1,null,1,2,3006]
[2018,"0XX",289,15,1,2,7]
[null,"1XX",32]
[null,"2XX",86,null,1]
[null,"3XX",975,246,51,33,null,null,4]
[null,"4XX",6]
[null,"5XX",33,1]
[null,"6XX",294,48,30,11,null,null,1,null,null,null,null,null,null,1]
[null,"7XX",402,10,6,1,9,null,2,null,null,2]
[null,"8XX",56,null,1,null,14]
[null,"9XX",132,1]
[null,"Total 2018",{"$f":"SUM(C85:C94)","v":2305},{"$f":"SUM(D85:D94)","v":321},90,47,30,0,7,0,0,2,0,0,0,1,{"$f":"SUM(C95:P95)","v":2803}]
["Source : Bibliographie nationale - Publications en série"]
["Libellés cadre de classement : http://www.bnf.fr/documents/intermarc_ref_cdc-perios.pdf"]
[]
["Nombre de nouveaux titres de magazines par thématique"]
["Classes","Indices","Intitulés",2016,2017,2018]
["0XX","001","Culture générale",3,8,5]
[null,"004","Informatique",3,6,8]
[null,"010","Bibliographie, catalogues",null,null,1]
[null,"020","Sciences de l'information, lecture",0,0]
[null,"060","Instituts de recherche, archives, musées",0,0]
[null,"070","Édition, médias, librairie",0,1,1]
[null,"071","Magazines généraux",57,67,40]
[null,"072","Publications féminines, publications masculines",27,22,26]
[null,"073","Presse et collections documentaires pour enfants et adolescents",48,45,33]
[null,"074","Presse nationale et locale d’information",9,6,7]
[null,"075","Presse parallèle, fanzines",7,1,3]
[null,"076","Journaux internes d’entreprise ",0,0]
[null,"077","Journaux d’annonces",0,4]
["1XX","100","Philosophie",0,2,2]
[null,"130","Ésotérisme et sciences occultes",2,6,7]
[null,"150","Psychologie et psychanalyse",4,9,8]
["2XX",200,"Religion",0,1,1]
[null,"280","Églises chrétiennes",3,1,2]
[null,294,"Hindouisme, bouddhisme",0,1]
[null,296,"Judaïsme",0,1]
[null,297,"Islam",1,0]
["3XX","300","Sciences sociales, sociologie",3,2,4]
[null,320,"Sciences politiques et gouvernement",2,1,2]
[null,323,"Droits civils et politiques, citoyenneté, minorités",0,1]
[null,324,"Partis et mouvements politiques",0,0]
[null,"327","Politique internationale",1,5]
[null,"330","Économie (généralités)",8,6,4]
[null,"331","Économie du travail, syndicats",0,1]
[null,"332","Économie financière",1,2]
[null,"333","Économie du foncier et de l'énergie",2,9,3]
[null,"338","Économie de la production et de la consommation",12,13,19]
[null,"340","Droit",0,1,2]
[null,350,"Administration publique",1,0]
[null,"352","Administration territoriale",4,7,2]
[null,"355","Armée, défense",6,5,1]
[null,"362","Problèmes et services sociaux",2,2,1]
[null,"363","Protection de l’environnement",1,5,4]
[null,366,"Associations, cercles et clubs divers",1,0]
[null,368,"Assurances, sécurité sociale, retraites",1,0]
[null,370,"Education, enseignement",0,1,2]
[null,"371","Organisation scolaire, pédagogie, parents d’élèves",0,0]
[null,"373","Enseignement primaire, enseignement secondaire général et technique, journaux scolaires",0,3]
[null,374,"Formation professionnelle et continue",0,0,1]
[null,"378","Enseignement supérieur",3,5]
[null,"380","Commerce",6,1,7]
[null,"383","Moyens de communication",3,0,1]
[null,"385","Transports",23,17,25]
[null,"390","Ethnologie, anthropologie, folklore",0,1,2]
["4XX",400,"Linguistique",0,0,2]
["5XX","500","Sciences (généralités)",7,7,9]
[null,"520","Astronomie",1,1,2]
[null,540,"Chimie, minéralogie",0,0]
[null,550,"Sciences de la Terre",0,"0"]
[null,560,"Paléontologie",0,"1"]
[null,570,"Sciences de la Vie",0,"0",1]
[null,580,"Botanique",0,1]
[null,"590","Zoologie",1,"1"]
["6XX","600","Sciences appliquées, technologie",4,"2"]
[null,"610","Médecine, santé",32,27,14]
[null,"620","Sciences de l'ingénieur",5,7,9]
[null,"630","Agriculture, élevage",15,10,10]
[null,"640","Économie domestique/vie pratique, hôtellerie",49,69,42]
[null,"650","Gestion et organisation des entreprises, publicité",8,5,4]
[null,660,"Génie chimique et technologies connexes",2,"0",2]
[null,"670","Industries et métiers divers",1,"1",1]
[null,"690","Bâtiment",1,0]
["7XX","700","Arts (généralités)",19,18,9]
[null,710,"Urbanisme, aménagement du territoire",0,1]
[null,"720","Architecture",0,1,1]
[null,730,"Arts plastiques, sculptures",0,1,2]
[null,"740","Dessin, arts décoratifs, artisanat d’art, bandes dessinées (histoire et critique)",24,27,43]
[null,"750","Peinture, arts graphiques",2,2,5]
[null,"770","Photographie",3,6,5]
[null,"778","Érotisme, pornographie",4,7,2]
[null,"780","Musique",8,5,1]
[null,"790","Spectacles (généralités), loisirs",11,16,22]
[null,"791","Audiovisuel",13,19,7]
[null,"792","Représentations scéniques",5,1]
[null,"793","Jeux et divertissements d'intérieur",71,102,101]
[null,"796","Sports, activités de plein air",67,61,39]
["8XX","800","Littérature générale, histoire et critique littéraires, revues littéraires",6,4,8]
[null,801,"Poésie",1,0]
[null,"805","Bandes dessinées",37,29,14]
[null,"809","Littérature pour la jeunesse",0,4,1]
["9XX","900","Histoire et géographie (généralités) ",10,15,9]
[null,"910","Géographie, voyages, tourisme",20,18,23]
[null,929,"Généalogies",0,1]
[null,"930","Histoire ancienne, archéologie, préhistoire",1,1,1]
[null,"940","Histoire médiévale, moderne et contemporaine",4,5,7]
[null,"944","Histoire de France, histoire locale",6,11,6]
[null,"Total",null,{"$f":"SUM(D101:D190)","v":682},{"$f":"SUM(E101:E190)","v":751},{"$f":"SUM(F101:F190)","v":626}]
["Source : Bibliographie nationale - Publications en série"]
[]
["Nombre de nouveaux titres de presse professionnelle par thématique"]
["Classes","Indices","Intitulés",2016,2017,2018]
["0XX","020","Sciences de l'information, lecture",2,1]
[null,"060","Instituts de recherche, archives, musées",0,9,4]
[null,"070","Édition, médias, librairie",1,0,3]
["3XX","332","Économie financière",13,13,5]
[null,"333","Économie du foncier et de l'énergie",16,16,10]
[null,"338","Économie de la production et de la consommation",29,0,15]
[null,"380","Commerce",5,6,5]
[null,383,"Moyens de communication",2,9,1]
[null,"385","Transports",8,10,10]
["6XX","620","Sciences de l'ingénieur",19,12,12]
[null,"630","Agriculture, élevage",37,25,36]
[null,"650","Gestion et organisation des entreprises, publicité",21,11,11]
[null,"660","Génie chimique et technologies connexes",2,0,3]
[null,"670","Industries et métiers divers",9,6,3]
[null,"690","Bâtiment",5,3,3]
["7XX","710","Urbanisme, aménagement du territoire",9,9,5]
[null,"720","Architecture",0,5,5]
[null,null,"Total",178,{"$f":"SUM(E196:E212)","v":135},{"$f":"SUM(F196:F212)","v":131}]
["Source : Bibliographie nationale - Publications en série"]
[]
["Nombre de nouveaux titres de presse académique par thématique"]
["Classes","Indices","Intitulés",2016,2017,2018]
["0XX","001","Culture générale",3,5,4]
[null,"004","Informatique",2,0]
[null,"010","Bibliographie, catalogues",0,0]
[null,"020","Sciences de l'information, lecture",0,0]
[null,"060","Instituts de recherche, archives, musées",0,0,2]
[null,"070","Édition, médias, librairie",1,1]
[null,"071","Magazines généraux",1,0]
[null,"072","Publications féminines, publications masculines",0,0]
[null,"073","Presse et collections documentaires pour enfants et adolescents",0,0]
[null,"074","Presse nationale et locale d’information",0,0]
[null,"075","Presse parallèle, fanzines",0,0]
[null,"076","Journaux internes d'entreprise",0,0]
[null,"077","Journaux d'annonces ",0,0]
[null,"090","Bibliophilie",0,0]
["1XX","100","Philosophie",5,2,4]
[null,"130","Esotérisme et sciences occultes",0,1]
[null,"150","Psychologie et psychanalyse",1,3,3]
["2XX",200,"Religion",0,1,2]
[null,"280","Églises chrétiennes",1,2,2]
[null,"294","Hindouisme, bouddhisme",0,0]
[null,"296","Judaïsme",0,0]
[null,"297","Islam",0,1,1]
[null,"299","Autres religions",0,1]
["3XX","300","Sciences sociales, sociologie",14,6,8]
[null,"320","Sciences politiques et gouvernement",1,4,4]
[null,323,"Droits civils et politiques, citoyenneté, minorités",1,0,1]
[null,"324","Partis et mouvements politiques",0,1]
[null,"327","Politique internationale",0,1,2]
[null,"330","Économie (généralités)",2,4,2]
[null,331,"Economie du travail, syndicats",0,3]
[null,"332","Économie financière",1,1]
[null,333,"Économie du foncier et de l'énergie",0,1,1]
[null,338,"Économie de la production et de la consommation",1,3]
[null,"340","Droit",11,8,10]
[null,"350","Administration publique",2,0,1]
[null,"352","Administration territoriale",12,5]
[null,"355","Armée, défense",1,1,1]
[null,"362","Problèmes et services sociaux",2,2]
[null,"363","Protection de l’environnement",1,1,3]
[null,366,"Associations, cercles et clubs divers",0,1,1]
[null,"368","Assurances, sécurité sociale, retraites",0,0]
[null,"370","Éducation, enseignement",1,1,1]
[null,"371","Organisation scolaire, pédagogie, parents d'élèves",0,0]
[null,"373","Enseignement primaire, enseignement secondaire général et technique, journaux scolaires",1,1]
[null,"374","Formatioon professionnelle et continue",1,0]
[null,"378","Enseignement supérieur",0,1]
[null,380,"Commerce",0,0]
[null,"383","Moyens de communication",0,0]
[null,"385","Transports",0,1]
[null,390,"Ethnologie, anthropologie, folklore",0,0]
["4XX","400","Linguistique",5,1]
["5XX","500","Sciences (généralités)",3,2]
[null,510,"Mathématiques",1,0]
[null,"520","Astronomie",1,0]
[null,"530","Physique",0,0,1]
[null,"540","Chimie, minéralogie",0,0]
[null,550,"Sciences de la terre",0,0,2]
[null,"560","Paléontologie",0,0]
[null,"570","Sciences de la vie",0,0]
[null,580,"Botanique",2,1]
[null,"590","Zoologie",0,0]
["6XX",600,"Sciences appliquées, technologie",1,0]
[null,"610","Médecine, santé",16,16,12]
[null,"620","Sciences de l'ingénieur",2,1,3]
[null,"630","Agriculture, élevage",2,0,1]
[null,"640","Economie domestique / vie pratique, hôtellerie",1,0]
[null,"650","Gestion et organisation des entreprises, publicité",3,2,2]
[null,660,"Génie chimique et technologies connexes",0,0,1]
[null,"670","Industries et métiers divers",0,0]
[null,"690","Bâtiment",0,0]
["7XX","700","Arts (généralités)",3,3,5]
[null,"710","Urbanisme, aménagement du territoire",1,0,1]
[null,"720","Architecture",7,2,6]
[null,"730","Arts plastiques, sculpture",1,0,1]
[null,"740","Dessin, arts décoratifs, artisanat d’art, bandes dessinées (histoire et critique)",1,0]
[null,"750","Peinture, arts graphiques",0,0]
[null,"770","Photographie",0,1]
[null,"778","Érotisme, pornographie",0,0]
[null,"780","Musique",0,2,1]
[null,790,"Spectacles (généralités), loisirs",0,0]
[null,"791","Audiovisuel",1,0]
[null,792,"Représentations scéniques",1,0]
[null,"793","Jeux et divertissements d'intérieur",0,0]
[null,"796","Sports, activités de plein air",0,0]
["8XX","800","Littérature générale, histoire et critique littéraires, revues littéraires",12,10,6]
[null,"801","Poésie",1,1]
[null,"802","Théâtre",0,0]
[null,"803","Roman et fiction romanesque",0,0]
[null,804,"Essais litteraires et écrits divers",0,0]
[null,"805","Bandes dessinées",0,0]
[null,"809","Littérature pour la jeunesse",0,0]
["9XX","900","Histoire et géographie (généralités) ",0,3]
[null,"910","Géographie, voyages, tourisme",0,0]
[null,"920","Biographies",0,0]
[null,929,"Généalogie",1,1]
[null,"930","Histoire ancienne, archéologie, préhistoire",4,2,1]
[null,"940","Histoire médiévale, moderne et contemporaine",1,1,1]
[null,"944","Histoire de France, histoire locale",11,1,4]
[null,null,"Total",{"$f":"SUM(D218:D315)","v":148},{"$f":"SUM(E218:E315)","v":113},101]
["Source : Bibliographie nationale - Publications en série"]
[]
["Nombre de nouveaux titres de presse d'expression politique par thématique"]
["Indices","Intitulés",2016,2017,2018]
["071","Magazines généraux",0,0,0]
["074","Presse nationale et locale d’information",0,0,0]
["075",null,null,null,1]
[320,"Sciences politiques et Gouvernement",0,1,1]
["324","Partis et mouvements politiques",13,7,10]
["352","Administration territoriale",0,11,12]
[null,"Total",13,{"$f":"SUM(D324:D326)","v":19},{"$f":"SUM(E321:E326)","v":24}]
["Source : Bibliographie nationale - Publications en série"]
["Partis & mouvements politiques, comptes-rendus de mandat des élus, groupes politiques dans les instances élues."]
[]
["Nombre de nouveaux titres de presse syndicale par thématique"]
["Indices","Intitulés",2016,2017,2018]
[330,"Economie (généralités)",0,0,0]
["331","Économie du travail, syndicats",30,32,53]
[338,"Économie de la production et de la consommation",1,2,1]
[355,"Armée, défense",0,0,1]
[370,"Education, enseignement",0,0,0]
["610","Médecine, santé",0,1,0]
["630","Agriculture, élevage",1,0,1]
[640,"Économie domestique / vie pratique, hôtellerie",0,0,0]
[670,"Industries et métiers divers",0,0,0]
[690,"Bâtiment et travaux publics",1,0,0]
[792,"Représentations scéniques",0,0,0]
[944,"Histoire de France, histoire locale",0,0,0]
[null,"Total",33,35,{"$f":"SUM(E333:E344)","v":56}]
[]
["Nombre de nouveaux titres de presse confessionnelle par thématique"]
["Indice","Catégories",2016,2017,2018]
[280,"Bulletins paroissiaux catholiques",69,43,39]
[null,"Autres bulletins confessionnels",2,1,2]
[null,"Total",71,{"$f":"SUM(D349:D350)","v":44},41]
["Source : Bibliographie nationale - Publications en série"]
[]
["Nombre de nouveaux titres de presse associative par thématique"]
[null,"Intitulés"]
["Indices",null,2016,2017,2018]
["001","Culture générale",0,5,1]
["004","Informatique",1,0]
["010","Bibliographie, catalogues",1,0,1]
["020","Sciences de l'information, lecture",2,2]
["060","Instituts de recherche, archives, musées",0,6,7]
["070","Édition, médias, librairie",0,3,1]
["071","Magazines généraux",7,13,4]
["072","Publications féminines, publications masculines",0,2,2]
["073","Presse et collections documentaires pour enfants et adolescents",4,4,15]
["074","Presse nationale et locale d’information",12,3]
["075","Presse parallèle, fanzines",9,6,18]
["076","Journaux internes d'entreprise",0,2,4]
["077","Journaux d'annonces ",0,0]
["090","Bibliophilie",0,0]
["100","Philosophie",4,0,4]
["130","Esotérisme et sciences occultes",1,0]
["150","Psychologie et psychanalyse",1,0,1]
[200,"Religion",1,1]
["280","Églises chrétiennes",6,10,10]
[294,"Hindouisme, bouddhisme",0,1]
["296","Judaïsme",0,0,1]
["297","Islam",0,1]
[299,"Autres religions",0,1]
["300","Sciences sociales, sociologie",6,7,6]
["320","Sciences politiques et gouvernement",4,5,4]
["323","Droits civils et politiques, citoyenneté, minorités",4,4,17]
["324","Partis et mouvements politiques",1,0,2]
["327","Politique internationale",0,1]
["330","Économie (généralités)",2,6,3]
["331","Economie du travail, syndicats",5,4,6]
["332","Économie financière",2,3,2]
["333","Économie du foncier et de l'énergie",4,4,4]
["338","Économie de la production et de la consommation",7,10,23]
["340","Droit",5,6,4]
["350","Administration publique",3,1,1]
["352","Administration territoriale",31,13,23]
["355","Armée, défense",3,17,7]
["362","Problèmes et services sociaux",100,199,203]
["363","Protection de l’environnement",11,16,21]
["366","Associations, cercles et clubs divers",22,33,29]
["368","Assurances, sécurité sociale, retraites",5,4,2]
["370","Éducation, enseignement",3,3,6]
["371","Organisation scolaire, pédagogie, parents d'élèves",7,6,4]
["373","Enseignement primaire, enseignement secondaire général et technique, journaux scolaires",5,5,27]
[374,"Formatioon professionnelle et continue",3,3,1]
["378","Enseignement supérieur",4,7,9]
[380,"Commerce",2,3,5]
[383,"Moyens de communication",0,1,1]
["385","Transports",3,1,2]
["390","Ethnologie, anthropologie, folklore",2,0]
["400","Linguistique",1,0,4]
["500","Sciences (généralités)",3,0,2]
[510,"Mathématiques",0,0,2]
[520,"Astronomie",0,0]
[530,"Physique",0,0]
["540","Chimie, minéralogie",1,0]
["550","Sciences de la terre",1,0,1]
[560,"Paléontologie",0,1]
["570","Sciences de la vie",0,2,3]
["580","Botanique",2,5]
["590","Zoologie",2,1,1]
[600,"Sciences appliquées, technologie",0,1,1]
["610","Médecine, santé",23,19,19]
["620","Sciences de l'ingénieur",7,5,11]
["630","Agriculture, élevage",28,15,21]
["640","Economie domestique / vie pratique, hôtellerie",3,1,4]
["650","Gestion et organisation des entreprises, publicité",3,3,7]
["660","Génie chimique et technologies connexes",0,0,1]
["670","Industries et métiers divers",1,2]
["690","Bâtiment",3,3,1]
["700","Arts (généralités)",20,13,14]
["710","Urbanisme, aménagement du territoire",3,5,3]
["720","Architecture",1,2,6]
["730","Arts plastiques, sculpture",1,1,1]
["740","Dessin, arts décoratifs, artisanat d’art, bandes dessinées (histoire et critique)",2,5,4]
["750","Peinture, arts graphiques",2,3,3]
["770","Photographie",2,4,3]
[778,"Érotisme, pornographie",0,1]
["780","Musique",6,1,4]
["790","Spectacles (généralités), loisirs",5,3,5]
["791","Audiovisuel",3,6,6]
["792","Représentations scéniques",0,1]
["793","Jeux et divertissements d'intérieur",4,1,3]
["796","Sports, activités de plein air",32,29,24]
["800","Littérature générale, histoire et critique littéraires, revues littéraires",17,18,16]
["801","Poésie",4,0,4]
[802,"Théâtre",0,0]
[803,"Roman et fiction romanesque",0,0]
[804,"Essais litteraires et écrits divers",1,5,1]
["805","Bandes dessinées",1,2,2]
["809","Littérature pour la jeunesse",0,0,1]
["900","Histoire et géographie (généralités) ",1,0,1]
["910","Géographie, voyages, tourisme",3,0,5]
[920,"Biographies",0,1]
["929","Généalogie",2,5,4]
["930","Histoire ancienne, archéologie, préhistoire",4,6,5]
["940","Histoire médiévale, moderne et contemporaine",0,6,1]
["944","Histoire de France, histoire locale",55,47,39]
[null,"Total ",{"$f":"SUM(C357:C454)","v":540},{"$f":"SUM(D357:D454)","v":645},{"$f":"SUM(E357:E454)","v":714}]
["Source : Bibliographie nationale - Publications en série"]